Payment Date,Transaction Number,Net Amount,Supplier (Beneficiary) Name,Local Supplier Internal Reference,Directorate / Service Where Expenditure Incurred,Service Category Label,Service Category URI,SeRCOP Expenditure Category,SeRCOP Expenditure Code,Purpose of Spend,SeRCOP Detailed Expenditure Code,Capital/Revenue,Procurement Classification
26-OCT-2022,325,-189,JURYS INN NEWCASTLE,366318,General Fund Housing,Housing Services,108,Third Party Payments,505,Private Contractors,5042,Revenue,
26-OCT-2022,325,-174,JURYS INN NEWCASTLE,366318,General Fund Housing,Housing Services,108,Third Party Payments,505,Private Contractors,5042,Revenue,
26-OCT-2022,325,134.58,JURYS INN NEWCASTLE,366318,General Fund Housing,Housing Services,108,Third Party Payments,505,Private Contractors,5042,Revenue,
26-OCT-2022,325,134.58,JURYS INN NEWCASTLE,366318,General Fund Housing,Housing Services,108,Third Party Payments,505,Private Contractors,5042,Revenue,
26-OCT-2022,7019680,65,MARK HARROD LTD,382709,"Sport, Leisure & Community",Cultural & Related Services,104,Premises-Related Expenditure,502,Cleaning and Domestic Supplies,5012,Revenue,SPORTS & PLAYGROUND EQUIPMENT.SPORTS EQUIPMENT
26-OCT-2022,7019681,83.46,CHIRTON MAIN SERVICE,397459,Local Environmental Services,Cultural & Related Services,104,Transport,503,Direct Transport Costs,5016,Revenue,BUILDING MATERIALS.GENERAL MATERIALS
26-OCT-2022,7019681,86.96,CHIRTON MAIN SERVICE,397459,Local Environmental Services,Cultural & Related Services,104,Transport,503,Direct Transport Costs,5016,Revenue,BUILDING MATERIALS.GENERAL MATERIALS
26-OCT-2022,7019682,17.62,ADOBE EXPORTPDF SUB,397235,Regeneration & Economic Development,Planning Services ,110,Supplies and Services,504,"Printing, Stationery and General Office Expenses",5026,Revenue,
26-OCT-2022,7019683,49.94,AWS EMEA,397215,Resources,Central Services,102,Supplies and Services,504,"Printing, Stationery and General Office Expenses",5026,Revenue,ADVERTISING & MARKETING.EVENTS & PROMOTIONS
26-OCT-2022,7019683,51.78,AWS EMEA,397215,Resources,Central Services,102,Supplies and Services,504,"Printing, Stationery and General Office Expenses",5026,Revenue,ADVERTISING & MARKETING.EVENTS & PROMOTIONS
26-OCT-2022,7019684,74.41,1PASSWORD,397081,Resources,Central Services,102,Supplies and Services,504,"Printing, Stationery and General Office Expenses",5026,Revenue,ICT.SOFTWARE
26-OCT-2022,7019684,144.64,1PASSWORD,397081,Resources,Central Services,102,Supplies and Services,504,"Printing, Stationery and General Office Expenses",5026,Revenue,ICT.SOFTWARE
26-OCT-2022,7019685,-116,LNER WEB SALES,396995,"Health, Education, Care and Safeguarding",Children's & Education Services,103,Third Party Payments,505,Other Establishments,5041,Revenue,HUMAN RESOURCES.TRAVEL & SUBSISTENCE
26-OCT-2022,7019685,116,LNER WEB SALES,396995,"Health, Education, Care and Safeguarding",Children's & Education Services,103,Third Party Payments,505,Other Establishments,5041,Revenue,HUMAN RESOURCES.TRAVEL & SUBSISTENCE
26-OCT-2022,7019686,2.88,BUNZL UK LTD T/A BUNZL CLEANING & HYGIENE SUPPLIES,027747,Commissioning & Asset Management,Children's & Education Services,103,Supplies and Services,504,Equipment,5023,Revenue,CLEANING & JANITORIAL.CLEANING MATERIALS
26-OCT-2022,7019686,3.74,BUNZL UK LTD T/A BUNZL CLEANING & HYGIENE SUPPLIES,027747,Commissioning & Asset Management,Children's & Education Services,103,Supplies and Services,504,Equipment,5023,Revenue,CLEANING & JANITORIAL.CLEANING MATERIALS
26-OCT-2022,7019686,4.88,BUNZL UK LTD T/A BUNZL CLEANING & HYGIENE SUPPLIES,027747,Commissioning & Asset Management,Children's & Education Services,103,Supplies and Services,504,Equipment,5023,Revenue,CLEANING & JANITORIAL.CLEANING MATERIALS
26-OCT-2022,7019686,5.92,BUNZL UK LTD T/A BUNZL CLEANING & HYGIENE SUPPLIES,027747,Commissioning & Asset Management,Children's & Education Services,103,Supplies and Services,504,Equipment,5023,Revenue,CLEANING & JANITORIAL.CLEANING MATERIALS
26-OCT-2022,7019686,6.36,BUNZL UK LTD T/A BUNZL CLEANING & HYGIENE SUPPLIES,027747,Commissioning & Asset Management,Children's & Education Services,103,Supplies and Services,504,Equipment,5023,Revenue,CLEANING & JANITORIAL.CLEANING MATERIALS
26-OCT-2022,7019686,12.89,BUNZL UK LTD T/A BUNZL CLEANING & HYGIENE SUPPLIES,027747,Commissioning & Asset Management,Children's & Education Services,103,Supplies and Services,504,Equipment,5023,Revenue,CLEANING & JANITORIAL.CLEANING MATERIALS
26-OCT-2022,7019686,13.62,BUNZL UK LTD T/A BUNZL CLEANING & HYGIENE SUPPLIES,027747,Commissioning & Asset Management,Children's & Education Services,103,Supplies and Services,504,Equipment,5023,Revenue,CLEANING & JANITORIAL.CLEANING MATERIALS
26-OCT-2022,7019686,13.98,BUNZL UK LTD T/A BUNZL CLEANING & HYGIENE SUPPLIES,027747,Commissioning & Asset Management,Children's & Education Services,103,Supplies and Services,504,Equipment,5023,Revenue,CLEANING & JANITORIAL.CLEANING MATERIALS
26-OCT-2022,7019686,20.72,BUNZL UK LTD T/A BUNZL CLEANING & HYGIENE SUPPLIES,027747,Commissioning & Asset Management,Children's & Education Services,103,Supplies and Services,504,Equipment,5023,Revenue,CLEANING & JANITORIAL.CLEANING MATERIALS
26-OCT-2022,7019686,1.44,BUNZL UK LTD T/A BUNZL CLEANING & HYGIENE SUPPLIES,027747,Commissioning & Asset Management,Children's & Education Services,103,Supplies and Services,504,Equipment,5023,Revenue,CLEANING & JANITORIAL.CLEANING MATERIALS
26-OCT-2022,7019686,4.6,BUNZL UK LTD T/A BUNZL CLEANING & HYGIENE SUPPLIES,027747,Commissioning & Asset Management,Children's & Education Services,103,Supplies and Services,504,Equipment,5023,Revenue,CLEANING & JANITORIAL.CLEANING MATERIALS
26-OCT-2022,7019686,4.87,BUNZL UK LTD T/A BUNZL CLEANING & HYGIENE SUPPLIES,027747,Commissioning & Asset Management,Children's & Education Services,103,Supplies and Services,504,Equipment,5023,Revenue,CLEANING & JANITORIAL.CLEANING MATERIALS
26-OCT-2022,7019686,6.56,BUNZL UK LTD T/A BUNZL CLEANING & HYGIENE SUPPLIES,027747,Commissioning & Asset Management,Children's & Education Services,103,Supplies and Services,504,Equipment,5023,Revenue,CLEANING & JANITORIAL.CLEANING MATERIALS
26-OCT-2022,7019686,9.74,BUNZL UK LTD T/A BUNZL CLEANING & HYGIENE SUPPLIES,027747,Commissioning & Asset Management,Children's & Education Services,103,Supplies and Services,504,Equipment,5023,Revenue,CLEANING & JANITORIAL.CLEANING MATERIALS
26-OCT-2022,7019686,12.89,BUNZL UK LTD T/A BUNZL CLEANING & HYGIENE SUPPLIES,027747,Commissioning & Asset Management,Children's & Education Services,103,Supplies and Services,504,Equipment,5023,Revenue,CLEANING & JANITORIAL.CLEANING MATERIALS
26-OCT-2022,7019686,12.89,BUNZL UK LTD T/A BUNZL CLEANING & HYGIENE SUPPLIES,027747,Commissioning & Asset Management,Children's & Education Services,103,Supplies and Services,504,Equipment,5023,Revenue,CLEANING & JANITORIAL.CLEANING MATERIALS
26-OCT-2022,7019686,27.74,BUNZL UK LTD T/A BUNZL CLEANING & HYGIENE SUPPLIES,027747,Commissioning & Asset Management,Children's & Education Services,103,Supplies and Services,504,Equipment,5023,Revenue,CLEANING & JANITORIAL.CLEANING MATERIALS
26-OCT-2022,7019686,2.12,BUNZL UK LTD T/A BUNZL CLEANING & HYGIENE SUPPLIES,027747,Commissioning & Asset Management,Children's & Education Services,103,Supplies and Services,504,Equipment,5023,Revenue,CLEANING & JANITORIAL.CLEANING MATERIALS
26-OCT-2022,7019686,2.3,BUNZL UK LTD T/A BUNZL CLEANING & HYGIENE SUPPLIES,027747,Commissioning & Asset Management,Children's & Education Services,103,Supplies and Services,504,Equipment,5023,Revenue,CLEANING & JANITORIAL.CLEANING MATERIALS
26-OCT-2022,7019686,9.24,BUNZL UK LTD T/A BUNZL CLEANING & HYGIENE SUPPLIES,027747,Commissioning & Asset Management,Children's & Education Services,103,Supplies and Services,504,Equipment,5023,Revenue,CLEANING & JANITORIAL.CLEANING MATERIALS
26-OCT-2022,7019686,12.89,BUNZL UK LTD T/A BUNZL CLEANING & HYGIENE SUPPLIES,027747,Commissioning & Asset Management,Children's & Education Services,103,Supplies and Services,504,Equipment,5023,Revenue,CLEANING & JANITORIAL.CLEANING MATERIALS
26-OCT-2022,7019686,20.72,BUNZL UK LTD T/A BUNZL CLEANING & HYGIENE SUPPLIES,027747,Commissioning & Asset Management,Children's & Education Services,103,Supplies and Services,504,Equipment,5023,Revenue,CLEANING & JANITORIAL.CLEANING MATERIALS
26-OCT-2022,7019686,4.62,BUNZL UK LTD T/A BUNZL CLEANING & HYGIENE SUPPLIES,027747,Commissioning & Asset Management,Children's & Education Services,103,Supplies and Services,504,Equipment,5023,Revenue,CLEANING & JANITORIAL.CLEANING MATERIALS
26-OCT-2022,7019686,4.62,BUNZL UK LTD T/A BUNZL CLEANING & HYGIENE SUPPLIES,027747,Commissioning & Asset Management,Children's & Education Services,103,Supplies and Services,504,Equipment,5023,Revenue,CLEANING & JANITORIAL.CLEANING MATERIALS
26-OCT-2022,7019686,5.66,BUNZL UK LTD T/A BUNZL CLEANING & HYGIENE SUPPLIES,027747,Commissioning & Asset Management,Children's & Education Services,103,Supplies and Services,504,Equipment,5023,Revenue,CLEANING & JANITORIAL.CLEANING MATERIALS
26-OCT-2022,7019686,5.72,BUNZL UK LTD T/A BUNZL CLEANING & HYGIENE SUPPLIES,027747,Commissioning & Asset Management,Children's & Education Services,103,Supplies and Services,504,Equipment,5023,Revenue,CLEANING & JANITORIAL.CLEANING MATERIALS
26-OCT-2022,7019686,6.56,BUNZL UK LTD T/A BUNZL CLEANING & HYGIENE SUPPLIES,027747,Commissioning & Asset Management,Children's & Education Services,103,Supplies and Services,504,Equipment,5023,Revenue,CLEANING & JANITORIAL.CLEANING MATERIALS
26-OCT-2022,7019686,7.2,BUNZL UK LTD T/A BUNZL CLEANING & HYGIENE SUPPLIES,027747,Commissioning & Asset Management,Children's & Education Services,103,Supplies and Services,504,Equipment,5023,Revenue,CLEANING & JANITORIAL.CLEANING MATERIALS
26-OCT-2022,7019686,7.94,BUNZL UK LTD T/A BUNZL CLEANING & HYGIENE SUPPLIES,027747,Commissioning & Asset Management,Children's & Education Services,103,Supplies and Services,504,Equipment,5023,Revenue,CLEANING & JANITORIAL.CLEANING MATERIALS
26-OCT-2022,7019686,9.74,BUNZL UK LTD T/A BUNZL CLEANING & HYGIENE SUPPLIES,027747,Commissioning & Asset Management,Children's & Education Services,103,Supplies and Services,504,Equipment,5023,Revenue,CLEANING & JANITORIAL.CLEANING MATERIALS
26-OCT-2022,7019686,11.84,BUNZL UK LTD T/A BUNZL CLEANING & HYGIENE SUPPLIES,027747,Commissioning & Asset Management,Children's & Education Services,103,Supplies and Services,504,Equipment,5023,Revenue,CLEANING & JANITORIAL.CLEANING MATERIALS
26-OCT-2022,7019686,11.84,BUNZL UK LTD T/A BUNZL CLEANING & HYGIENE SUPPLIES,027747,Commissioning & Asset Management,Children's & Education Services,103,Supplies and Services,504,Equipment,5023,Revenue,CLEANING & JANITORIAL.CLEANING MATERIALS
26-OCT-2022,7019686,12.89,BUNZL UK LTD T/A BUNZL CLEANING & HYGIENE SUPPLIES,027747,Commissioning & Asset Management,Children's & Education Services,103,Supplies and Services,504,Equipment,5023,Revenue,CLEANING & JANITORIAL.CLEANING MATERIALS
26-OCT-2022,7019686,13.87,BUNZL UK LTD T/A BUNZL CLEANING & HYGIENE SUPPLIES,027747,Commissioning & Asset Management,Children's & Education Services,103,Supplies and Services,504,Equipment,5023,Revenue,CLEANING & JANITORIAL.CLEANING MATERIALS
26-OCT-2022,7019686,14.61,BUNZL UK LTD T/A BUNZL CLEANING & HYGIENE SUPPLIES,027747,Commissioning & Asset Management,Children's & Education Services,103,Supplies and Services,504,Equipment,5023,Revenue,CLEANING & JANITORIAL.CLEANING MATERIALS
26-OCT-2022,7019686,18.6,BUNZL UK LTD T/A BUNZL CLEANING & HYGIENE SUPPLIES,027747,Commissioning & Asset Management,Children's & Education Services,103,Supplies and Services,504,Equipment,5023,Revenue,CLEANING & JANITORIAL.CLEANING MATERIALS
26-OCT-2022,7019686,18.6,BUNZL UK LTD T/A BUNZL CLEANING & HYGIENE SUPPLIES,027747,Commissioning & Asset Management,Children's & Education Services,103,Supplies and Services,504,Equipment,5023,Revenue,CLEANING & JANITORIAL.CLEANING MATERIALS
26-OCT-2022,7019686,19.48,BUNZL UK LTD T/A BUNZL CLEANING & HYGIENE SUPPLIES,027747,Commissioning & Asset Management,Children's & Education Services,103,Supplies and Services,504,Equipment,5023,Revenue,CLEANING & JANITORIAL.CLEANING MATERIALS
26-OCT-2022,7019686,19.48,BUNZL UK LTD T/A BUNZL CLEANING & HYGIENE SUPPLIES,027747,Commissioning & Asset Management,Children's & Education Services,103,Supplies and Services,504,Equipment,5023,Revenue,CLEANING & JANITORIAL.CLEANING MATERIALS
26-OCT-2022,7019686,20.72,BUNZL UK LTD T/A BUNZL CLEANING & HYGIENE SUPPLIES,027747,Commissioning & Asset Management,Children's & Education Services,103,Supplies and Services,504,Equipment,5023,Revenue,CLEANING & JANITORIAL.CLEANING MATERIALS
26-OCT-2022,7019686,24.35,BUNZL UK LTD T/A BUNZL CLEANING & HYGIENE SUPPLIES,027747,Commissioning & Asset Management,Children's & Education Services,103,Supplies and Services,504,Equipment,5023,Revenue,CLEANING & JANITORIAL.CLEANING MATERIALS
26-OCT-2022,7019686,24.35,BUNZL UK LTD T/A BUNZL CLEANING & HYGIENE SUPPLIES,027747,Commissioning & Asset Management,Children's & Education Services,103,Supplies and Services,504,Equipment,5023,Revenue,CLEANING & JANITORIAL.CLEANING MATERIALS
26-OCT-2022,7019686,25.72,BUNZL UK LTD T/A BUNZL CLEANING & HYGIENE SUPPLIES,027747,Commissioning & Asset Management,Children's & Education Services,103,Supplies and Services,504,Equipment,5023,Revenue,CLEANING & JANITORIAL.CLEANING MATERIALS
26-OCT-2022,7019686,27.4,BUNZL UK LTD T/A BUNZL CLEANING & HYGIENE SUPPLIES,027747,Commissioning & Asset Management,Children's & Education Services,103,Supplies and Services,504,Equipment,5023,Revenue,CLEANING & JANITORIAL.CLEANING MATERIALS
26-OCT-2022,7019686,34.35,BUNZL UK LTD T/A BUNZL CLEANING & HYGIENE SUPPLIES,027747,Commissioning & Asset Management,Children's & Education Services,103,Supplies and Services,504,Equipment,5023,Revenue,CLEANING & JANITORIAL.CLEANING MATERIALS
26-OCT-2022,7019686,38.58,BUNZL UK LTD T/A BUNZL CLEANING & HYGIENE SUPPLIES,027747,Commissioning & Asset Management,Children's & Education Services,103,Supplies and Services,504,Equipment,5023,Revenue,CLEANING & JANITORIAL.CLEANING MATERIALS
26-OCT-2022,7019686,4.62,BUNZL UK LTD T/A BUNZL CLEANING & HYGIENE SUPPLIES,027747,Commissioning & Asset Management,Children's & Education Services,103,Supplies and Services,504,Equipment,5023,Revenue,CLEANING & JANITORIAL.CLEANING MATERIALS
26-OCT-2022,7019686,4.88,BUNZL UK LTD T/A BUNZL CLEANING & HYGIENE SUPPLIES,027747,Commissioning & Asset Management,Children's & Education Services,103,Supplies and Services,504,Equipment,5023,Revenue,CLEANING & JANITORIAL.CLEANING MATERIALS
26-OCT-2022,7019686,5.92,BUNZL UK LTD T/A BUNZL CLEANING & HYGIENE SUPPLIES,027747,Commissioning & Asset Management,Children's & Education Services,103,Supplies and Services,504,Equipment,5023,Revenue,CLEANING & JANITORIAL.CLEANING MATERIALS
26-OCT-2022,7019686,6.35,BUNZL UK LTD T/A BUNZL CLEANING & HYGIENE SUPPLIES,027747,Commissioning & Asset Management,Children's & Education Services,103,Supplies and Services,504,Equipment,5023,Revenue,CLEANING & JANITORIAL.CLEANING MATERIALS
26-OCT-2022,7019686,9.3,BUNZL UK LTD T/A BUNZL CLEANING & HYGIENE SUPPLIES,027747,Commissioning & Asset Management,Children's & Education Services,103,Supplies and Services,504,Equipment,5023,Revenue,CLEANING & JANITORIAL.CLEANING MATERIALS
26-OCT-2022,7019686,9.74,BUNZL UK LTD T/A BUNZL CLEANING & HYGIENE SUPPLIES,027747,Commissioning & Asset Management,Children's & Education Services,103,Supplies and Services,504,Equipment,5023,Revenue,CLEANING & JANITORIAL.CLEANING MATERIALS
26-OCT-2022,7019686,10.36,BUNZL UK LTD T/A BUNZL CLEANING & HYGIENE SUPPLIES,027747,Commissioning & Asset Management,Children's & Education Services,103,Supplies and Services,504,Equipment,5023,Revenue,CLEANING & JANITORIAL.CLEANING MATERIALS
26-OCT-2022,7019686,13.87,BUNZL UK LTD T/A BUNZL CLEANING & HYGIENE SUPPLIES,027747,Commissioning & Asset Management,Children's & Education Services,103,Supplies and Services,504,Equipment,5023,Revenue,CLEANING & JANITORIAL.CLEANING MATERIALS
26-OCT-2022,7019686,13.98,BUNZL UK LTD T/A BUNZL CLEANING & HYGIENE SUPPLIES,027747,Commissioning & Asset Management,Children's & Education Services,103,Supplies and Services,504,Equipment,5023,Revenue,CLEANING & JANITORIAL.CLEANING MATERIALS
26-OCT-2022,7019686,25.72,BUNZL UK LTD T/A BUNZL CLEANING & HYGIENE SUPPLIES,027747,Commissioning & Asset Management,Children's & Education Services,103,Supplies and Services,504,Equipment,5023,Revenue,CLEANING & JANITORIAL.CLEANING MATERIALS
26-OCT-2022,7019686,1.44,BUNZL UK LTD T/A BUNZL CLEANING & HYGIENE SUPPLIES,027747,Commissioning & Asset Management,Children's & Education Services,103,Supplies and Services,504,Equipment,5023,Revenue,CLEANING & JANITORIAL.CLEANING MATERIALS
26-OCT-2022,7019686,2.44,BUNZL UK LTD T/A BUNZL CLEANING & HYGIENE SUPPLIES,027747,Commissioning & Asset Management,Children's & Education Services,103,Supplies and Services,504,Equipment,5023,Revenue,CLEANING & JANITORIAL.CLEANING MATERIALS
26-OCT-2022,7019686,4.87,BUNZL UK LTD T/A BUNZL CLEANING & HYGIENE SUPPLIES,027747,Commissioning & Asset Management,Children's & Education Services,103,Supplies and Services,504,Equipment,5023,Revenue,CLEANING & JANITORIAL.CLEANING MATERIALS
26-OCT-2022,7019686,4.87,BUNZL UK LTD T/A BUNZL CLEANING & HYGIENE SUPPLIES,027747,Commissioning & Asset Management,Children's & Education Services,103,Supplies and Services,504,Equipment,5023,Revenue,CLEANING & JANITORIAL.CLEANING MATERIALS
26-OCT-2022,7019686,4.87,BUNZL UK LTD T/A BUNZL CLEANING & HYGIENE SUPPLIES,027747,Commissioning & Asset Management,Children's & Education Services,103,Supplies and Services,504,Equipment,5023,Revenue,CLEANING & JANITORIAL.CLEANING MATERIALS
26-OCT-2022,7019686,4.87,BUNZL UK LTD T/A BUNZL CLEANING & HYGIENE SUPPLIES,027747,Commissioning & Asset Management,Children's & Education Services,103,Supplies and Services,504,Equipment,5023,Revenue,CLEANING & JANITORIAL.CLEANING MATERIALS
26-OCT-2022,7019686,4.87,BUNZL UK LTD T/A BUNZL CLEANING & HYGIENE SUPPLIES,027747,Commissioning & Asset Management,Children's & Education Services,103,Supplies and Services,504,Equipment,5023,Revenue,CLEANING & JANITORIAL.CLEANING MATERIALS
26-OCT-2022,7019686,7.32,BUNZL UK LTD T/A BUNZL CLEANING & HYGIENE SUPPLIES,027747,Commissioning & Asset Management,Children's & Education Services,103,Supplies and Services,504,Equipment,5023,Revenue,CLEANING & JANITORIAL.CLEANING MATERIALS
26-OCT-2022,7019686,9.74,BUNZL UK LTD T/A BUNZL CLEANING & HYGIENE SUPPLIES,027747,Commissioning & Asset Management,Children's & Education Services,103,Supplies and Services,504,Equipment,5023,Revenue,CLEANING & JANITORIAL.CLEANING MATERIALS
26-OCT-2022,7019686,10.1,BUNZL UK LTD T/A BUNZL CLEANING & HYGIENE SUPPLIES,027747,Commissioning & Asset Management,Children's & Education Services,103,Supplies and Services,504,Equipment,5023,Revenue,CLEANING & JANITORIAL.CLEANING MATERIALS
26-OCT-2022,7019686,10.36,BUNZL UK LTD T/A BUNZL CLEANING & HYGIENE SUPPLIES,027747,Commissioning & Asset Management,Children's & Education Services,103,Supplies and Services,504,Equipment,5023,Revenue,CLEANING & JANITORIAL.CLEANING MATERIALS
26-OCT-2022,7019686,11.84,BUNZL UK LTD T/A BUNZL CLEANING & HYGIENE SUPPLIES,027747,Commissioning & Asset Management,Children's & Education Services,103,Supplies and Services,504,Equipment,5023,Revenue,CLEANING & JANITORIAL.CLEANING MATERIALS
26-OCT-2022,7019686,13.87,BUNZL UK LTD T/A BUNZL CLEANING & HYGIENE SUPPLIES,027747,Commissioning & Asset Management,Children's & Education Services,103,Supplies and Services,504,Equipment,5023,Revenue,CLEANING & JANITORIAL.CLEANING MATERIALS
26-OCT-2022,7019686,17.78,BUNZL UK LTD T/A BUNZL CLEANING & HYGIENE SUPPLIES,027747,Commissioning & Asset Management,Children's & Education Services,103,Supplies and Services,504,Equipment,5023,Revenue,CLEANING & JANITORIAL.CLEANING MATERIALS
26-OCT-2022,7019686,19.48,BUNZL UK LTD T/A BUNZL CLEANING & HYGIENE SUPPLIES,027747,Commissioning & Asset Management,Children's & Education Services,103,Supplies and Services,504,Equipment,5023,Revenue,CLEANING & JANITORIAL.CLEANING MATERIALS
26-OCT-2022,7019686,25.72,BUNZL UK LTD T/A BUNZL CLEANING & HYGIENE SUPPLIES,027747,Commissioning & Asset Management,Children's & Education Services,103,Supplies and Services,504,Equipment,5023,Revenue,CLEANING & JANITORIAL.CLEANING MATERIALS
26-OCT-2022,7019686,27.9,BUNZL UK LTD T/A BUNZL CLEANING & HYGIENE SUPPLIES,027747,Commissioning & Asset Management,Children's & Education Services,103,Supplies and Services,504,Equipment,5023,Revenue,CLEANING & JANITORIAL.CLEANING MATERIALS
26-OCT-2022,7019686,59.05,BUNZL UK LTD T/A BUNZL CLEANING & HYGIENE SUPPLIES,027747,Commissioning & Asset Management,Children's & Education Services,103,Supplies and Services,504,Equipment,5023,Revenue,CLEANING & JANITORIAL.CLEANING MATERIALS
26-OCT-2022,7019686,2.88,BUNZL UK LTD T/A BUNZL CLEANING & HYGIENE SUPPLIES,027747,Commissioning & Asset Management,Children's & Education Services,103,Supplies and Services,504,Equipment,5023,Revenue,CLEANING & JANITORIAL.CLEANING MATERIALS
26-OCT-2022,7019686,9.3,BUNZL UK LTD T/A BUNZL CLEANING & HYGIENE SUPPLIES,027747,Commissioning & Asset Management,Children's & Education Services,103,Supplies and Services,504,Equipment,5023,Revenue,CLEANING & JANITORIAL.CLEANING MATERIALS
26-OCT-2022,7019686,9.74,BUNZL UK LTD T/A BUNZL CLEANING & HYGIENE SUPPLIES,027747,Commissioning & Asset Management,Children's & Education Services,103,Supplies and Services,504,Equipment,5023,Revenue,CLEANING & JANITORIAL.CLEANING MATERIALS
26-OCT-2022,7019686,9.74,BUNZL UK LTD T/A BUNZL CLEANING & HYGIENE SUPPLIES,027747,Commissioning & Asset Management,Children's & Education Services,103,Supplies and Services,504,Equipment,5023,Revenue,CLEANING & JANITORIAL.CLEANING MATERIALS
26-OCT-2022,7019686,12.89,BUNZL UK LTD T/A BUNZL CLEANING & HYGIENE SUPPLIES,027747,Commissioning & Asset Management,Children's & Education Services,103,Supplies and Services,504,Equipment,5023,Revenue,CLEANING & JANITORIAL.CLEANING MATERIALS
26-OCT-2022,7019686,20.72,BUNZL UK LTD T/A BUNZL CLEANING & HYGIENE SUPPLIES,027747,Commissioning & Asset Management,Children's & Education Services,103,Supplies and Services,504,Equipment,5023,Revenue,CLEANING & JANITORIAL.CLEANING MATERIALS
26-OCT-2022,7019686,27.74,BUNZL UK LTD T/A BUNZL CLEANING & HYGIENE SUPPLIES,027747,Commissioning & Asset Management,Children's & Education Services,103,Supplies and Services,504,Equipment,5023,Revenue,CLEANING & JANITORIAL.CLEANING MATERIALS
26-OCT-2022,7019686,1.44,BUNZL UK LTD T/A BUNZL CLEANING & HYGIENE SUPPLIES,027747,Commissioning & Asset Management,Children's & Education Services,103,Supplies and Services,504,Equipment,5023,Revenue,CLEANING & JANITORIAL.CLEANING MATERIALS
26-OCT-2022,7019686,4.62,BUNZL UK LTD T/A BUNZL CLEANING & HYGIENE SUPPLIES,027747,Commissioning & Asset Management,Children's & Education Services,103,Supplies and Services,504,Equipment,5023,Revenue,CLEANING & JANITORIAL.CLEANING MATERIALS
26-OCT-2022,7019686,4.87,BUNZL UK LTD T/A BUNZL CLEANING & HYGIENE SUPPLIES,027747,Commissioning & Asset Management,Children's & Education Services,103,Supplies and Services,504,Equipment,5023,Revenue,CLEANING & JANITORIAL.CLEANING MATERIALS
26-OCT-2022,7019686,5.92,BUNZL UK LTD T/A BUNZL CLEANING & HYGIENE SUPPLIES,027747,Commissioning & Asset Management,Children's & Education Services,103,Supplies and Services,504,Equipment,5023,Revenue,CLEANING & JANITORIAL.CLEANING MATERIALS
26-OCT-2022,7019686,6.56,BUNZL UK LTD T/A BUNZL CLEANING & HYGIENE SUPPLIES,027747,Commissioning & Asset Management,Children's & Education Services,103,Supplies and Services,504,Equipment,5023,Revenue,CLEANING & JANITORIAL.CLEANING MATERIALS
26-OCT-2022,7019686,9.3,BUNZL UK LTD T/A BUNZL CLEANING & HYGIENE SUPPLIES,027747,Commissioning & Asset Management,Children's & Education Services,103,Supplies and Services,504,Equipment,5023,Revenue,CLEANING & JANITORIAL.CLEANING MATERIALS
26-OCT-2022,7019686,14.61,BUNZL UK LTD T/A BUNZL CLEANING & HYGIENE SUPPLIES,027747,Commissioning & Asset Management,Children's & Education Services,103,Supplies and Services,504,Equipment,5023,Revenue,CLEANING & JANITORIAL.CLEANING MATERIALS
26-OCT-2022,7019686,25.78,BUNZL UK LTD T/A BUNZL CLEANING & HYGIENE SUPPLIES,027747,Commissioning & Asset Management,Children's & Education Services,103,Supplies and Services,504,Equipment,5023,Revenue,CLEANING & JANITORIAL.CLEANING MATERIALS
26-OCT-2022,7019686,27.14,BUNZL UK LTD T/A BUNZL CLEANING & HYGIENE SUPPLIES,027747,Commissioning & Asset Management,Children's & Education Services,103,Supplies and Services,504,Equipment,5023,Revenue,CLEANING & JANITORIAL.CLEANING MATERIALS
26-OCT-2022,7019686,27.74,BUNZL UK LTD T/A BUNZL CLEANING & HYGIENE SUPPLIES,027747,Commissioning & Asset Management,Children's & Education Services,103,Supplies and Services,504,Equipment,5023,Revenue,CLEANING & JANITORIAL.CLEANING MATERIALS
26-OCT-2022,7019686,59.05,BUNZL UK LTD T/A BUNZL CLEANING & HYGIENE SUPPLIES,027747,Commissioning & Asset Management,Children's & Education Services,103,Supplies and Services,504,Equipment,5023,Revenue,CLEANING & JANITORIAL.CLEANING MATERIALS
26-OCT-2022,7019686,66.71,BUNZL UK LTD T/A BUNZL CLEANING & HYGIENE SUPPLIES,027747,Commissioning & Asset Management,Children's & Education Services,103,Supplies and Services,504,Equipment,5023,Revenue,CLEANING & JANITORIAL.CLEANING MATERIALS
26-OCT-2022,7019686,1.44,BUNZL UK LTD T/A BUNZL CLEANING & HYGIENE SUPPLIES,027747,Commissioning & Asset Management,Children's & Education Services,103,Supplies and Services,504,Equipment,5023,Revenue,CLEANING & JANITORIAL.CLEANING MATERIALS
26-OCT-2022,7019686,4.62,BUNZL UK LTD T/A BUNZL CLEANING & HYGIENE SUPPLIES,027747,Commissioning & Asset Management,Children's & Education Services,103,Supplies and Services,504,Equipment,5023,Revenue,CLEANING & JANITORIAL.CLEANING MATERIALS
26-OCT-2022,7019686,5.92,BUNZL UK LTD T/A BUNZL CLEANING & HYGIENE SUPPLIES,027747,Commissioning & Asset Management,Children's & Education Services,103,Supplies and Services,504,Equipment,5023,Revenue,CLEANING & JANITORIAL.CLEANING MATERIALS
26-OCT-2022,7019686,6.56,BUNZL UK LTD T/A BUNZL CLEANING & HYGIENE SUPPLIES,027747,Commissioning & Asset Management,Children's & Education Services,103,Supplies and Services,504,Equipment,5023,Revenue,CLEANING & JANITORIAL.CLEANING MATERIALS
26-OCT-2022,7019686,9.3,BUNZL UK LTD T/A BUNZL CLEANING & HYGIENE SUPPLIES,027747,Commissioning & Asset Management,Children's & Education Services,103,Supplies and Services,504,Equipment,5023,Revenue,CLEANING & JANITORIAL.CLEANING MATERIALS
26-OCT-2022,7019686,10.36,BUNZL UK LTD T/A BUNZL CLEANING & HYGIENE SUPPLIES,027747,Commissioning & Asset Management,Children's & Education Services,103,Supplies and Services,504,Equipment,5023,Revenue,CLEANING & JANITORIAL.CLEANING MATERIALS
26-OCT-2022,7019686,12.86,BUNZL UK LTD T/A BUNZL CLEANING & HYGIENE SUPPLIES,027747,Commissioning & Asset Management,Children's & Education Services,103,Supplies and Services,504,Equipment,5023,Revenue,CLEANING & JANITORIAL.CLEANING MATERIALS
26-OCT-2022,7019686,29.22,BUNZL UK LTD T/A BUNZL CLEANING & HYGIENE SUPPLIES,027747,Commissioning & Asset Management,Children's & Education Services,103,Supplies and Services,504,Equipment,5023,Revenue,CLEANING & JANITORIAL.CLEANING MATERIALS
26-OCT-2022,7019686,29.22,BUNZL UK LTD T/A BUNZL CLEANING & HYGIENE SUPPLIES,027747,Commissioning & Asset Management,Children's & Education Services,103,Supplies and Services,504,Equipment,5023,Revenue,CLEANING & JANITORIAL.CLEANING MATERIALS
26-OCT-2022,7019686,1.44,BUNZL UK LTD T/A BUNZL CLEANING & HYGIENE SUPPLIES,027747,Commissioning & Asset Management,Children's & Education Services,103,Supplies and Services,504,Equipment,5023,Revenue,CLEANING & JANITORIAL.CLEANING MATERIALS
26-OCT-2022,7019686,4.88,BUNZL UK LTD T/A BUNZL CLEANING & HYGIENE SUPPLIES,027747,Commissioning & Asset Management,Children's & Education Services,103,Supplies and Services,504,Equipment,5023,Revenue,CLEANING & JANITORIAL.CLEANING MATERIALS
26-OCT-2022,7019686,5.92,BUNZL UK LTD T/A BUNZL CLEANING & HYGIENE SUPPLIES,027747,Commissioning & Asset Management,Children's & Education Services,103,Supplies and Services,504,Equipment,5023,Revenue,CLEANING & JANITORIAL.CLEANING MATERIALS
26-OCT-2022,7019686,10.36,BUNZL UK LTD T/A BUNZL CLEANING & HYGIENE SUPPLIES,027747,Commissioning & Asset Management,Children's & Education Services,103,Supplies and Services,504,Equipment,5023,Revenue,CLEANING & JANITORIAL.CLEANING MATERIALS
26-OCT-2022,7019686,12.89,BUNZL UK LTD T/A BUNZL CLEANING & HYGIENE SUPPLIES,027747,Commissioning & Asset Management,Children's & Education Services,103,Supplies and Services,504,Equipment,5023,Revenue,CLEANING & JANITORIAL.CLEANING MATERIALS
26-OCT-2022,7019686,13.87,BUNZL UK LTD T/A BUNZL CLEANING & HYGIENE SUPPLIES,027747,Commissioning & Asset Management,Children's & Education Services,103,Supplies and Services,504,Equipment,5023,Revenue,CLEANING & JANITORIAL.CLEANING MATERIALS
26-OCT-2022,7019686,3.16,BUNZL UK LTD T/A BUNZL CLEANING & HYGIENE SUPPLIES,027747,Commissioning & Asset Management,Children's & Education Services,103,Supplies and Services,504,Equipment,5023,Revenue,CLEANING & JANITORIAL.CLEANING MATERIALS
26-OCT-2022,7019686,4.87,BUNZL UK LTD T/A BUNZL CLEANING & HYGIENE SUPPLIES,027747,Commissioning & Asset Management,Children's & Education Services,103,Supplies and Services,504,Equipment,5023,Revenue,CLEANING & JANITORIAL.CLEANING MATERIALS
26-OCT-2022,7019686,11.84,BUNZL UK LTD T/A BUNZL CLEANING & HYGIENE SUPPLIES,027747,Commissioning & Asset Management,Children's & Education Services,103,Supplies and Services,504,Equipment,5023,Revenue,CLEANING & JANITORIAL.CLEANING MATERIALS
26-OCT-2022,7019686,13.98,BUNZL UK LTD T/A BUNZL CLEANING & HYGIENE SUPPLIES,027747,Commissioning & Asset Management,Children's & Education Services,103,Supplies and Services,504,Equipment,5023,Revenue,CLEANING & JANITORIAL.CLEANING MATERIALS
26-OCT-2022,7019686,17.82,BUNZL UK LTD T/A BUNZL CLEANING & HYGIENE SUPPLIES,027747,Commissioning & Asset Management,Children's & Education Services,103,Supplies and Services,504,Equipment,5023,Revenue,CLEANING & JANITORIAL.CLEANING MATERIALS
26-OCT-2022,7019686,18.6,BUNZL UK LTD T/A BUNZL CLEANING & HYGIENE SUPPLIES,027747,Commissioning & Asset Management,Children's & Education Services,103,Supplies and Services,504,Equipment,5023,Revenue,CLEANING & JANITORIAL.CLEANING MATERIALS
26-OCT-2022,7019686,22.9,BUNZL UK LTD T/A BUNZL CLEANING & HYGIENE SUPPLIES,027747,Commissioning & Asset Management,Children's & Education Services,103,Supplies and Services,504,Equipment,5023,Revenue,CLEANING & JANITORIAL.CLEANING MATERIALS
26-OCT-2022,7019686,23.17,BUNZL UK LTD T/A BUNZL CLEANING & HYGIENE SUPPLIES,027747,Commissioning & Asset Management,Children's & Education Services,103,Supplies and Services,504,Equipment,5023,Revenue,CLEANING & JANITORIAL.CLEANING MATERIALS
26-OCT-2022,7019686,25.72,BUNZL UK LTD T/A BUNZL CLEANING & HYGIENE SUPPLIES,027747,Commissioning & Asset Management,Children's & Education Services,103,Supplies and Services,504,Equipment,5023,Revenue,CLEANING & JANITORIAL.CLEANING MATERIALS
26-OCT-2022,7019686,1.44,BUNZL UK LTD T/A BUNZL CLEANING & HYGIENE SUPPLIES,027747,Commissioning & Asset Management,Children's & Education Services,103,Supplies and Services,504,Equipment,5023,Revenue,CLEANING & JANITORIAL.CLEANING MATERIALS
26-OCT-2022,7019686,7.32,BUNZL UK LTD T/A BUNZL CLEANING & HYGIENE SUPPLIES,027747,Commissioning & Asset Management,Children's & Education Services,103,Supplies and Services,504,Equipment,5023,Revenue,CLEANING & JANITORIAL.CLEANING MATERIALS
26-OCT-2022,7019686,10.36,BUNZL UK LTD T/A BUNZL CLEANING & HYGIENE SUPPLIES,027747,Commissioning & Asset Management,Children's & Education Services,103,Supplies and Services,504,Equipment,5023,Revenue,CLEANING & JANITORIAL.CLEANING MATERIALS
26-OCT-2022,7019686,11.84,BUNZL UK LTD T/A BUNZL CLEANING & HYGIENE SUPPLIES,027747,Commissioning & Asset Management,Children's & Education Services,103,Supplies and Services,504,Equipment,5023,Revenue,CLEANING & JANITORIAL.CLEANING MATERIALS
26-OCT-2022,7019686,14.61,BUNZL UK LTD T/A BUNZL CLEANING & HYGIENE SUPPLIES,027747,Commissioning & Asset Management,Children's & Education Services,103,Supplies and Services,504,Equipment,5023,Revenue,CLEANING & JANITORIAL.CLEANING MATERIALS
26-OCT-2022,7019686,14.61,BUNZL UK LTD T/A BUNZL CLEANING & HYGIENE SUPPLIES,027747,Commissioning & Asset Management,Children's & Education Services,103,Supplies and Services,504,Equipment,5023,Revenue,CLEANING & JANITORIAL.CLEANING MATERIALS
26-OCT-2022,7019686,14.61,BUNZL UK LTD T/A BUNZL CLEANING & HYGIENE SUPPLIES,027747,Commissioning & Asset Management,Children's & Education Services,103,Supplies and Services,504,Equipment,5023,Revenue,CLEANING & JANITORIAL.CLEANING MATERIALS
26-OCT-2022,7019686,55.48,BUNZL UK LTD T/A BUNZL CLEANING & HYGIENE SUPPLIES,027747,Commissioning & Asset Management,Children's & Education Services,103,Supplies and Services,504,Equipment,5023,Revenue,CLEANING & JANITORIAL.CLEANING MATERIALS
26-OCT-2022,7019686,64.3,BUNZL UK LTD T/A BUNZL CLEANING & HYGIENE SUPPLIES,027747,Commissioning & Asset Management,Children's & Education Services,103,Supplies and Services,504,Equipment,5023,Revenue,CLEANING & JANITORIAL.CLEANING MATERIALS
26-OCT-2022,7019686,17.76,BUNZL UK LTD T/A BUNZL CLEANING & HYGIENE SUPPLIES,027747,Commissioning & Asset Management,Children's & Education Services,103,Supplies and Services,504,Equipment,5023,Revenue,CLEANING & JANITORIAL.CLEANING MATERIALS
26-OCT-2022,7019686,22.9,BUNZL UK LTD T/A BUNZL CLEANING & HYGIENE SUPPLIES,027747,Commissioning & Asset Management,Children's & Education Services,103,Supplies and Services,504,Equipment,5023,Revenue,CLEANING & JANITORIAL.CLEANING MATERIALS
26-OCT-2022,7019686,23.17,BUNZL UK LTD T/A BUNZL CLEANING & HYGIENE SUPPLIES,027747,Commissioning & Asset Management,Children's & Education Services,103,Supplies and Services,504,Equipment,5023,Revenue,CLEANING & JANITORIAL.CLEANING MATERIALS
26-OCT-2022,7019686,27.9,BUNZL UK LTD T/A BUNZL CLEANING & HYGIENE SUPPLIES,027747,Commissioning & Asset Management,Children's & Education Services,103,Supplies and Services,504,Equipment,5023,Revenue,CLEANING & JANITORIAL.CLEANING MATERIALS
26-OCT-2022,7019686,29.22,BUNZL UK LTD T/A BUNZL CLEANING & HYGIENE SUPPLIES,027747,Commissioning & Asset Management,Children's & Education Services,103,Supplies and Services,504,Equipment,5023,Revenue,CLEANING & JANITORIAL.CLEANING MATERIALS
26-OCT-2022,7019686,29.22,BUNZL UK LTD T/A BUNZL CLEANING & HYGIENE SUPPLIES,027747,Commissioning & Asset Management,Children's & Education Services,103,Supplies and Services,504,Equipment,5023,Revenue,CLEANING & JANITORIAL.CLEANING MATERIALS
26-OCT-2022,7019686,0.82,BUNZL UK LTD T/A BUNZL CLEANING & HYGIENE SUPPLIES,027747,Commissioning & Asset Management,Children's & Education Services,103,Supplies and Services,504,Equipment,5023,Revenue,CLEANING & JANITORIAL.CLEANING MATERIALS
26-OCT-2022,7019686,0.88,BUNZL UK LTD T/A BUNZL CLEANING & HYGIENE SUPPLIES,027747,Commissioning & Asset Management,Children's & Education Services,103,Supplies and Services,504,Equipment,5023,Revenue,CLEANING & JANITORIAL.CLEANING MATERIALS
26-OCT-2022,7019686,4.62,BUNZL UK LTD T/A BUNZL CLEANING & HYGIENE SUPPLIES,027747,Commissioning & Asset Management,Children's & Education Services,103,Supplies and Services,504,Equipment,5023,Revenue,CLEANING & JANITORIAL.CLEANING MATERIALS
26-OCT-2022,7019686,5.58,BUNZL UK LTD T/A BUNZL CLEANING & HYGIENE SUPPLIES,027747,Commissioning & Asset Management,Children's & Education Services,103,Supplies and Services,504,Equipment,5023,Revenue,CLEANING & JANITORIAL.CLEANING MATERIALS
26-OCT-2022,7019686,5.76,BUNZL UK LTD T/A BUNZL CLEANING & HYGIENE SUPPLIES,027747,Commissioning & Asset Management,Children's & Education Services,103,Supplies and Services,504,Equipment,5023,Revenue,CLEANING & JANITORIAL.CLEANING MATERIALS
26-OCT-2022,7019686,5.92,BUNZL UK LTD T/A BUNZL CLEANING & HYGIENE SUPPLIES,027747,Commissioning & Asset Management,Children's & Education Services,103,Supplies and Services,504,Equipment,5023,Revenue,CLEANING & JANITORIAL.CLEANING MATERIALS
26-OCT-2022,7019686,6.56,BUNZL UK LTD T/A BUNZL CLEANING & HYGIENE SUPPLIES,027747,Commissioning & Asset Management,Children's & Education Services,103,Supplies and Services,504,Equipment,5023,Revenue,CLEANING & JANITORIAL.CLEANING MATERIALS
26-OCT-2022,7019686,7.62,BUNZL UK LTD T/A BUNZL CLEANING & HYGIENE SUPPLIES,027747,Commissioning & Asset Management,Children's & Education Services,103,Supplies and Services,504,Equipment,5023,Revenue,CLEANING & JANITORIAL.CLEANING MATERIALS
26-OCT-2022,7019686,9.74,BUNZL UK LTD T/A BUNZL CLEANING & HYGIENE SUPPLIES,027747,Commissioning & Asset Management,Children's & Education Services,103,Supplies and Services,504,Equipment,5023,Revenue,CLEANING & JANITORIAL.CLEANING MATERIALS
26-OCT-2022,7019686,9.74,BUNZL UK LTD T/A BUNZL CLEANING & HYGIENE SUPPLIES,027747,Commissioning & Asset Management,Children's & Education Services,103,Supplies and Services,504,Equipment,5023,Revenue,CLEANING & JANITORIAL.CLEANING MATERIALS
26-OCT-2022,7019686,9.74,BUNZL UK LTD T/A BUNZL CLEANING & HYGIENE SUPPLIES,027747,Commissioning & Asset Management,Children's & Education Services,103,Supplies and Services,504,Equipment,5023,Revenue,CLEANING & JANITORIAL.CLEANING MATERIALS
26-OCT-2022,7019686,9.74,BUNZL UK LTD T/A BUNZL CLEANING & HYGIENE SUPPLIES,027747,Commissioning & Asset Management,Children's & Education Services,103,Supplies and Services,504,Equipment,5023,Revenue,CLEANING & JANITORIAL.CLEANING MATERIALS
26-OCT-2022,7019686,13.98,BUNZL UK LTD T/A BUNZL CLEANING & HYGIENE SUPPLIES,027747,Commissioning & Asset Management,Children's & Education Services,103,Supplies and Services,504,Equipment,5023,Revenue,CLEANING & JANITORIAL.CLEANING MATERIALS
26-OCT-2022,7019686,14.64,BUNZL UK LTD T/A BUNZL CLEANING & HYGIENE SUPPLIES,027747,Commissioning & Asset Management,Children's & Education Services,103,Supplies and Services,504,Equipment,5023,Revenue,CLEANING & JANITORIAL.CLEANING MATERIALS
26-OCT-2022,7019686,18.6,BUNZL UK LTD T/A BUNZL CLEANING & HYGIENE SUPPLIES,027747,Commissioning & Asset Management,Children's & Education Services,103,Supplies and Services,504,Equipment,5023,Revenue,CLEANING & JANITORIAL.CLEANING MATERIALS
26-OCT-2022,7019686,20.2,BUNZL UK LTD T/A BUNZL CLEANING & HYGIENE SUPPLIES,027747,Commissioning & Asset Management,Children's & Education Services,103,Supplies and Services,504,Equipment,5023,Revenue,CLEANING & JANITORIAL.CLEANING MATERIALS
26-OCT-2022,7019686,22.9,BUNZL UK LTD T/A BUNZL CLEANING & HYGIENE SUPPLIES,027747,Commissioning & Asset Management,Children's & Education Services,103,Supplies and Services,504,Equipment,5023,Revenue,CLEANING & JANITORIAL.CLEANING MATERIALS
26-OCT-2022,7019686,31.08,BUNZL UK LTD T/A BUNZL CLEANING & HYGIENE SUPPLIES,027747,Commissioning & Asset Management,Children's & Education Services,103,Supplies and Services,504,Equipment,5023,Revenue,CLEANING & JANITORIAL.CLEANING MATERIALS
26-OCT-2022,7019686,66.71,BUNZL UK LTD T/A BUNZL CLEANING & HYGIENE SUPPLIES,027747,Commissioning & Asset Management,Children's & Education Services,103,Supplies and Services,504,Equipment,5023,Revenue,CLEANING & JANITORIAL.CLEANING MATERIALS
26-OCT-2022,7019686,77.16,BUNZL UK LTD T/A BUNZL CLEANING & HYGIENE SUPPLIES,027747,Commissioning & Asset Management,Children's & Education Services,103,Supplies and Services,504,Equipment,5023,Revenue,CLEANING & JANITORIAL.CLEANING MATERIALS
26-OCT-2022,7019686,9.24,BUNZL UK LTD T/A BUNZL CLEANING & HYGIENE SUPPLIES,027747,Commissioning & Asset Management,Children's & Education Services,103,Supplies and Services,504,Equipment,5023,Revenue,CLEANING & JANITORIAL.CLEANING MATERIALS
26-OCT-2022,7019686,9.3,BUNZL UK LTD T/A BUNZL CLEANING & HYGIENE SUPPLIES,027747,Commissioning & Asset Management,Children's & Education Services,103,Supplies and Services,504,Equipment,5023,Revenue,CLEANING & JANITORIAL.CLEANING MATERIALS
26-OCT-2022,7019686,10.36,BUNZL UK LTD T/A BUNZL CLEANING & HYGIENE SUPPLIES,027747,Commissioning & Asset Management,Children's & Education Services,103,Supplies and Services,504,Equipment,5023,Revenue,CLEANING & JANITORIAL.CLEANING MATERIALS
26-OCT-2022,7019686,11.84,BUNZL UK LTD T/A BUNZL CLEANING & HYGIENE SUPPLIES,027747,Commissioning & Asset Management,Children's & Education Services,103,Supplies and Services,504,Equipment,5023,Revenue,CLEANING & JANITORIAL.CLEANING MATERIALS
26-OCT-2022,7019686,12.89,BUNZL UK LTD T/A BUNZL CLEANING & HYGIENE SUPPLIES,027747,Commissioning & Asset Management,Children's & Education Services,103,Supplies and Services,504,Equipment,5023,Revenue,CLEANING & JANITORIAL.CLEANING MATERIALS
26-OCT-2022,7019686,19.48,BUNZL UK LTD T/A BUNZL CLEANING & HYGIENE SUPPLIES,027747,Commissioning & Asset Management,Children's & Education Services,103,Supplies and Services,504,Equipment,5023,Revenue,CLEANING & JANITORIAL.CLEANING MATERIALS
26-OCT-2022,7019686,29.22,BUNZL UK LTD T/A BUNZL CLEANING & HYGIENE SUPPLIES,027747,Commissioning & Asset Management,Children's & Education Services,103,Supplies and Services,504,Equipment,5023,Revenue,CLEANING & JANITORIAL.CLEANING MATERIALS
26-OCT-2022,7019686,3.97,BUNZL UK LTD T/A BUNZL CLEANING & HYGIENE SUPPLIES,027747,Commissioning & Asset Management,Children's & Education Services,103,Supplies and Services,504,Equipment,5023,Revenue,CLEANING & JANITORIAL.CLEANING MATERIALS
26-OCT-2022,7019686,5.92,BUNZL UK LTD T/A BUNZL CLEANING & HYGIENE SUPPLIES,027747,Commissioning & Asset Management,Children's & Education Services,103,Supplies and Services,504,Equipment,5023,Revenue,CLEANING & JANITORIAL.CLEANING MATERIALS
26-OCT-2022,7019686,11.45,BUNZL UK LTD T/A BUNZL CLEANING & HYGIENE SUPPLIES,027747,Commissioning & Asset Management,Children's & Education Services,103,Supplies and Services,504,Equipment,5023,Revenue,CLEANING & JANITORIAL.CLEANING MATERIALS
26-OCT-2022,7019686,14.61,BUNZL UK LTD T/A BUNZL CLEANING & HYGIENE SUPPLIES,027747,Commissioning & Asset Management,Children's & Education Services,103,Supplies and Services,504,Equipment,5023,Revenue,CLEANING & JANITORIAL.CLEANING MATERIALS
26-OCT-2022,7019686,14.61,BUNZL UK LTD T/A BUNZL CLEANING & HYGIENE SUPPLIES,027747,Commissioning & Asset Management,Children's & Education Services,103,Supplies and Services,504,Equipment,5023,Revenue,CLEANING & JANITORIAL.CLEANING MATERIALS
26-OCT-2022,7019686,25.72,BUNZL UK LTD T/A BUNZL CLEANING & HYGIENE SUPPLIES,027747,Commissioning & Asset Management,Children's & Education Services,103,Supplies and Services,504,Equipment,5023,Revenue,CLEANING & JANITORIAL.CLEANING MATERIALS
26-OCT-2022,7019686,31.08,BUNZL UK LTD T/A BUNZL CLEANING & HYGIENE SUPPLIES,027747,Commissioning & Asset Management,Children's & Education Services,103,Supplies and Services,504,Equipment,5023,Revenue,CLEANING & JANITORIAL.CLEANING MATERIALS
26-OCT-2022,7019686,59.05,BUNZL UK LTD T/A BUNZL CLEANING & HYGIENE SUPPLIES,027747,Commissioning & Asset Management,Children's & Education Services,103,Supplies and Services,504,Equipment,5023,Revenue,CLEANING & JANITORIAL.CLEANING MATERIALS
26-OCT-2022,7019686,1.44,BUNZL UK LTD T/A BUNZL CLEANING & HYGIENE SUPPLIES,027747,Commissioning & Asset Management,Children's & Education Services,103,Supplies and Services,504,Equipment,5023,Revenue,CLEANING & JANITORIAL.CLEANING MATERIALS
26-OCT-2022,7019686,4.28,BUNZL UK LTD T/A BUNZL CLEANING & HYGIENE SUPPLIES,027747,Commissioning & Asset Management,Children's & Education Services,103,Supplies and Services,504,Equipment,5023,Revenue,CLEANING & JANITORIAL.CLEANING MATERIALS
26-OCT-2022,7019686,4.6,BUNZL UK LTD T/A BUNZL CLEANING & HYGIENE SUPPLIES,027747,Commissioning & Asset Management,Children's & Education Services,103,Supplies and Services,504,Equipment,5023,Revenue,CLEANING & JANITORIAL.CLEANING MATERIALS
26-OCT-2022,7019686,4.87,BUNZL UK LTD T/A BUNZL CLEANING & HYGIENE SUPPLIES,027747,Commissioning & Asset Management,Children's & Education Services,103,Supplies and Services,504,Equipment,5023,Revenue,CLEANING & JANITORIAL.CLEANING MATERIALS
26-OCT-2022,7019686,4.87,BUNZL UK LTD T/A BUNZL CLEANING & HYGIENE SUPPLIES,027747,Commissioning & Asset Management,Children's & Education Services,103,Supplies and Services,504,Equipment,5023,Revenue,CLEANING & JANITORIAL.CLEANING MATERIALS
26-OCT-2022,7019686,5.58,BUNZL UK LTD T/A BUNZL CLEANING & HYGIENE SUPPLIES,027747,Commissioning & Asset Management,Children's & Education Services,103,Supplies and Services,504,Equipment,5023,Revenue,CLEANING & JANITORIAL.CLEANING MATERIALS
26-OCT-2022,7019686,9.74,BUNZL UK LTD T/A BUNZL CLEANING & HYGIENE SUPPLIES,027747,Commissioning & Asset Management,Children's & Education Services,103,Supplies and Services,504,Equipment,5023,Revenue,CLEANING & JANITORIAL.CLEANING MATERIALS
26-OCT-2022,7019686,11.84,BUNZL UK LTD T/A BUNZL CLEANING & HYGIENE SUPPLIES,027747,Commissioning & Asset Management,Children's & Education Services,103,Supplies and Services,504,Equipment,5023,Revenue,CLEANING & JANITORIAL.CLEANING MATERIALS
26-OCT-2022,7019686,18.6,BUNZL UK LTD T/A BUNZL CLEANING & HYGIENE SUPPLIES,027747,Commissioning & Asset Management,Children's & Education Services,103,Supplies and Services,504,Equipment,5023,Revenue,CLEANING & JANITORIAL.CLEANING MATERIALS
26-OCT-2022,7019686,19.48,BUNZL UK LTD T/A BUNZL CLEANING & HYGIENE SUPPLIES,027747,Commissioning & Asset Management,Children's & Education Services,103,Supplies and Services,504,Equipment,5023,Revenue,CLEANING & JANITORIAL.CLEANING MATERIALS
26-OCT-2022,7019686,20.72,BUNZL UK LTD T/A BUNZL CLEANING & HYGIENE SUPPLIES,027747,Commissioning & Asset Management,Children's & Education Services,103,Supplies and Services,504,Equipment,5023,Revenue,CLEANING & JANITORIAL.CLEANING MATERIALS
26-OCT-2022,7019686,1.84,BUNZL UK LTD T/A BUNZL CLEANING & HYGIENE SUPPLIES,027747,Commissioning & Asset Management,Children's & Education Services,103,Supplies and Services,504,Equipment,5023,Revenue,CLEANING & JANITORIAL.CLEANING MATERIALS
26-OCT-2022,7019686,2.88,BUNZL UK LTD T/A BUNZL CLEANING & HYGIENE SUPPLIES,027747,Commissioning & Asset Management,Children's & Education Services,103,Supplies and Services,504,Equipment,5023,Revenue,CLEANING & JANITORIAL.CLEANING MATERIALS
26-OCT-2022,7019686,4.62,BUNZL UK LTD T/A BUNZL CLEANING & HYGIENE SUPPLIES,027747,Commissioning & Asset Management,Children's & Education Services,103,Supplies and Services,504,Equipment,5023,Revenue,CLEANING & JANITORIAL.CLEANING MATERIALS
26-OCT-2022,7019686,6.56,BUNZL UK LTD T/A BUNZL CLEANING & HYGIENE SUPPLIES,027747,Commissioning & Asset Management,Children's & Education Services,103,Supplies and Services,504,Equipment,5023,Revenue,CLEANING & JANITORIAL.CLEANING MATERIALS
26-OCT-2022,7019686,7.94,BUNZL UK LTD T/A BUNZL CLEANING & HYGIENE SUPPLIES,027747,Commissioning & Asset Management,Children's & Education Services,103,Supplies and Services,504,Equipment,5023,Revenue,CLEANING & JANITORIAL.CLEANING MATERIALS
26-OCT-2022,7019686,10.36,BUNZL UK LTD T/A BUNZL CLEANING & HYGIENE SUPPLIES,027747,Commissioning & Asset Management,Children's & Education Services,103,Supplies and Services,504,Equipment,5023,Revenue,CLEANING & JANITORIAL.CLEANING MATERIALS
26-OCT-2022,7019686,12.86,BUNZL UK LTD T/A BUNZL CLEANING & HYGIENE SUPPLIES,027747,Commissioning & Asset Management,Children's & Education Services,103,Supplies and Services,504,Equipment,5023,Revenue,CLEANING & JANITORIAL.CLEANING MATERIALS
26-OCT-2022,7019686,13.87,BUNZL UK LTD T/A BUNZL CLEANING & HYGIENE SUPPLIES,027747,Commissioning & Asset Management,Children's & Education Services,103,Supplies and Services,504,Equipment,5023,Revenue,CLEANING & JANITORIAL.CLEANING MATERIALS
26-OCT-2022,7019686,1.44,BUNZL UK LTD T/A BUNZL CLEANING & HYGIENE SUPPLIES,027747,Commissioning & Asset Management,Children's & Education Services,103,Supplies and Services,504,Equipment,5023,Revenue,CLEANING & JANITORIAL.CLEANING MATERIALS
26-OCT-2022,7019686,2.96,BUNZL UK LTD T/A BUNZL CLEANING & HYGIENE SUPPLIES,027747,Commissioning & Asset Management,Children's & Education Services,103,Supplies and Services,504,Equipment,5023,Revenue,CLEANING & JANITORIAL.CLEANING MATERIALS
26-OCT-2022,7019686,4.62,BUNZL UK LTD T/A BUNZL CLEANING & HYGIENE SUPPLIES,027747,Commissioning & Asset Management,Children's & Education Services,103,Supplies and Services,504,Equipment,5023,Revenue,CLEANING & JANITORIAL.CLEANING MATERIALS
26-OCT-2022,7019686,4.87,BUNZL UK LTD T/A BUNZL CLEANING & HYGIENE SUPPLIES,027747,Commissioning & Asset Management,Children's & Education Services,103,Supplies and Services,504,Equipment,5023,Revenue,CLEANING & JANITORIAL.CLEANING MATERIALS
26-OCT-2022,7019686,4.87,BUNZL UK LTD T/A BUNZL CLEANING & HYGIENE SUPPLIES,027747,Commissioning & Asset Management,Children's & Education Services,103,Supplies and Services,504,Equipment,5023,Revenue,CLEANING & JANITORIAL.CLEANING MATERIALS
26-OCT-2022,7019686,4.88,BUNZL UK LTD T/A BUNZL CLEANING & HYGIENE SUPPLIES,027747,Commissioning & Asset Management,Children's & Education Services,103,Supplies and Services,504,Equipment,5023,Revenue,CLEANING & JANITORIAL.CLEANING MATERIALS
26-OCT-2022,7019686,18.6,BUNZL UK LTD T/A BUNZL CLEANING & HYGIENE SUPPLIES,027747,Commissioning & Asset Management,Children's & Education Services,103,Supplies and Services,504,Equipment,5023,Revenue,CLEANING & JANITORIAL.CLEANING MATERIALS
26-OCT-2022,7019686,19.48,BUNZL UK LTD T/A BUNZL CLEANING & HYGIENE SUPPLIES,027747,Commissioning & Asset Management,Children's & Education Services,103,Supplies and Services,504,Equipment,5023,Revenue,CLEANING & JANITORIAL.CLEANING MATERIALS
26-OCT-2022,7019686,20.72,BUNZL UK LTD T/A BUNZL CLEANING & HYGIENE SUPPLIES,027747,Commissioning & Asset Management,Children's & Education Services,103,Supplies and Services,504,Equipment,5023,Revenue,CLEANING & JANITORIAL.CLEANING MATERIALS
26-OCT-2022,7019686,25.72,BUNZL UK LTD T/A BUNZL CLEANING & HYGIENE SUPPLIES,027747,Commissioning & Asset Management,Children's & Education Services,103,Supplies and Services,504,Equipment,5023,Revenue,CLEANING & JANITORIAL.CLEANING MATERIALS
26-OCT-2022,7019686,29.22,BUNZL UK LTD T/A BUNZL CLEANING & HYGIENE SUPPLIES,027747,Commissioning & Asset Management,Children's & Education Services,103,Supplies and Services,504,Equipment,5023,Revenue,CLEANING & JANITORIAL.CLEANING MATERIALS
26-OCT-2022,7019686,41.61,BUNZL UK LTD T/A BUNZL CLEANING & HYGIENE SUPPLIES,027747,Commissioning & Asset Management,Children's & Education Services,103,Supplies and Services,504,Equipment,5023,Revenue,CLEANING & JANITORIAL.CLEANING MATERIALS
26-OCT-2022,7019686,1.84,BUNZL UK LTD T/A BUNZL CLEANING & HYGIENE SUPPLIES,027747,Commissioning & Asset Management,Children's & Education Services,103,Supplies and Services,504,Equipment,5023,Revenue,CLEANING & JANITORIAL.CLEANING MATERIALS
26-OCT-2022,7019686,4.62,BUNZL UK LTD T/A BUNZL CLEANING & HYGIENE SUPPLIES,027747,Commissioning & Asset Management,Children's & Education Services,103,Supplies and Services,504,Equipment,5023,Revenue,CLEANING & JANITORIAL.CLEANING MATERIALS
26-OCT-2022,7019686,5.76,BUNZL UK LTD T/A BUNZL CLEANING & HYGIENE SUPPLIES,027747,Commissioning & Asset Management,Children's & Education Services,103,Supplies and Services,504,Equipment,5023,Revenue,CLEANING & JANITORIAL.CLEANING MATERIALS
26-OCT-2022,7019686,9.76,BUNZL UK LTD T/A BUNZL CLEANING & HYGIENE SUPPLIES,027747,Commissioning & Asset Management,Children's & Education Services,103,Supplies and Services,504,Equipment,5023,Revenue,CLEANING & JANITORIAL.CLEANING MATERIALS
26-OCT-2022,7019686,12.89,BUNZL UK LTD T/A BUNZL CLEANING & HYGIENE SUPPLIES,027747,Commissioning & Asset Management,Children's & Education Services,103,Supplies and Services,504,Equipment,5023,Revenue,CLEANING & JANITORIAL.CLEANING MATERIALS
26-OCT-2022,7019686,19.48,BUNZL UK LTD T/A BUNZL CLEANING & HYGIENE SUPPLIES,027747,Commissioning & Asset Management,Children's & Education Services,103,Supplies and Services,504,Equipment,5023,Revenue,CLEANING & JANITORIAL.CLEANING MATERIALS
26-OCT-2022,7019686,19.48,BUNZL UK LTD T/A BUNZL CLEANING & HYGIENE SUPPLIES,027747,Commissioning & Asset Management,Children's & Education Services,103,Supplies and Services,504,Equipment,5023,Revenue,CLEANING & JANITORIAL.CLEANING MATERIALS
26-OCT-2022,7019686,23.68,BUNZL UK LTD T/A BUNZL CLEANING & HYGIENE SUPPLIES,027747,Commissioning & Asset Management,Children's & Education Services,103,Supplies and Services,504,Equipment,5023,Revenue,CLEANING & JANITORIAL.CLEANING MATERIALS
26-OCT-2022,7019686,83.22,BUNZL UK LTD T/A BUNZL CLEANING & HYGIENE SUPPLIES,027747,Commissioning & Asset Management,Children's & Education Services,103,Supplies and Services,504,Equipment,5023,Revenue,CLEANING & JANITORIAL.CLEANING MATERIALS
26-OCT-2022,7019686,1.44,BUNZL UK LTD T/A BUNZL CLEANING & HYGIENE SUPPLIES,027747,Commissioning & Asset Management,Children's & Education Services,103,Supplies and Services,504,Equipment,5023,Revenue,CLEANING & JANITORIAL.CLEANING MATERIALS
26-OCT-2022,7019686,2.3,BUNZL UK LTD T/A BUNZL CLEANING & HYGIENE SUPPLIES,027747,Commissioning & Asset Management,Children's & Education Services,103,Supplies and Services,504,Equipment,5023,Revenue,CLEANING & JANITORIAL.CLEANING MATERIALS
26-OCT-2022,7019686,4.62,BUNZL UK LTD T/A BUNZL CLEANING & HYGIENE SUPPLIES,027747,Commissioning & Asset Management,Children's & Education Services,103,Supplies and Services,504,Equipment,5023,Revenue,CLEANING & JANITORIAL.CLEANING MATERIALS
26-OCT-2022,7019686,6.56,BUNZL UK LTD T/A BUNZL CLEANING & HYGIENE SUPPLIES,027747,Commissioning & Asset Management,Children's & Education Services,103,Supplies and Services,504,Equipment,5023,Revenue,CLEANING & JANITORIAL.CLEANING MATERIALS
26-OCT-2022,7019686,9.3,BUNZL UK LTD T/A BUNZL CLEANING & HYGIENE SUPPLIES,027747,Commissioning & Asset Management,Children's & Education Services,103,Supplies and Services,504,Equipment,5023,Revenue,CLEANING & JANITORIAL.CLEANING MATERIALS
26-OCT-2022,7019686,9.74,BUNZL UK LTD T/A BUNZL CLEANING & HYGIENE SUPPLIES,027747,Commissioning & Asset Management,Children's & Education Services,103,Supplies and Services,504,Equipment,5023,Revenue,CLEANING & JANITORIAL.CLEANING MATERIALS
26-OCT-2022,7019686,9.74,BUNZL UK LTD T/A BUNZL CLEANING & HYGIENE SUPPLIES,027747,Commissioning & Asset Management,Children's & Education Services,103,Supplies and Services,504,Equipment,5023,Revenue,CLEANING & JANITORIAL.CLEANING MATERIALS
26-OCT-2022,7019686,10.1,BUNZL UK LTD T/A BUNZL CLEANING & HYGIENE SUPPLIES,027747,Commissioning & Asset Management,Children's & Education Services,103,Supplies and Services,504,Equipment,5023,Revenue,CLEANING & JANITORIAL.CLEANING MATERIALS
26-OCT-2022,7019686,11.45,BUNZL UK LTD T/A BUNZL CLEANING & HYGIENE SUPPLIES,027747,Commissioning & Asset Management,Children's & Education Services,103,Supplies and Services,504,Equipment,5023,Revenue,CLEANING & JANITORIAL.CLEANING MATERIALS
26-OCT-2022,7019686,12.7,BUNZL UK LTD T/A BUNZL CLEANING & HYGIENE SUPPLIES,027747,Commissioning & Asset Management,Children's & Education Services,103,Supplies and Services,504,Equipment,5023,Revenue,CLEANING & JANITORIAL.CLEANING MATERIALS
26-OCT-2022,7019686,14.61,BUNZL UK LTD T/A BUNZL CLEANING & HYGIENE SUPPLIES,027747,Commissioning & Asset Management,Children's & Education Services,103,Supplies and Services,504,Equipment,5023,Revenue,CLEANING & JANITORIAL.CLEANING MATERIALS
26-OCT-2022,7019686,17.82,BUNZL UK LTD T/A BUNZL CLEANING & HYGIENE SUPPLIES,027747,Commissioning & Asset Management,Children's & Education Services,103,Supplies and Services,504,Equipment,5023,Revenue,CLEANING & JANITORIAL.CLEANING MATERIALS
26-OCT-2022,7019686,23.17,BUNZL UK LTD T/A BUNZL CLEANING & HYGIENE SUPPLIES,027747,Commissioning & Asset Management,Children's & Education Services,103,Supplies and Services,504,Equipment,5023,Revenue,CLEANING & JANITORIAL.CLEANING MATERIALS
26-OCT-2022,7019686,38.96,BUNZL UK LTD T/A BUNZL CLEANING & HYGIENE SUPPLIES,027747,Commissioning & Asset Management,Children's & Education Services,103,Supplies and Services,504,Equipment,5023,Revenue,CLEANING & JANITORIAL.CLEANING MATERIALS
26-OCT-2022,7019686,2.14,BUNZL UK LTD T/A BUNZL CLEANING & HYGIENE SUPPLIES,027747,Commissioning & Asset Management,Children's & Education Services,103,Supplies and Services,504,Equipment,5023,Revenue,CLEANING & JANITORIAL.CLEANING MATERIALS
26-OCT-2022,7019686,9.3,BUNZL UK LTD T/A BUNZL CLEANING & HYGIENE SUPPLIES,027747,Commissioning & Asset Management,Children's & Education Services,103,Supplies and Services,504,Equipment,5023,Revenue,CLEANING & JANITORIAL.CLEANING MATERIALS
26-OCT-2022,7019686,10.36,BUNZL UK LTD T/A BUNZL CLEANING & HYGIENE SUPPLIES,027747,Commissioning & Asset Management,Children's & Education Services,103,Supplies and Services,504,Equipment,5023,Revenue,CLEANING & JANITORIAL.CLEANING MATERIALS
26-OCT-2022,7019686,13.87,BUNZL UK LTD T/A BUNZL CLEANING & HYGIENE SUPPLIES,027747,Commissioning & Asset Management,Children's & Education Services,103,Supplies and Services,504,Equipment,5023,Revenue,CLEANING & JANITORIAL.CLEANING MATERIALS
26-OCT-2022,7019686,4.62,BUNZL UK LTD T/A BUNZL CLEANING & HYGIENE SUPPLIES,027747,Commissioning & Asset Management,Children's & Education Services,103,Supplies and Services,504,Equipment,5023,Revenue,CLEANING & JANITORIAL.CLEANING MATERIALS
26-OCT-2022,7019686,4.65,BUNZL UK LTD T/A BUNZL CLEANING & HYGIENE SUPPLIES,027747,Commissioning & Asset Management,Children's & Education Services,103,Supplies and Services,504,Equipment,5023,Revenue,CLEANING & JANITORIAL.CLEANING MATERIALS
26-OCT-2022,7019686,4.87,BUNZL UK LTD T/A BUNZL CLEANING & HYGIENE SUPPLIES,027747,Commissioning & Asset Management,Children's & Education Services,103,Supplies and Services,504,Equipment,5023,Revenue,CLEANING & JANITORIAL.CLEANING MATERIALS
26-OCT-2022,7019686,4.87,BUNZL UK LTD T/A BUNZL CLEANING & HYGIENE SUPPLIES,027747,Commissioning & Asset Management,Children's & Education Services,103,Supplies and Services,504,Equipment,5023,Revenue,CLEANING & JANITORIAL.CLEANING MATERIALS
26-OCT-2022,7019686,4.88,BUNZL UK LTD T/A BUNZL CLEANING & HYGIENE SUPPLIES,027747,Commissioning & Asset Management,Children's & Education Services,103,Supplies and Services,504,Equipment,5023,Revenue,CLEANING & JANITORIAL.CLEANING MATERIALS
26-OCT-2022,7019686,5.18,BUNZL UK LTD T/A BUNZL CLEANING & HYGIENE SUPPLIES,027747,Commissioning & Asset Management,Children's & Education Services,103,Supplies and Services,504,Equipment,5023,Revenue,CLEANING & JANITORIAL.CLEANING MATERIALS
26-OCT-2022,7019686,5.66,BUNZL UK LTD T/A BUNZL CLEANING & HYGIENE SUPPLIES,027747,Commissioning & Asset Management,Children's & Education Services,103,Supplies and Services,504,Equipment,5023,Revenue,CLEANING & JANITORIAL.CLEANING MATERIALS
26-OCT-2022,7019686,6.56,BUNZL UK LTD T/A BUNZL CLEANING & HYGIENE SUPPLIES,027747,Commissioning & Asset Management,Children's & Education Services,103,Supplies and Services,504,Equipment,5023,Revenue,CLEANING & JANITORIAL.CLEANING MATERIALS
26-OCT-2022,7019686,8.88,BUNZL UK LTD T/A BUNZL CLEANING & HYGIENE SUPPLIES,027747,Commissioning & Asset Management,Children's & Education Services,103,Supplies and Services,504,Equipment,5023,Revenue,CLEANING & JANITORIAL.CLEANING MATERIALS
26-OCT-2022,7019686,9.3,BUNZL UK LTD T/A BUNZL CLEANING & HYGIENE SUPPLIES,027747,Commissioning & Asset Management,Children's & Education Services,103,Supplies and Services,504,Equipment,5023,Revenue,CLEANING & JANITORIAL.CLEANING MATERIALS
26-OCT-2022,7019686,9.74,BUNZL UK LTD T/A BUNZL CLEANING & HYGIENE SUPPLIES,027747,Commissioning & Asset Management,Children's & Education Services,103,Supplies and Services,504,Equipment,5023,Revenue,CLEANING & JANITORIAL.CLEANING MATERIALS
26-OCT-2022,7019686,12.86,BUNZL UK LTD T/A BUNZL CLEANING & HYGIENE SUPPLIES,027747,Commissioning & Asset Management,Children's & Education Services,103,Supplies and Services,504,Equipment,5023,Revenue,CLEANING & JANITORIAL.CLEANING MATERIALS
26-OCT-2022,7019686,12.89,BUNZL UK LTD T/A BUNZL CLEANING & HYGIENE SUPPLIES,027747,Commissioning & Asset Management,Children's & Education Services,103,Supplies and Services,504,Equipment,5023,Revenue,CLEANING & JANITORIAL.CLEANING MATERIALS
26-OCT-2022,7019686,14.61,BUNZL UK LTD T/A BUNZL CLEANING & HYGIENE SUPPLIES,027747,Commissioning & Asset Management,Children's & Education Services,103,Supplies and Services,504,Equipment,5023,Revenue,CLEANING & JANITORIAL.CLEANING MATERIALS
26-OCT-2022,7019686,22.9,BUNZL UK LTD T/A BUNZL CLEANING & HYGIENE SUPPLIES,027747,Commissioning & Asset Management,Children's & Education Services,103,Supplies and Services,504,Equipment,5023,Revenue,CLEANING & JANITORIAL.CLEANING MATERIALS
26-OCT-2022,7019686,108.86,BUNZL UK LTD T/A BUNZL CLEANING & HYGIENE SUPPLIES,027747,Commissioning & Asset Management,Children's & Education Services,103,Supplies and Services,504,Equipment,5023,Revenue,CLEANING & JANITORIAL.CLEANING MATERIALS
26-OCT-2022,7019686,0.82,BUNZL UK LTD T/A BUNZL CLEANING & HYGIENE SUPPLIES,027747,Commissioning & Asset Management,Children's & Education Services,103,Supplies and Services,504,Equipment,5023,Revenue,CLEANING & JANITORIAL.CLEANING MATERIALS
26-OCT-2022,7019686,0.88,BUNZL UK LTD T/A BUNZL CLEANING & HYGIENE SUPPLIES,027747,Commissioning & Asset Management,Children's & Education Services,103,Supplies and Services,504,Equipment,5023,Revenue,CLEANING & JANITORIAL.CLEANING MATERIALS
26-OCT-2022,7019686,64.3,BUNZL UK LTD T/A BUNZL CLEANING & HYGIENE SUPPLIES,027747,Commissioning & Asset Management,Children's & Education Services,103,Supplies and Services,504,Equipment,5023,Revenue,CLEANING & JANITORIAL.CLEANING MATERIALS
26-OCT-2022,7019686,1.44,BUNZL UK LTD T/A BUNZL CLEANING & HYGIENE SUPPLIES,027747,Commissioning & Asset Management,Children's & Education Services,103,Supplies and Services,504,Equipment,5023,Revenue,CLEANING & JANITORIAL.CLEANING MATERIALS
26-OCT-2022,7019686,4.62,BUNZL UK LTD T/A BUNZL CLEANING & HYGIENE SUPPLIES,027747,Commissioning & Asset Management,Children's & Education Services,103,Supplies and Services,504,Equipment,5023,Revenue,CLEANING & JANITORIAL.CLEANING MATERIALS
26-OCT-2022,7019686,9.74,BUNZL UK LTD T/A BUNZL CLEANING & HYGIENE SUPPLIES,027747,Commissioning & Asset Management,Children's & Education Services,103,Supplies and Services,504,Equipment,5023,Revenue,CLEANING & JANITORIAL.CLEANING MATERIALS
26-OCT-2022,7019686,10.1,BUNZL UK LTD T/A BUNZL CLEANING & HYGIENE SUPPLIES,027747,Commissioning & Asset Management,Children's & Education Services,103,Supplies and Services,504,Equipment,5023,Revenue,CLEANING & JANITORIAL.CLEANING MATERIALS
26-OCT-2022,7019686,14.61,BUNZL UK LTD T/A BUNZL CLEANING & HYGIENE SUPPLIES,027747,Commissioning & Asset Management,Children's & Education Services,103,Supplies and Services,504,Equipment,5023,Revenue,CLEANING & JANITORIAL.CLEANING MATERIALS
26-OCT-2022,7019686,14.61,BUNZL UK LTD T/A BUNZL CLEANING & HYGIENE SUPPLIES,027747,Commissioning & Asset Management,Children's & Education Services,103,Supplies and Services,504,Equipment,5023,Revenue,CLEANING & JANITORIAL.CLEANING MATERIALS
26-OCT-2022,7019686,0.92,BUNZL UK LTD T/A BUNZL CLEANING & HYGIENE SUPPLIES,027747,Commissioning & Asset Management,Children's & Education Services,103,Supplies and Services,504,Equipment,5023,Revenue,CLEANING & JANITORIAL.CLEANING MATERIALS
26-OCT-2022,7019686,2.12,BUNZL UK LTD T/A BUNZL CLEANING & HYGIENE SUPPLIES,027747,Commissioning & Asset Management,Children's & Education Services,103,Supplies and Services,504,Equipment,5023,Revenue,CLEANING & JANITORIAL.CLEANING MATERIALS
26-OCT-2022,7019686,2.14,BUNZL UK LTD T/A BUNZL CLEANING & HYGIENE SUPPLIES,027747,Commissioning & Asset Management,Children's & Education Services,103,Supplies and Services,504,Equipment,5023,Revenue,CLEANING & JANITORIAL.CLEANING MATERIALS
26-OCT-2022,7019686,2.54,BUNZL UK LTD T/A BUNZL CLEANING & HYGIENE SUPPLIES,027747,Commissioning & Asset Management,Children's & Education Services,103,Supplies and Services,504,Equipment,5023,Revenue,CLEANING & JANITORIAL.CLEANING MATERIALS
26-OCT-2022,7019686,2.96,BUNZL UK LTD T/A BUNZL CLEANING & HYGIENE SUPPLIES,027747,Commissioning & Asset Management,Children's & Education Services,103,Supplies and Services,504,Equipment,5023,Revenue,CLEANING & JANITORIAL.CLEANING MATERIALS
26-OCT-2022,7019686,3.97,BUNZL UK LTD T/A BUNZL CLEANING & HYGIENE SUPPLIES,027747,Commissioning & Asset Management,Children's & Education Services,103,Supplies and Services,504,Equipment,5023,Revenue,CLEANING & JANITORIAL.CLEANING MATERIALS
26-OCT-2022,7019686,4.62,BUNZL UK LTD T/A BUNZL CLEANING & HYGIENE SUPPLIES,027747,Commissioning & Asset Management,Children's & Education Services,103,Supplies and Services,504,Equipment,5023,Revenue,CLEANING & JANITORIAL.CLEANING MATERIALS
26-OCT-2022,7019686,4.65,BUNZL UK LTD T/A BUNZL CLEANING & HYGIENE SUPPLIES,027747,Commissioning & Asset Management,Children's & Education Services,103,Supplies and Services,504,Equipment,5023,Revenue,CLEANING & JANITORIAL.CLEANING MATERIALS
26-OCT-2022,7019686,4.65,BUNZL UK LTD T/A BUNZL CLEANING & HYGIENE SUPPLIES,027747,Commissioning & Asset Management,Children's & Education Services,103,Supplies and Services,504,Equipment,5023,Revenue,CLEANING & JANITORIAL.CLEANING MATERIALS
26-OCT-2022,7019686,4.87,BUNZL UK LTD T/A BUNZL CLEANING & HYGIENE SUPPLIES,027747,Commissioning & Asset Management,Children's & Education Services,103,Supplies and Services,504,Equipment,5023,Revenue,CLEANING & JANITORIAL.CLEANING MATERIALS
26-OCT-2022,7019686,4.87,BUNZL UK LTD T/A BUNZL CLEANING & HYGIENE SUPPLIES,027747,Commissioning & Asset Management,Children's & Education Services,103,Supplies and Services,504,Equipment,5023,Revenue,CLEANING & JANITORIAL.CLEANING MATERIALS
26-OCT-2022,7019686,4.87,BUNZL UK LTD T/A BUNZL CLEANING & HYGIENE SUPPLIES,027747,Commissioning & Asset Management,Children's & Education Services,103,Supplies and Services,504,Equipment,5023,Revenue,CLEANING & JANITORIAL.CLEANING MATERIALS
26-OCT-2022,7019686,4.87,BUNZL UK LTD T/A BUNZL CLEANING & HYGIENE SUPPLIES,027747,Commissioning & Asset Management,Children's & Education Services,103,Supplies and Services,504,Equipment,5023,Revenue,CLEANING & JANITORIAL.CLEANING MATERIALS
26-OCT-2022,7019686,4.88,BUNZL UK LTD T/A BUNZL CLEANING & HYGIENE SUPPLIES,027747,Commissioning & Asset Management,Children's & Education Services,103,Supplies and Services,504,Equipment,5023,Revenue,CLEANING & JANITORIAL.CLEANING MATERIALS
26-OCT-2022,7019686,5.92,BUNZL UK LTD T/A BUNZL CLEANING & HYGIENE SUPPLIES,027747,Commissioning & Asset Management,Children's & Education Services,103,Supplies and Services,504,Equipment,5023,Revenue,CLEANING & JANITORIAL.CLEANING MATERIALS
26-OCT-2022,7019686,6.99,BUNZL UK LTD T/A BUNZL CLEANING & HYGIENE SUPPLIES,027747,Commissioning & Asset Management,Children's & Education Services,103,Supplies and Services,504,Equipment,5023,Revenue,CLEANING & JANITORIAL.CLEANING MATERIALS
26-OCT-2022,7019686,10.1,BUNZL UK LTD T/A BUNZL CLEANING & HYGIENE SUPPLIES,027747,Commissioning & Asset Management,Children's & Education Services,103,Supplies and Services,504,Equipment,5023,Revenue,CLEANING & JANITORIAL.CLEANING MATERIALS
26-OCT-2022,7019686,10.36,BUNZL UK LTD T/A BUNZL CLEANING & HYGIENE SUPPLIES,027747,Commissioning & Asset Management,Children's & Education Services,103,Supplies and Services,504,Equipment,5023,Revenue,CLEANING & JANITORIAL.CLEANING MATERIALS
26-OCT-2022,7019686,11.45,BUNZL UK LTD T/A BUNZL CLEANING & HYGIENE SUPPLIES,027747,Commissioning & Asset Management,Children's & Education Services,103,Supplies and Services,504,Equipment,5023,Revenue,CLEANING & JANITORIAL.CLEANING MATERIALS
26-OCT-2022,7019686,12.86,BUNZL UK LTD T/A BUNZL CLEANING & HYGIENE SUPPLIES,027747,Commissioning & Asset Management,Children's & Education Services,103,Supplies and Services,504,Equipment,5023,Revenue,CLEANING & JANITORIAL.CLEANING MATERIALS
26-OCT-2022,7019686,12.86,BUNZL UK LTD T/A BUNZL CLEANING & HYGIENE SUPPLIES,027747,Commissioning & Asset Management,Children's & Education Services,103,Supplies and Services,504,Equipment,5023,Revenue,CLEANING & JANITORIAL.CLEANING MATERIALS
26-OCT-2022,7019686,12.89,BUNZL UK LTD T/A BUNZL CLEANING & HYGIENE SUPPLIES,027747,Commissioning & Asset Management,Children's & Education Services,103,Supplies and Services,504,Equipment,5023,Revenue,CLEANING & JANITORIAL.CLEANING MATERIALS
26-OCT-2022,7019686,13.87,BUNZL UK LTD T/A BUNZL CLEANING & HYGIENE SUPPLIES,027747,Commissioning & Asset Management,Children's & Education Services,103,Supplies and Services,504,Equipment,5023,Revenue,CLEANING & JANITORIAL.CLEANING MATERIALS
26-OCT-2022,7019686,23.17,BUNZL UK LTD T/A BUNZL CLEANING & HYGIENE SUPPLIES,027747,Commissioning & Asset Management,Children's & Education Services,103,Supplies and Services,504,Equipment,5023,Revenue,CLEANING & JANITORIAL.CLEANING MATERIALS
26-OCT-2022,7019686,9.3,BUNZL UK LTD T/A BUNZL CLEANING & HYGIENE SUPPLIES,027747,Commissioning & Asset Management,Children's & Education Services,103,Supplies and Services,504,Equipment,5023,Revenue,CLEANING & JANITORIAL.CLEANING MATERIALS
26-OCT-2022,7019686,9.3,BUNZL UK LTD T/A BUNZL CLEANING & HYGIENE SUPPLIES,027747,Commissioning & Asset Management,Children's & Education Services,103,Supplies and Services,504,Equipment,5023,Revenue,CLEANING & JANITORIAL.CLEANING MATERIALS
26-OCT-2022,7019686,19.48,BUNZL UK LTD T/A BUNZL CLEANING & HYGIENE SUPPLIES,027747,Commissioning & Asset Management,Children's & Education Services,103,Supplies and Services,504,Equipment,5023,Revenue,CLEANING & JANITORIAL.CLEANING MATERIALS
26-OCT-2022,7019686,19.48,BUNZL UK LTD T/A BUNZL CLEANING & HYGIENE SUPPLIES,027747,Commissioning & Asset Management,Children's & Education Services,103,Supplies and Services,504,Equipment,5023,Revenue,CLEANING & JANITORIAL.CLEANING MATERIALS
26-OCT-2022,7019686,20.72,BUNZL UK LTD T/A BUNZL CLEANING & HYGIENE SUPPLIES,027747,Commissioning & Asset Management,Children's & Education Services,103,Supplies and Services,504,Equipment,5023,Revenue,CLEANING & JANITORIAL.CLEANING MATERIALS
26-OCT-2022,7019686,20.72,BUNZL UK LTD T/A BUNZL CLEANING & HYGIENE SUPPLIES,027747,Commissioning & Asset Management,Children's & Education Services,103,Supplies and Services,504,Equipment,5023,Revenue,CLEANING & JANITORIAL.CLEANING MATERIALS
26-OCT-2022,7019686,24.35,BUNZL UK LTD T/A BUNZL CLEANING & HYGIENE SUPPLIES,027747,Commissioning & Asset Management,Children's & Education Services,103,Supplies and Services,504,Equipment,5023,Revenue,CLEANING & JANITORIAL.CLEANING MATERIALS
26-OCT-2022,7019686,24.35,BUNZL UK LTD T/A BUNZL CLEANING & HYGIENE SUPPLIES,027747,Commissioning & Asset Management,Children's & Education Services,103,Supplies and Services,504,Equipment,5023,Revenue,CLEANING & JANITORIAL.CLEANING MATERIALS
26-OCT-2022,7019686,27.74,BUNZL UK LTD T/A BUNZL CLEANING & HYGIENE SUPPLIES,027747,Commissioning & Asset Management,Children's & Education Services,103,Supplies and Services,504,Equipment,5023,Revenue,CLEANING & JANITORIAL.CLEANING MATERIALS
26-OCT-2022,7019686,27.74,BUNZL UK LTD T/A BUNZL CLEANING & HYGIENE SUPPLIES,027747,Commissioning & Asset Management,Children's & Education Services,103,Supplies and Services,504,Equipment,5023,Revenue,CLEANING & JANITORIAL.CLEANING MATERIALS
26-OCT-2022,7019686,2.44,BUNZL UK LTD T/A BUNZL CLEANING & HYGIENE SUPPLIES,027747,Commissioning & Asset Management,Children's & Education Services,103,Supplies and Services,504,Equipment,5023,Revenue,CLEANING & JANITORIAL.CLEANING MATERIALS
26-OCT-2022,7019686,2.44,BUNZL UK LTD T/A BUNZL CLEANING & HYGIENE SUPPLIES,027747,Commissioning & Asset Management,Children's & Education Services,103,Supplies and Services,504,Equipment,5023,Revenue,CLEANING & JANITORIAL.CLEANING MATERIALS
26-OCT-2022,7019686,2.96,BUNZL UK LTD T/A BUNZL CLEANING & HYGIENE SUPPLIES,027747,Commissioning & Asset Management,Children's & Education Services,103,Supplies and Services,504,Equipment,5023,Revenue,CLEANING & JANITORIAL.CLEANING MATERIALS
26-OCT-2022,7019686,4.65,BUNZL UK LTD T/A BUNZL CLEANING & HYGIENE SUPPLIES,027747,Commissioning & Asset Management,Children's & Education Services,103,Supplies and Services,504,Equipment,5023,Revenue,CLEANING & JANITORIAL.CLEANING MATERIALS
26-OCT-2022,7019686,4.87,BUNZL UK LTD T/A BUNZL CLEANING & HYGIENE SUPPLIES,027747,Commissioning & Asset Management,Children's & Education Services,103,Supplies and Services,504,Equipment,5023,Revenue,CLEANING & JANITORIAL.CLEANING MATERIALS
26-OCT-2022,7019686,4.87,BUNZL UK LTD T/A BUNZL CLEANING & HYGIENE SUPPLIES,027747,Commissioning & Asset Management,Children's & Education Services,103,Supplies and Services,504,Equipment,5023,Revenue,CLEANING & JANITORIAL.CLEANING MATERIALS
26-OCT-2022,7019686,5.18,BUNZL UK LTD T/A BUNZL CLEANING & HYGIENE SUPPLIES,027747,Commissioning & Asset Management,Children's & Education Services,103,Supplies and Services,504,Equipment,5023,Revenue,CLEANING & JANITORIAL.CLEANING MATERIALS
26-OCT-2022,7019686,12.86,BUNZL UK LTD T/A BUNZL CLEANING & HYGIENE SUPPLIES,027747,Commissioning & Asset Management,Children's & Education Services,103,Supplies and Services,504,Equipment,5023,Revenue,CLEANING & JANITORIAL.CLEANING MATERIALS
26-OCT-2022,7019686,13.87,BUNZL UK LTD T/A BUNZL CLEANING & HYGIENE SUPPLIES,027747,Commissioning & Asset Management,Children's & Education Services,103,Supplies and Services,504,Equipment,5023,Revenue,CLEANING & JANITORIAL.CLEANING MATERIALS
26-OCT-2022,7019686,13.87,BUNZL UK LTD T/A BUNZL CLEANING & HYGIENE SUPPLIES,027747,Commissioning & Asset Management,Children's & Education Services,103,Supplies and Services,504,Equipment,5023,Revenue,CLEANING & JANITORIAL.CLEANING MATERIALS
26-OCT-2022,7019686,5.58,BUNZL UK LTD T/A BUNZL CLEANING & HYGIENE SUPPLIES,027747,Commissioning & Asset Management,Children's & Education Services,103,Supplies and Services,504,Equipment,5023,Revenue,CLEANING & JANITORIAL.CLEANING MATERIALS
26-OCT-2022,7019686,5.92,BUNZL UK LTD T/A BUNZL CLEANING & HYGIENE SUPPLIES,027747,Commissioning & Asset Management,Children's & Education Services,103,Supplies and Services,504,Equipment,5023,Revenue,CLEANING & JANITORIAL.CLEANING MATERIALS
26-OCT-2022,7019686,6.42,BUNZL UK LTD T/A BUNZL CLEANING & HYGIENE SUPPLIES,027747,Commissioning & Asset Management,Children's & Education Services,103,Supplies and Services,504,Equipment,5023,Revenue,CLEANING & JANITORIAL.CLEANING MATERIALS
26-OCT-2022,7019686,8.64,BUNZL UK LTD T/A BUNZL CLEANING & HYGIENE SUPPLIES,027747,Commissioning & Asset Management,Children's & Education Services,103,Supplies and Services,504,Equipment,5023,Revenue,CLEANING & JANITORIAL.CLEANING MATERIALS
26-OCT-2022,7019686,8.68,BUNZL UK LTD T/A BUNZL CLEANING & HYGIENE SUPPLIES,027747,Commissioning & Asset Management,Children's & Education Services,103,Supplies and Services,504,Equipment,5023,Revenue,CLEANING & JANITORIAL.CLEANING MATERIALS
26-OCT-2022,7019686,9.74,BUNZL UK LTD T/A BUNZL CLEANING & HYGIENE SUPPLIES,027747,Commissioning & Asset Management,Children's & Education Services,103,Supplies and Services,504,Equipment,5023,Revenue,CLEANING & JANITORIAL.CLEANING MATERIALS
26-OCT-2022,7019686,9.74,BUNZL UK LTD T/A BUNZL CLEANING & HYGIENE SUPPLIES,027747,Commissioning & Asset Management,Children's & Education Services,103,Supplies and Services,504,Equipment,5023,Revenue,CLEANING & JANITORIAL.CLEANING MATERIALS
26-OCT-2022,7019686,12.89,BUNZL UK LTD T/A BUNZL CLEANING & HYGIENE SUPPLIES,027747,Commissioning & Asset Management,Children's & Education Services,103,Supplies and Services,504,Equipment,5023,Revenue,CLEANING & JANITORIAL.CLEANING MATERIALS
26-OCT-2022,7019686,13.95,BUNZL UK LTD T/A BUNZL CLEANING & HYGIENE SUPPLIES,027747,Commissioning & Asset Management,Children's & Education Services,103,Supplies and Services,504,Equipment,5023,Revenue,CLEANING & JANITORIAL.CLEANING MATERIALS
26-OCT-2022,7019686,13.98,BUNZL UK LTD T/A BUNZL CLEANING & HYGIENE SUPPLIES,027747,Commissioning & Asset Management,Children's & Education Services,103,Supplies and Services,504,Equipment,5023,Revenue,CLEANING & JANITORIAL.CLEANING MATERIALS
26-OCT-2022,7019686,17.82,BUNZL UK LTD T/A BUNZL CLEANING & HYGIENE SUPPLIES,027747,Commissioning & Asset Management,Children's & Education Services,103,Supplies and Services,504,Equipment,5023,Revenue,CLEANING & JANITORIAL.CLEANING MATERIALS
26-OCT-2022,7019686,19.52,BUNZL UK LTD T/A BUNZL CLEANING & HYGIENE SUPPLIES,027747,Commissioning & Asset Management,Children's & Education Services,103,Supplies and Services,504,Equipment,5023,Revenue,CLEANING & JANITORIAL.CLEANING MATERIALS
26-OCT-2022,7019686,20.72,BUNZL UK LTD T/A BUNZL CLEANING & HYGIENE SUPPLIES,027747,Commissioning & Asset Management,Children's & Education Services,103,Supplies and Services,504,Equipment,5023,Revenue,CLEANING & JANITORIAL.CLEANING MATERIALS
26-OCT-2022,7019686,25.72,BUNZL UK LTD T/A BUNZL CLEANING & HYGIENE SUPPLIES,027747,Commissioning & Asset Management,Children's & Education Services,103,Supplies and Services,504,Equipment,5023,Revenue,CLEANING & JANITORIAL.CLEANING MATERIALS
26-OCT-2022,7019686,48.7,BUNZL UK LTD T/A BUNZL CLEANING & HYGIENE SUPPLIES,027747,Commissioning & Asset Management,Children's & Education Services,103,Supplies and Services,504,Equipment,5023,Revenue,CLEANING & JANITORIAL.CLEANING MATERIALS
26-OCT-2022,7019686,48.7,BUNZL UK LTD T/A BUNZL CLEANING & HYGIENE SUPPLIES,027747,Commissioning & Asset Management,Children's & Education Services,103,Supplies and Services,504,Equipment,5023,Revenue,CLEANING & JANITORIAL.CLEANING MATERIALS
26-OCT-2022,7019686,83.22,BUNZL UK LTD T/A BUNZL CLEANING & HYGIENE SUPPLIES,027747,Commissioning & Asset Management,Children's & Education Services,103,Supplies and Services,504,Equipment,5023,Revenue,CLEANING & JANITORIAL.CLEANING MATERIALS
26-OCT-2022,7019686,1.84,BUNZL UK LTD T/A BUNZL CLEANING & HYGIENE SUPPLIES,027747,Commissioning & Asset Management,Children's & Education Services,103,Supplies and Services,504,Equipment,5023,Revenue,CLEANING & JANITORIAL.CLEANING MATERIALS
26-OCT-2022,7019686,4.62,BUNZL UK LTD T/A BUNZL CLEANING & HYGIENE SUPPLIES,027747,Commissioning & Asset Management,Children's & Education Services,103,Supplies and Services,504,Equipment,5023,Revenue,CLEANING & JANITORIAL.CLEANING MATERIALS
26-OCT-2022,7019686,8.88,BUNZL UK LTD T/A BUNZL CLEANING & HYGIENE SUPPLIES,027747,Commissioning & Asset Management,Children's & Education Services,103,Supplies and Services,504,Equipment,5023,Revenue,CLEANING & JANITORIAL.CLEANING MATERIALS
26-OCT-2022,7019686,9.74,BUNZL UK LTD T/A BUNZL CLEANING & HYGIENE SUPPLIES,027747,Commissioning & Asset Management,Children's & Education Services,103,Supplies and Services,504,Equipment,5023,Revenue,CLEANING & JANITORIAL.CLEANING MATERIALS
26-OCT-2022,7019686,13.87,BUNZL UK LTD T/A BUNZL CLEANING & HYGIENE SUPPLIES,027747,Commissioning & Asset Management,Children's & Education Services,103,Supplies and Services,504,Equipment,5023,Revenue,CLEANING & JANITORIAL.CLEANING MATERIALS
26-OCT-2022,7019686,1.44,BUNZL UK LTD T/A BUNZL CLEANING & HYGIENE SUPPLIES,027747,Commissioning & Asset Management,Children's & Education Services,103,Supplies and Services,504,Equipment,5023,Revenue,CLEANING & JANITORIAL.CLEANING MATERIALS
26-OCT-2022,7019686,4.62,BUNZL UK LTD T/A BUNZL CLEANING & HYGIENE SUPPLIES,027747,Commissioning & Asset Management,Children's & Education Services,103,Supplies and Services,504,Equipment,5023,Revenue,CLEANING & JANITORIAL.CLEANING MATERIALS
26-OCT-2022,7019686,4.65,BUNZL UK LTD T/A BUNZL CLEANING & HYGIENE SUPPLIES,027747,Commissioning & Asset Management,Children's & Education Services,103,Supplies and Services,504,Equipment,5023,Revenue,CLEANING & JANITORIAL.CLEANING MATERIALS
26-OCT-2022,7019686,4.87,BUNZL UK LTD T/A BUNZL CLEANING & HYGIENE SUPPLIES,027747,Commissioning & Asset Management,Children's & Education Services,103,Supplies and Services,504,Equipment,5023,Revenue,CLEANING & JANITORIAL.CLEANING MATERIALS
26-OCT-2022,7019686,5.18,BUNZL UK LTD T/A BUNZL CLEANING & HYGIENE SUPPLIES,027747,Commissioning & Asset Management,Children's & Education Services,103,Supplies and Services,504,Equipment,5023,Revenue,CLEANING & JANITORIAL.CLEANING MATERIALS
26-OCT-2022,7019686,6.99,BUNZL UK LTD T/A BUNZL CLEANING & HYGIENE SUPPLIES,027747,Commissioning & Asset Management,Children's & Education Services,103,Supplies and Services,504,Equipment,5023,Revenue,CLEANING & JANITORIAL.CLEANING MATERIALS
26-OCT-2022,7019686,9.74,BUNZL UK LTD T/A BUNZL CLEANING & HYGIENE SUPPLIES,027747,Commissioning & Asset Management,Children's & Education Services,103,Supplies and Services,504,Equipment,5023,Revenue,CLEANING & JANITORIAL.CLEANING MATERIALS
26-OCT-2022,7019686,12.89,BUNZL UK LTD T/A BUNZL CLEANING & HYGIENE SUPPLIES,027747,Commissioning & Asset Management,Children's & Education Services,103,Supplies and Services,504,Equipment,5023,Revenue,CLEANING & JANITORIAL.CLEANING MATERIALS
26-OCT-2022,7019686,27.74,BUNZL UK LTD T/A BUNZL CLEANING & HYGIENE SUPPLIES,027747,Commissioning & Asset Management,Children's & Education Services,103,Supplies and Services,504,Equipment,5023,Revenue,CLEANING & JANITORIAL.CLEANING MATERIALS
26-OCT-2022,7019686,1.44,BUNZL UK LTD T/A BUNZL CLEANING & HYGIENE SUPPLIES,027747,Commissioning & Asset Management,Children's & Education Services,103,Supplies and Services,504,Equipment,5023,Revenue,CLEANING & JANITORIAL.CLEANING MATERIALS
26-OCT-2022,7019686,2.44,BUNZL UK LTD T/A BUNZL CLEANING & HYGIENE SUPPLIES,027747,Commissioning & Asset Management,Children's & Education Services,103,Supplies and Services,504,Equipment,5023,Revenue,CLEANING & JANITORIAL.CLEANING MATERIALS
26-OCT-2022,7019686,2.86,BUNZL UK LTD T/A BUNZL CLEANING & HYGIENE SUPPLIES,027747,Commissioning & Asset Management,Children's & Education Services,103,Supplies and Services,504,Equipment,5023,Revenue,CLEANING & JANITORIAL.CLEANING MATERIALS
26-OCT-2022,7019686,3.68,BUNZL UK LTD T/A BUNZL CLEANING & HYGIENE SUPPLIES,027747,Commissioning & Asset Management,Children's & Education Services,103,Supplies and Services,504,Equipment,5023,Revenue,CLEANING & JANITORIAL.CLEANING MATERIALS
26-OCT-2022,7019686,4.28,BUNZL UK LTD T/A BUNZL CLEANING & HYGIENE SUPPLIES,027747,Commissioning & Asset Management,Children's & Education Services,103,Supplies and Services,504,Equipment,5023,Revenue,CLEANING & JANITORIAL.CLEANING MATERIALS
26-OCT-2022,7019686,6.81,BUNZL UK LTD T/A BUNZL CLEANING & HYGIENE SUPPLIES,027747,Commissioning & Asset Management,Children's & Education Services,103,Supplies and Services,504,Equipment,5023,Revenue,CLEANING & JANITORIAL.CLEANING MATERIALS
26-OCT-2022,7019686,12.89,BUNZL UK LTD T/A BUNZL CLEANING & HYGIENE SUPPLIES,027747,Commissioning & Asset Management,Children's & Education Services,103,Supplies and Services,504,Equipment,5023,Revenue,CLEANING & JANITORIAL.CLEANING MATERIALS
26-OCT-2022,7019686,13.87,BUNZL UK LTD T/A BUNZL CLEANING & HYGIENE SUPPLIES,027747,Commissioning & Asset Management,Children's & Education Services,103,Supplies and Services,504,Equipment,5023,Revenue,CLEANING & JANITORIAL.CLEANING MATERIALS
26-OCT-2022,7019686,14.61,BUNZL UK LTD T/A BUNZL CLEANING & HYGIENE SUPPLIES,027747,Commissioning & Asset Management,Children's & Education Services,103,Supplies and Services,504,Equipment,5023,Revenue,CLEANING & JANITORIAL.CLEANING MATERIALS
26-OCT-2022,7019686,14.64,BUNZL UK LTD T/A BUNZL CLEANING & HYGIENE SUPPLIES,027747,Commissioning & Asset Management,Children's & Education Services,103,Supplies and Services,504,Equipment,5023,Revenue,CLEANING & JANITORIAL.CLEANING MATERIALS
26-OCT-2022,7019686,29.22,BUNZL UK LTD T/A BUNZL CLEANING & HYGIENE SUPPLIES,027747,Commissioning & Asset Management,Children's & Education Services,103,Supplies and Services,504,Equipment,5023,Revenue,CLEANING & JANITORIAL.CLEANING MATERIALS
26-OCT-2022,7019686,1.38,BUNZL UK LTD T/A BUNZL CLEANING & HYGIENE SUPPLIES,027747,Commissioning & Asset Management,Children's & Education Services,103,Supplies and Services,504,Equipment,5023,Revenue,CLEANING & JANITORIAL.CLEANING MATERIALS
26-OCT-2022,7019686,2.76,BUNZL UK LTD T/A BUNZL CLEANING & HYGIENE SUPPLIES,027747,Commissioning & Asset Management,Children's & Education Services,103,Supplies and Services,504,Equipment,5023,Revenue,CLEANING & JANITORIAL.CLEANING MATERIALS
26-OCT-2022,7019686,12.89,BUNZL UK LTD T/A BUNZL CLEANING & HYGIENE SUPPLIES,027747,Commissioning & Asset Management,Children's & Education Services,103,Supplies and Services,504,Equipment,5023,Revenue,CLEANING & JANITORIAL.CLEANING MATERIALS
26-OCT-2022,7019686,14.61,BUNZL UK LTD T/A BUNZL CLEANING & HYGIENE SUPPLIES,027747,Commissioning & Asset Management,Children's & Education Services,103,Supplies and Services,504,Equipment,5023,Revenue,CLEANING & JANITORIAL.CLEANING MATERIALS
26-OCT-2022,7019686,24.35,BUNZL UK LTD T/A BUNZL CLEANING & HYGIENE SUPPLIES,027747,Commissioning & Asset Management,Children's & Education Services,103,Supplies and Services,504,Equipment,5023,Revenue,CLEANING & JANITORIAL.CLEANING MATERIALS
26-OCT-2022,7019686,24.35,BUNZL UK LTD T/A BUNZL CLEANING & HYGIENE SUPPLIES,027747,Commissioning & Asset Management,Children's & Education Services,103,Supplies and Services,504,Equipment,5023,Revenue,CLEANING & JANITORIAL.CLEANING MATERIALS
26-OCT-2022,7019686,83.22,BUNZL UK LTD T/A BUNZL CLEANING & HYGIENE SUPPLIES,027747,Commissioning & Asset Management,Children's & Education Services,103,Supplies and Services,504,Equipment,5023,Revenue,CLEANING & JANITORIAL.CLEANING MATERIALS
26-OCT-2022,7019686,4.28,BUNZL UK LTD T/A BUNZL CLEANING & HYGIENE SUPPLIES,027747,Commissioning & Asset Management,Children's & Education Services,103,Supplies and Services,504,Equipment,5023,Revenue,CLEANING & JANITORIAL.CLEANING MATERIALS
26-OCT-2022,7019686,9.24,BUNZL UK LTD T/A BUNZL CLEANING & HYGIENE SUPPLIES,027747,Commissioning & Asset Management,Children's & Education Services,103,Supplies and Services,504,Equipment,5023,Revenue,CLEANING & JANITORIAL.CLEANING MATERIALS
26-OCT-2022,7019686,19.48,BUNZL UK LTD T/A BUNZL CLEANING & HYGIENE SUPPLIES,027747,Commissioning & Asset Management,Children's & Education Services,103,Supplies and Services,504,Equipment,5023,Revenue,CLEANING & JANITORIAL.CLEANING MATERIALS
26-OCT-2022,7019686,27.74,BUNZL UK LTD T/A BUNZL CLEANING & HYGIENE SUPPLIES,027747,Commissioning & Asset Management,Children's & Education Services,103,Supplies and Services,504,Equipment,5023,Revenue,CLEANING & JANITORIAL.CLEANING MATERIALS
26-OCT-2022,7019686,1.44,BUNZL UK LTD T/A BUNZL CLEANING & HYGIENE SUPPLIES,027747,Commissioning & Asset Management,Children's & Education Services,103,Supplies and Services,504,Equipment,5023,Revenue,CLEANING & JANITORIAL.CLEANING MATERIALS
26-OCT-2022,7019686,2.3,BUNZL UK LTD T/A BUNZL CLEANING & HYGIENE SUPPLIES,027747,Commissioning & Asset Management,Children's & Education Services,103,Supplies and Services,504,Equipment,5023,Revenue,CLEANING & JANITORIAL.CLEANING MATERIALS
26-OCT-2022,7019686,2.88,BUNZL UK LTD T/A BUNZL CLEANING & HYGIENE SUPPLIES,027747,Commissioning & Asset Management,Children's & Education Services,103,Supplies and Services,504,Equipment,5023,Revenue,CLEANING & JANITORIAL.CLEANING MATERIALS
26-OCT-2022,7019686,4.6,BUNZL UK LTD T/A BUNZL CLEANING & HYGIENE SUPPLIES,027747,Commissioning & Asset Management,Children's & Education Services,103,Supplies and Services,504,Equipment,5023,Revenue,CLEANING & JANITORIAL.CLEANING MATERIALS
26-OCT-2022,7019686,4.62,BUNZL UK LTD T/A BUNZL CLEANING & HYGIENE SUPPLIES,027747,Commissioning & Asset Management,Children's & Education Services,103,Supplies and Services,504,Equipment,5023,Revenue,CLEANING & JANITORIAL.CLEANING MATERIALS
26-OCT-2022,7019686,4.65,BUNZL UK LTD T/A BUNZL CLEANING & HYGIENE SUPPLIES,027747,Commissioning & Asset Management,Children's & Education Services,103,Supplies and Services,504,Equipment,5023,Revenue,CLEANING & JANITORIAL.CLEANING MATERIALS
26-OCT-2022,7019686,5.18,BUNZL UK LTD T/A BUNZL CLEANING & HYGIENE SUPPLIES,027747,Commissioning & Asset Management,Children's & Education Services,103,Supplies and Services,504,Equipment,5023,Revenue,CLEANING & JANITORIAL.CLEANING MATERIALS
26-OCT-2022,7019686,9.76,BUNZL UK LTD T/A BUNZL CLEANING & HYGIENE SUPPLIES,027747,Commissioning & Asset Management,Children's & Education Services,103,Supplies and Services,504,Equipment,5023,Revenue,CLEANING & JANITORIAL.CLEANING MATERIALS
26-OCT-2022,7019686,10.1,BUNZL UK LTD T/A BUNZL CLEANING & HYGIENE SUPPLIES,027747,Commissioning & Asset Management,Children's & Education Services,103,Supplies and Services,504,Equipment,5023,Revenue,CLEANING & JANITORIAL.CLEANING MATERIALS
26-OCT-2022,7019686,11.45,BUNZL UK LTD T/A BUNZL CLEANING & HYGIENE SUPPLIES,027747,Commissioning & Asset Management,Children's & Education Services,103,Supplies and Services,504,Equipment,5023,Revenue,CLEANING & JANITORIAL.CLEANING MATERIALS
26-OCT-2022,7019686,12.89,BUNZL UK LTD T/A BUNZL CLEANING & HYGIENE SUPPLIES,027747,Commissioning & Asset Management,Children's & Education Services,103,Supplies and Services,504,Equipment,5023,Revenue,CLEANING & JANITORIAL.CLEANING MATERIALS
26-OCT-2022,7019686,59.05,BUNZL UK LTD T/A BUNZL CLEANING & HYGIENE SUPPLIES,027747,Commissioning & Asset Management,Children's & Education Services,103,Supplies and Services,504,Equipment,5023,Revenue,CLEANING & JANITORIAL.CLEANING MATERIALS
26-OCT-2022,7019686,66.71,BUNZL UK LTD T/A BUNZL CLEANING & HYGIENE SUPPLIES,027747,Commissioning & Asset Management,Children's & Education Services,103,Supplies and Services,504,Equipment,5023,Revenue,CLEANING & JANITORIAL.CLEANING MATERIALS
26-OCT-2022,7019686,2.44,BUNZL UK LTD T/A BUNZL CLEANING & HYGIENE SUPPLIES,027747,Commissioning & Asset Management,Children's & Education Services,103,Supplies and Services,504,Equipment,5023,Revenue,CLEANING & JANITORIAL.CLEANING MATERIALS
26-OCT-2022,7019686,2.76,BUNZL UK LTD T/A BUNZL CLEANING & HYGIENE SUPPLIES,027747,Commissioning & Asset Management,Children's & Education Services,103,Supplies and Services,504,Equipment,5023,Revenue,CLEANING & JANITORIAL.CLEANING MATERIALS
26-OCT-2022,7019686,2.76,BUNZL UK LTD T/A BUNZL CLEANING & HYGIENE SUPPLIES,027747,Commissioning & Asset Management,Children's & Education Services,103,Supplies and Services,504,Equipment,5023,Revenue,CLEANING & JANITORIAL.CLEANING MATERIALS
26-OCT-2022,7019686,2.88,BUNZL UK LTD T/A BUNZL CLEANING & HYGIENE SUPPLIES,027747,Commissioning & Asset Management,Children's & Education Services,103,Supplies and Services,504,Equipment,5023,Revenue,CLEANING & JANITORIAL.CLEANING MATERIALS
26-OCT-2022,7019686,4.62,BUNZL UK LTD T/A BUNZL CLEANING & HYGIENE SUPPLIES,027747,Commissioning & Asset Management,Children's & Education Services,103,Supplies and Services,504,Equipment,5023,Revenue,CLEANING & JANITORIAL.CLEANING MATERIALS
26-OCT-2022,7019686,4.65,BUNZL UK LTD T/A BUNZL CLEANING & HYGIENE SUPPLIES,027747,Commissioning & Asset Management,Children's & Education Services,103,Supplies and Services,504,Equipment,5023,Revenue,CLEANING & JANITORIAL.CLEANING MATERIALS
26-OCT-2022,7019686,5.18,BUNZL UK LTD T/A BUNZL CLEANING & HYGIENE SUPPLIES,027747,Commissioning & Asset Management,Children's & Education Services,103,Supplies and Services,504,Equipment,5023,Revenue,CLEANING & JANITORIAL.CLEANING MATERIALS
26-OCT-2022,7019686,6.35,BUNZL UK LTD T/A BUNZL CLEANING & HYGIENE SUPPLIES,027747,Commissioning & Asset Management,Children's & Education Services,103,Supplies and Services,504,Equipment,5023,Revenue,CLEANING & JANITORIAL.CLEANING MATERIALS
26-OCT-2022,7019686,8.68,BUNZL UK LTD T/A BUNZL CLEANING & HYGIENE SUPPLIES,027747,Commissioning & Asset Management,Children's & Education Services,103,Supplies and Services,504,Equipment,5023,Revenue,CLEANING & JANITORIAL.CLEANING MATERIALS
26-OCT-2022,7019686,9.76,BUNZL UK LTD T/A BUNZL CLEANING & HYGIENE SUPPLIES,027747,Commissioning & Asset Management,Children's & Education Services,103,Supplies and Services,504,Equipment,5023,Revenue,CLEANING & JANITORIAL.CLEANING MATERIALS
26-OCT-2022,7019686,12.72,BUNZL UK LTD T/A BUNZL CLEANING & HYGIENE SUPPLIES,027747,Commissioning & Asset Management,Children's & Education Services,103,Supplies and Services,504,Equipment,5023,Revenue,CLEANING & JANITORIAL.CLEANING MATERIALS
26-OCT-2022,7019686,12.86,BUNZL UK LTD T/A BUNZL CLEANING & HYGIENE SUPPLIES,027747,Commissioning & Asset Management,Children's & Education Services,103,Supplies and Services,504,Equipment,5023,Revenue,CLEANING & JANITORIAL.CLEANING MATERIALS
26-OCT-2022,7019686,14.61,BUNZL UK LTD T/A BUNZL CLEANING & HYGIENE SUPPLIES,027747,Commissioning & Asset Management,Children's & Education Services,103,Supplies and Services,504,Equipment,5023,Revenue,CLEANING & JANITORIAL.CLEANING MATERIALS
26-OCT-2022,7019686,15.88,BUNZL UK LTD T/A BUNZL CLEANING & HYGIENE SUPPLIES,027747,Commissioning & Asset Management,Children's & Education Services,103,Supplies and Services,504,Equipment,5023,Revenue,CLEANING & JANITORIAL.CLEANING MATERIALS
26-OCT-2022,7019686,17.82,BUNZL UK LTD T/A BUNZL CLEANING & HYGIENE SUPPLIES,027747,Commissioning & Asset Management,Children's & Education Services,103,Supplies and Services,504,Equipment,5023,Revenue,CLEANING & JANITORIAL.CLEANING MATERIALS
26-OCT-2022,7019686,19.48,BUNZL UK LTD T/A BUNZL CLEANING & HYGIENE SUPPLIES,027747,Commissioning & Asset Management,Children's & Education Services,103,Supplies and Services,504,Equipment,5023,Revenue,CLEANING & JANITORIAL.CLEANING MATERIALS
26-OCT-2022,7019686,19.48,BUNZL UK LTD T/A BUNZL CLEANING & HYGIENE SUPPLIES,027747,Commissioning & Asset Management,Children's & Education Services,103,Supplies and Services,504,Equipment,5023,Revenue,CLEANING & JANITORIAL.CLEANING MATERIALS
26-OCT-2022,7019686,20.2,BUNZL UK LTD T/A BUNZL CLEANING & HYGIENE SUPPLIES,027747,Commissioning & Asset Management,Children's & Education Services,103,Supplies and Services,504,Equipment,5023,Revenue,CLEANING & JANITORIAL.CLEANING MATERIALS
26-OCT-2022,7019686,24.35,BUNZL UK LTD T/A BUNZL CLEANING & HYGIENE SUPPLIES,027747,Commissioning & Asset Management,Children's & Education Services,103,Supplies and Services,504,Equipment,5023,Revenue,CLEANING & JANITORIAL.CLEANING MATERIALS
26-OCT-2022,7019686,25.72,BUNZL UK LTD T/A BUNZL CLEANING & HYGIENE SUPPLIES,027747,Commissioning & Asset Management,Children's & Education Services,103,Supplies and Services,504,Equipment,5023,Revenue,CLEANING & JANITORIAL.CLEANING MATERIALS
26-OCT-2022,7019686,25.78,BUNZL UK LTD T/A BUNZL CLEANING & HYGIENE SUPPLIES,027747,Commissioning & Asset Management,Children's & Education Services,103,Supplies and Services,504,Equipment,5023,Revenue,CLEANING & JANITORIAL.CLEANING MATERIALS
26-OCT-2022,7019686,34.05,BUNZL UK LTD T/A BUNZL CLEANING & HYGIENE SUPPLIES,027747,Commissioning & Asset Management,Children's & Education Services,103,Supplies and Services,504,Equipment,5023,Revenue,CLEANING & JANITORIAL.CLEANING MATERIALS
26-OCT-2022,7019686,34.35,BUNZL UK LTD T/A BUNZL CLEANING & HYGIENE SUPPLIES,027747,Commissioning & Asset Management,Children's & Education Services,103,Supplies and Services,504,Equipment,5023,Revenue,CLEANING & JANITORIAL.CLEANING MATERIALS
26-OCT-2022,7019686,53.34,BUNZL UK LTD T/A BUNZL CLEANING & HYGIENE SUPPLIES,027747,Commissioning & Asset Management,Children's & Education Services,103,Supplies and Services,504,Equipment,5023,Revenue,CLEANING & JANITORIAL.CLEANING MATERIALS
26-OCT-2022,7019686,0.82,BUNZL UK LTD T/A BUNZL CLEANING & HYGIENE SUPPLIES,027747,Commissioning & Asset Management,Children's & Education Services,103,Supplies and Services,504,Equipment,5023,Revenue,CLEANING & JANITORIAL.CLEANING MATERIALS
26-OCT-2022,7019686,0.88,BUNZL UK LTD T/A BUNZL CLEANING & HYGIENE SUPPLIES,027747,Commissioning & Asset Management,Children's & Education Services,103,Supplies and Services,504,Equipment,5023,Revenue,CLEANING & JANITORIAL.CLEANING MATERIALS
26-OCT-2022,7019686,1.44,BUNZL UK LTD T/A BUNZL CLEANING & HYGIENE SUPPLIES,027747,Commissioning & Asset Management,Children's & Education Services,103,Supplies and Services,504,Equipment,5023,Revenue,CLEANING & JANITORIAL.CLEANING MATERIALS
26-OCT-2022,7019686,2.3,BUNZL UK LTD T/A BUNZL CLEANING & HYGIENE SUPPLIES,027747,Commissioning & Asset Management,Children's & Education Services,103,Supplies and Services,504,Equipment,5023,Revenue,CLEANING & JANITORIAL.CLEANING MATERIALS
26-OCT-2022,7019686,4.87,BUNZL UK LTD T/A BUNZL CLEANING & HYGIENE SUPPLIES,027747,Commissioning & Asset Management,Children's & Education Services,103,Supplies and Services,504,Equipment,5023,Revenue,CLEANING & JANITORIAL.CLEANING MATERIALS
26-OCT-2022,7019686,6.56,BUNZL UK LTD T/A BUNZL CLEANING & HYGIENE SUPPLIES,027747,Commissioning & Asset Management,Children's & Education Services,103,Supplies and Services,504,Equipment,5023,Revenue,CLEANING & JANITORIAL.CLEANING MATERIALS
26-OCT-2022,7019686,9.74,BUNZL UK LTD T/A BUNZL CLEANING & HYGIENE SUPPLIES,027747,Commissioning & Asset Management,Children's & Education Services,103,Supplies and Services,504,Equipment,5023,Revenue,CLEANING & JANITORIAL.CLEANING MATERIALS
26-OCT-2022,7019686,12.89,BUNZL UK LTD T/A BUNZL CLEANING & HYGIENE SUPPLIES,027747,Commissioning & Asset Management,Children's & Education Services,103,Supplies and Services,504,Equipment,5023,Revenue,CLEANING & JANITORIAL.CLEANING MATERIALS
26-OCT-2022,7019686,14.61,BUNZL UK LTD T/A BUNZL CLEANING & HYGIENE SUPPLIES,027747,Commissioning & Asset Management,Children's & Education Services,103,Supplies and Services,504,Equipment,5023,Revenue,CLEANING & JANITORIAL.CLEANING MATERIALS
26-OCT-2022,7019686,14.61,BUNZL UK LTD T/A BUNZL CLEANING & HYGIENE SUPPLIES,027747,Commissioning & Asset Management,Children's & Education Services,103,Supplies and Services,504,Equipment,5023,Revenue,CLEANING & JANITORIAL.CLEANING MATERIALS
26-OCT-2022,7019686,14.61,BUNZL UK LTD T/A BUNZL CLEANING & HYGIENE SUPPLIES,027747,Commissioning & Asset Management,Children's & Education Services,103,Supplies and Services,504,Equipment,5023,Revenue,CLEANING & JANITORIAL.CLEANING MATERIALS
26-OCT-2022,7019686,18.6,BUNZL UK LTD T/A BUNZL CLEANING & HYGIENE SUPPLIES,027747,Commissioning & Asset Management,Children's & Education Services,103,Supplies and Services,504,Equipment,5023,Revenue,CLEANING & JANITORIAL.CLEANING MATERIALS
26-OCT-2022,7019686,27.74,BUNZL UK LTD T/A BUNZL CLEANING & HYGIENE SUPPLIES,027747,Commissioning & Asset Management,Children's & Education Services,103,Supplies and Services,504,Equipment,5023,Revenue,CLEANING & JANITORIAL.CLEANING MATERIALS
26-OCT-2022,7019686,29.22,BUNZL UK LTD T/A BUNZL CLEANING & HYGIENE SUPPLIES,027747,Commissioning & Asset Management,Children's & Education Services,103,Supplies and Services,504,Equipment,5023,Revenue,CLEANING & JANITORIAL.CLEANING MATERIALS
26-OCT-2022,7019686,29.22,BUNZL UK LTD T/A BUNZL CLEANING & HYGIENE SUPPLIES,027747,Commissioning & Asset Management,Children's & Education Services,103,Supplies and Services,504,Equipment,5023,Revenue,CLEANING & JANITORIAL.CLEANING MATERIALS
26-OCT-2022,7019686,29.22,BUNZL UK LTD T/A BUNZL CLEANING & HYGIENE SUPPLIES,027747,Commissioning & Asset Management,Children's & Education Services,103,Supplies and Services,504,Equipment,5023,Revenue,CLEANING & JANITORIAL.CLEANING MATERIALS
26-OCT-2022,7019686,31.08,BUNZL UK LTD T/A BUNZL CLEANING & HYGIENE SUPPLIES,027747,Commissioning & Asset Management,Children's & Education Services,103,Supplies and Services,504,Equipment,5023,Revenue,CLEANING & JANITORIAL.CLEANING MATERIALS
26-OCT-2022,7019686,3.68,BUNZL UK LTD T/A BUNZL CLEANING & HYGIENE SUPPLIES,027747,Commissioning & Asset Management,Children's & Education Services,103,Supplies and Services,504,Equipment,5023,Revenue,CLEANING & JANITORIAL.CLEANING MATERIALS
26-OCT-2022,7019686,4.62,BUNZL UK LTD T/A BUNZL CLEANING & HYGIENE SUPPLIES,027747,Commissioning & Asset Management,Children's & Education Services,103,Supplies and Services,504,Equipment,5023,Revenue,CLEANING & JANITORIAL.CLEANING MATERIALS
26-OCT-2022,7019686,8.64,BUNZL UK LTD T/A BUNZL CLEANING & HYGIENE SUPPLIES,027747,Commissioning & Asset Management,Children's & Education Services,103,Supplies and Services,504,Equipment,5023,Revenue,CLEANING & JANITORIAL.CLEANING MATERIALS
26-OCT-2022,7019686,12.89,BUNZL UK LTD T/A BUNZL CLEANING & HYGIENE SUPPLIES,027747,Commissioning & Asset Management,Children's & Education Services,103,Supplies and Services,504,Equipment,5023,Revenue,CLEANING & JANITORIAL.CLEANING MATERIALS
26-OCT-2022,7019686,55.48,BUNZL UK LTD T/A BUNZL CLEANING & HYGIENE SUPPLIES,027747,Commissioning & Asset Management,Children's & Education Services,103,Supplies and Services,504,Equipment,5023,Revenue,CLEANING & JANITORIAL.CLEANING MATERIALS
26-OCT-2022,7019686,1.44,BUNZL UK LTD T/A BUNZL CLEANING & HYGIENE SUPPLIES,027747,Commissioning & Asset Management,Children's & Education Services,103,Supplies and Services,504,Equipment,5023,Revenue,CLEANING & JANITORIAL.CLEANING MATERIALS
26-OCT-2022,7019686,4.6,BUNZL UK LTD T/A BUNZL CLEANING & HYGIENE SUPPLIES,027747,Commissioning & Asset Management,Children's & Education Services,103,Supplies and Services,504,Equipment,5023,Revenue,CLEANING & JANITORIAL.CLEANING MATERIALS
26-OCT-2022,7019686,4.6,BUNZL UK LTD T/A BUNZL CLEANING & HYGIENE SUPPLIES,027747,Commissioning & Asset Management,Children's & Education Services,103,Supplies and Services,504,Equipment,5023,Revenue,CLEANING & JANITORIAL.CLEANING MATERIALS
26-OCT-2022,7019686,4.62,BUNZL UK LTD T/A BUNZL CLEANING & HYGIENE SUPPLIES,027747,Commissioning & Asset Management,Children's & Education Services,103,Supplies and Services,504,Equipment,5023,Revenue,CLEANING & JANITORIAL.CLEANING MATERIALS
26-OCT-2022,7019686,5.66,BUNZL UK LTD T/A BUNZL CLEANING & HYGIENE SUPPLIES,027747,Commissioning & Asset Management,Children's & Education Services,103,Supplies and Services,504,Equipment,5023,Revenue,CLEANING & JANITORIAL.CLEANING MATERIALS
26-OCT-2022,7019686,5.92,BUNZL UK LTD T/A BUNZL CLEANING & HYGIENE SUPPLIES,027747,Commissioning & Asset Management,Children's & Education Services,103,Supplies and Services,504,Equipment,5023,Revenue,CLEANING & JANITORIAL.CLEANING MATERIALS
26-OCT-2022,7019686,6.56,BUNZL UK LTD T/A BUNZL CLEANING & HYGIENE SUPPLIES,027747,Commissioning & Asset Management,Children's & Education Services,103,Supplies and Services,504,Equipment,5023,Revenue,CLEANING & JANITORIAL.CLEANING MATERIALS
26-OCT-2022,7019686,6.99,BUNZL UK LTD T/A BUNZL CLEANING & HYGIENE SUPPLIES,027747,Commissioning & Asset Management,Children's & Education Services,103,Supplies and Services,504,Equipment,5023,Revenue,CLEANING & JANITORIAL.CLEANING MATERIALS
26-OCT-2022,7019686,9.3,BUNZL UK LTD T/A BUNZL CLEANING & HYGIENE SUPPLIES,027747,Commissioning & Asset Management,Children's & Education Services,103,Supplies and Services,504,Equipment,5023,Revenue,CLEANING & JANITORIAL.CLEANING MATERIALS
26-OCT-2022,7019686,9.74,BUNZL UK LTD T/A BUNZL CLEANING & HYGIENE SUPPLIES,027747,Commissioning & Asset Management,Children's & Education Services,103,Supplies and Services,504,Equipment,5023,Revenue,CLEANING & JANITORIAL.CLEANING MATERIALS
26-OCT-2022,7019686,9.74,BUNZL UK LTD T/A BUNZL CLEANING & HYGIENE SUPPLIES,027747,Commissioning & Asset Management,Children's & Education Services,103,Supplies and Services,504,Equipment,5023,Revenue,CLEANING & JANITORIAL.CLEANING MATERIALS
26-OCT-2022,7019686,9.74,BUNZL UK LTD T/A BUNZL CLEANING & HYGIENE SUPPLIES,027747,Commissioning & Asset Management,Children's & Education Services,103,Supplies and Services,504,Equipment,5023,Revenue,CLEANING & JANITORIAL.CLEANING MATERIALS
26-OCT-2022,7019686,9.76,BUNZL UK LTD T/A BUNZL CLEANING & HYGIENE SUPPLIES,027747,Commissioning & Asset Management,Children's & Education Services,103,Supplies and Services,504,Equipment,5023,Revenue,CLEANING & JANITORIAL.CLEANING MATERIALS
26-OCT-2022,7019686,11.84,BUNZL UK LTD T/A BUNZL CLEANING & HYGIENE SUPPLIES,027747,Commissioning & Asset Management,Children's & Education Services,103,Supplies and Services,504,Equipment,5023,Revenue,CLEANING & JANITORIAL.CLEANING MATERIALS
26-OCT-2022,7019686,12.86,BUNZL UK LTD T/A BUNZL CLEANING & HYGIENE SUPPLIES,027747,Commissioning & Asset Management,Children's & Education Services,103,Supplies and Services,504,Equipment,5023,Revenue,CLEANING & JANITORIAL.CLEANING MATERIALS
26-OCT-2022,7019686,13.87,BUNZL UK LTD T/A BUNZL CLEANING & HYGIENE SUPPLIES,027747,Commissioning & Asset Management,Children's & Education Services,103,Supplies and Services,504,Equipment,5023,Revenue,CLEANING & JANITORIAL.CLEANING MATERIALS
26-OCT-2022,7019686,22.32,BUNZL UK LTD T/A BUNZL CLEANING & HYGIENE SUPPLIES,027747,Commissioning & Asset Management,Children's & Education Services,103,Supplies and Services,504,Equipment,5023,Revenue,CLEANING & JANITORIAL.CLEANING MATERIALS
26-OCT-2022,7019686,27.74,BUNZL UK LTD T/A BUNZL CLEANING & HYGIENE SUPPLIES,027747,Commissioning & Asset Management,Children's & Education Services,103,Supplies and Services,504,Equipment,5023,Revenue,CLEANING & JANITORIAL.CLEANING MATERIALS
26-OCT-2022,7019686,29.22,BUNZL UK LTD T/A BUNZL CLEANING & HYGIENE SUPPLIES,027747,Commissioning & Asset Management,Children's & Education Services,103,Supplies and Services,504,Equipment,5023,Revenue,CLEANING & JANITORIAL.CLEANING MATERIALS
26-OCT-2022,7019686,2.88,BUNZL UK LTD T/A BUNZL CLEANING & HYGIENE SUPPLIES,027747,Commissioning & Asset Management,Children's & Education Services,103,Supplies and Services,504,Equipment,5023,Revenue,CLEANING & JANITORIAL.CLEANING MATERIALS
26-OCT-2022,7019686,4.28,BUNZL UK LTD T/A BUNZL CLEANING & HYGIENE SUPPLIES,027747,Commissioning & Asset Management,Children's & Education Services,103,Supplies and Services,504,Equipment,5023,Revenue,CLEANING & JANITORIAL.CLEANING MATERIALS
26-OCT-2022,7019686,4.62,BUNZL UK LTD T/A BUNZL CLEANING & HYGIENE SUPPLIES,027747,Commissioning & Asset Management,Children's & Education Services,103,Supplies and Services,504,Equipment,5023,Revenue,CLEANING & JANITORIAL.CLEANING MATERIALS
26-OCT-2022,7019686,4.65,BUNZL UK LTD T/A BUNZL CLEANING & HYGIENE SUPPLIES,027747,Commissioning & Asset Management,Children's & Education Services,103,Supplies and Services,504,Equipment,5023,Revenue,CLEANING & JANITORIAL.CLEANING MATERIALS
26-OCT-2022,7019686,5.92,BUNZL UK LTD T/A BUNZL CLEANING & HYGIENE SUPPLIES,027747,Commissioning & Asset Management,Children's & Education Services,103,Supplies and Services,504,Equipment,5023,Revenue,CLEANING & JANITORIAL.CLEANING MATERIALS
26-OCT-2022,7019686,10.36,BUNZL UK LTD T/A BUNZL CLEANING & HYGIENE SUPPLIES,027747,Commissioning & Asset Management,Children's & Education Services,103,Supplies and Services,504,Equipment,5023,Revenue,CLEANING & JANITORIAL.CLEANING MATERIALS
26-OCT-2022,7019686,14.61,BUNZL UK LTD T/A BUNZL CLEANING & HYGIENE SUPPLIES,027747,Commissioning & Asset Management,Children's & Education Services,103,Supplies and Services,504,Equipment,5023,Revenue,CLEANING & JANITORIAL.CLEANING MATERIALS
26-OCT-2022,7019686,14.61,BUNZL UK LTD T/A BUNZL CLEANING & HYGIENE SUPPLIES,027747,Commissioning & Asset Management,Children's & Education Services,103,Supplies and Services,504,Equipment,5023,Revenue,CLEANING & JANITORIAL.CLEANING MATERIALS
26-OCT-2022,7019686,25.72,BUNZL UK LTD T/A BUNZL CLEANING & HYGIENE SUPPLIES,027747,Commissioning & Asset Management,Children's & Education Services,103,Supplies and Services,504,Equipment,5023,Revenue,CLEANING & JANITORIAL.CLEANING MATERIALS
26-OCT-2022,7019686,27.74,BUNZL UK LTD T/A BUNZL CLEANING & HYGIENE SUPPLIES,027747,Commissioning & Asset Management,Children's & Education Services,103,Supplies and Services,504,Equipment,5023,Revenue,CLEANING & JANITORIAL.CLEANING MATERIALS
26-OCT-2022,7019686,1.44,BUNZL UK LTD T/A BUNZL CLEANING & HYGIENE SUPPLIES,027747,Commissioning & Asset Management,Children's & Education Services,103,Supplies and Services,504,Equipment,5023,Revenue,CLEANING & JANITORIAL.CLEANING MATERIALS
26-OCT-2022,7019686,4.34,BUNZL UK LTD T/A BUNZL CLEANING & HYGIENE SUPPLIES,027747,Commissioning & Asset Management,Children's & Education Services,103,Supplies and Services,504,Equipment,5023,Revenue,CLEANING & JANITORIAL.CLEANING MATERIALS
26-OCT-2022,7019686,4.62,BUNZL UK LTD T/A BUNZL CLEANING & HYGIENE SUPPLIES,027747,Commissioning & Asset Management,Children's & Education Services,103,Supplies and Services,504,Equipment,5023,Revenue,CLEANING & JANITORIAL.CLEANING MATERIALS
26-OCT-2022,7019686,4.87,BUNZL UK LTD T/A BUNZL CLEANING & HYGIENE SUPPLIES,027747,Commissioning & Asset Management,Children's & Education Services,103,Supplies and Services,504,Equipment,5023,Revenue,CLEANING & JANITORIAL.CLEANING MATERIALS
26-OCT-2022,7019686,9.3,BUNZL UK LTD T/A BUNZL CLEANING & HYGIENE SUPPLIES,027747,Commissioning & Asset Management,Children's & Education Services,103,Supplies and Services,504,Equipment,5023,Revenue,CLEANING & JANITORIAL.CLEANING MATERIALS
26-OCT-2022,7019686,9.74,BUNZL UK LTD T/A BUNZL CLEANING & HYGIENE SUPPLIES,027747,Commissioning & Asset Management,Children's & Education Services,103,Supplies and Services,504,Equipment,5023,Revenue,CLEANING & JANITORIAL.CLEANING MATERIALS
26-OCT-2022,7019686,11.84,BUNZL UK LTD T/A BUNZL CLEANING & HYGIENE SUPPLIES,027747,Commissioning & Asset Management,Children's & Education Services,103,Supplies and Services,504,Equipment,5023,Revenue,CLEANING & JANITORIAL.CLEANING MATERIALS
26-OCT-2022,7019686,12.89,BUNZL UK LTD T/A BUNZL CLEANING & HYGIENE SUPPLIES,027747,Commissioning & Asset Management,Children's & Education Services,103,Supplies and Services,504,Equipment,5023,Revenue,CLEANING & JANITORIAL.CLEANING MATERIALS
26-OCT-2022,7019686,13.87,BUNZL UK LTD T/A BUNZL CLEANING & HYGIENE SUPPLIES,027747,Commissioning & Asset Management,Children's & Education Services,103,Supplies and Services,504,Equipment,5023,Revenue,CLEANING & JANITORIAL.CLEANING MATERIALS
26-OCT-2022,7019686,19.48,BUNZL UK LTD T/A BUNZL CLEANING & HYGIENE SUPPLIES,027747,Commissioning & Asset Management,Children's & Education Services,103,Supplies and Services,504,Equipment,5023,Revenue,CLEANING & JANITORIAL.CLEANING MATERIALS
26-OCT-2022,7019686,20.72,BUNZL UK LTD T/A BUNZL CLEANING & HYGIENE SUPPLIES,027747,Commissioning & Asset Management,Children's & Education Services,103,Supplies and Services,504,Equipment,5023,Revenue,CLEANING & JANITORIAL.CLEANING MATERIALS
26-OCT-2022,7019686,2.76,BUNZL UK LTD T/A BUNZL CLEANING & HYGIENE SUPPLIES,027747,Commissioning & Asset Management,Children's & Education Services,103,Supplies and Services,504,Equipment,5023,Revenue,CLEANING & JANITORIAL.CLEANING MATERIALS
26-OCT-2022,7019686,2.76,BUNZL UK LTD T/A BUNZL CLEANING & HYGIENE SUPPLIES,027747,Commissioning & Asset Management,Children's & Education Services,103,Supplies and Services,504,Equipment,5023,Revenue,CLEANING & JANITORIAL.CLEANING MATERIALS
26-OCT-2022,7019686,3.97,BUNZL UK LTD T/A BUNZL CLEANING & HYGIENE SUPPLIES,027747,Commissioning & Asset Management,Children's & Education Services,103,Supplies and Services,504,Equipment,5023,Revenue,CLEANING & JANITORIAL.CLEANING MATERIALS
26-OCT-2022,7019686,4.28,BUNZL UK LTD T/A BUNZL CLEANING & HYGIENE SUPPLIES,027747,Commissioning & Asset Management,Children's & Education Services,103,Supplies and Services,504,Equipment,5023,Revenue,CLEANING & JANITORIAL.CLEANING MATERIALS
26-OCT-2022,7019686,4.62,BUNZL UK LTD T/A BUNZL CLEANING & HYGIENE SUPPLIES,027747,Commissioning & Asset Management,Children's & Education Services,103,Supplies and Services,504,Equipment,5023,Revenue,CLEANING & JANITORIAL.CLEANING MATERIALS
26-OCT-2022,7019686,4.88,BUNZL UK LTD T/A BUNZL CLEANING & HYGIENE SUPPLIES,027747,Commissioning & Asset Management,Children's & Education Services,103,Supplies and Services,504,Equipment,5023,Revenue,CLEANING & JANITORIAL.CLEANING MATERIALS
26-OCT-2022,7019686,8.64,BUNZL UK LTD T/A BUNZL CLEANING & HYGIENE SUPPLIES,027747,Commissioning & Asset Management,Children's & Education Services,103,Supplies and Services,504,Equipment,5023,Revenue,CLEANING & JANITORIAL.CLEANING MATERIALS
26-OCT-2022,7019686,9.3,BUNZL UK LTD T/A BUNZL CLEANING & HYGIENE SUPPLIES,027747,Commissioning & Asset Management,Children's & Education Services,103,Supplies and Services,504,Equipment,5023,Revenue,CLEANING & JANITORIAL.CLEANING MATERIALS
26-OCT-2022,7019686,10.1,BUNZL UK LTD T/A BUNZL CLEANING & HYGIENE SUPPLIES,027747,Commissioning & Asset Management,Children's & Education Services,103,Supplies and Services,504,Equipment,5023,Revenue,CLEANING & JANITORIAL.CLEANING MATERIALS
26-OCT-2022,7019686,10.36,BUNZL UK LTD T/A BUNZL CLEANING & HYGIENE SUPPLIES,027747,Commissioning & Asset Management,Children's & Education Services,103,Supplies and Services,504,Equipment,5023,Revenue,CLEANING & JANITORIAL.CLEANING MATERIALS
26-OCT-2022,7019686,12.89,BUNZL UK LTD T/A BUNZL CLEANING & HYGIENE SUPPLIES,027747,Commissioning & Asset Management,Children's & Education Services,103,Supplies and Services,504,Equipment,5023,Revenue,CLEANING & JANITORIAL.CLEANING MATERIALS
26-OCT-2022,7019686,14.64,BUNZL UK LTD T/A BUNZL CLEANING & HYGIENE SUPPLIES,027747,Commissioning & Asset Management,Children's & Education Services,103,Supplies and Services,504,Equipment,5023,Revenue,CLEANING & JANITORIAL.CLEANING MATERIALS
26-OCT-2022,7019686,19.48,BUNZL UK LTD T/A BUNZL CLEANING & HYGIENE SUPPLIES,027747,Commissioning & Asset Management,Children's & Education Services,103,Supplies and Services,504,Equipment,5023,Revenue,CLEANING & JANITORIAL.CLEANING MATERIALS
26-OCT-2022,7019686,22.9,BUNZL UK LTD T/A BUNZL CLEANING & HYGIENE SUPPLIES,027747,Commissioning & Asset Management,Children's & Education Services,103,Supplies and Services,504,Equipment,5023,Revenue,CLEANING & JANITORIAL.CLEANING MATERIALS
26-OCT-2022,7019686,38.58,BUNZL UK LTD T/A BUNZL CLEANING & HYGIENE SUPPLIES,027747,Commissioning & Asset Management,Children's & Education Services,103,Supplies and Services,504,Equipment,5023,Revenue,CLEANING & JANITORIAL.CLEANING MATERIALS
26-OCT-2022,7019686,38.96,BUNZL UK LTD T/A BUNZL CLEANING & HYGIENE SUPPLIES,027747,Commissioning & Asset Management,Children's & Education Services,103,Supplies and Services,504,Equipment,5023,Revenue,CLEANING & JANITORIAL.CLEANING MATERIALS
26-OCT-2022,7019686,38.96,BUNZL UK LTD T/A BUNZL CLEANING & HYGIENE SUPPLIES,027747,Commissioning & Asset Management,Children's & Education Services,103,Supplies and Services,504,Equipment,5023,Revenue,CLEANING & JANITORIAL.CLEANING MATERIALS
26-OCT-2022,7019686,0.92,BUNZL UK LTD T/A BUNZL CLEANING & HYGIENE SUPPLIES,027747,Commissioning & Asset Management,Children's & Education Services,103,Supplies and Services,504,Equipment,5023,Revenue,CLEANING & JANITORIAL.CLEANING MATERIALS
26-OCT-2022,7019686,4.88,BUNZL UK LTD T/A BUNZL CLEANING & HYGIENE SUPPLIES,027747,Commissioning & Asset Management,Children's & Education Services,103,Supplies and Services,504,Equipment,5023,Revenue,CLEANING & JANITORIAL.CLEANING MATERIALS
26-OCT-2022,7019686,9.74,BUNZL UK LTD T/A BUNZL CLEANING & HYGIENE SUPPLIES,027747,Commissioning & Asset Management,Children's & Education Services,103,Supplies and Services,504,Equipment,5023,Revenue,CLEANING & JANITORIAL.CLEANING MATERIALS
26-OCT-2022,7019686,9.74,BUNZL UK LTD T/A BUNZL CLEANING & HYGIENE SUPPLIES,027747,Commissioning & Asset Management,Children's & Education Services,103,Supplies and Services,504,Equipment,5023,Revenue,CLEANING & JANITORIAL.CLEANING MATERIALS
26-OCT-2022,7019686,10.36,BUNZL UK LTD T/A BUNZL CLEANING & HYGIENE SUPPLIES,027747,Commissioning & Asset Management,Children's & Education Services,103,Supplies and Services,504,Equipment,5023,Revenue,CLEANING & JANITORIAL.CLEANING MATERIALS
26-OCT-2022,7019686,12.86,BUNZL UK LTD T/A BUNZL CLEANING & HYGIENE SUPPLIES,027747,Commissioning & Asset Management,Children's & Education Services,103,Supplies and Services,504,Equipment,5023,Revenue,CLEANING & JANITORIAL.CLEANING MATERIALS
26-OCT-2022,7019686,12.89,BUNZL UK LTD T/A BUNZL CLEANING & HYGIENE SUPPLIES,027747,Commissioning & Asset Management,Children's & Education Services,103,Supplies and Services,504,Equipment,5023,Revenue,CLEANING & JANITORIAL.CLEANING MATERIALS
26-OCT-2022,7019686,13.87,BUNZL UK LTD T/A BUNZL CLEANING & HYGIENE SUPPLIES,027747,Commissioning & Asset Management,Children's & Education Services,103,Supplies and Services,504,Equipment,5023,Revenue,CLEANING & JANITORIAL.CLEANING MATERIALS
26-OCT-2022,7019686,9.3,BUNZL UK LTD T/A BUNZL CLEANING & HYGIENE SUPPLIES,027747,Commissioning & Asset Management,Children's & Education Services,103,Supplies and Services,504,Equipment,5023,Revenue,CLEANING & JANITORIAL.CLEANING MATERIALS
26-OCT-2022,7019686,9.74,BUNZL UK LTD T/A BUNZL CLEANING & HYGIENE SUPPLIES,027747,Commissioning & Asset Management,Children's & Education Services,103,Supplies and Services,504,Equipment,5023,Revenue,CLEANING & JANITORIAL.CLEANING MATERIALS
26-OCT-2022,7019686,9.74,BUNZL UK LTD T/A BUNZL CLEANING & HYGIENE SUPPLIES,027747,Commissioning & Asset Management,Children's & Education Services,103,Supplies and Services,504,Equipment,5023,Revenue,CLEANING & JANITORIAL.CLEANING MATERIALS
26-OCT-2022,7019686,11.84,BUNZL UK LTD T/A BUNZL CLEANING & HYGIENE SUPPLIES,027747,Commissioning & Asset Management,Children's & Education Services,103,Supplies and Services,504,Equipment,5023,Revenue,CLEANING & JANITORIAL.CLEANING MATERIALS
26-OCT-2022,7019686,12.89,BUNZL UK LTD T/A BUNZL CLEANING & HYGIENE SUPPLIES,027747,Commissioning & Asset Management,Children's & Education Services,103,Supplies and Services,504,Equipment,5023,Revenue,CLEANING & JANITORIAL.CLEANING MATERIALS
26-OCT-2022,7019686,14.61,BUNZL UK LTD T/A BUNZL CLEANING & HYGIENE SUPPLIES,027747,Commissioning & Asset Management,Children's & Education Services,103,Supplies and Services,504,Equipment,5023,Revenue,CLEANING & JANITORIAL.CLEANING MATERIALS
26-OCT-2022,7019686,22.32,BUNZL UK LTD T/A BUNZL CLEANING & HYGIENE SUPPLIES,027747,Commissioning & Asset Management,Children's & Education Services,103,Supplies and Services,504,Equipment,5023,Revenue,CLEANING & JANITORIAL.CLEANING MATERIALS
26-OCT-2022,7019686,25.72,BUNZL UK LTD T/A BUNZL CLEANING & HYGIENE SUPPLIES,027747,Commissioning & Asset Management,Children's & Education Services,103,Supplies and Services,504,Equipment,5023,Revenue,CLEANING & JANITORIAL.CLEANING MATERIALS
26-OCT-2022,7019686,25.9,BUNZL UK LTD T/A BUNZL CLEANING & HYGIENE SUPPLIES,027747,Commissioning & Asset Management,Children's & Education Services,103,Supplies and Services,504,Equipment,5023,Revenue,CLEANING & JANITORIAL.CLEANING MATERIALS
26-OCT-2022,7019686,27.74,BUNZL UK LTD T/A BUNZL CLEANING & HYGIENE SUPPLIES,027747,Commissioning & Asset Management,Children's & Education Services,103,Supplies and Services,504,Equipment,5023,Revenue,CLEANING & JANITORIAL.CLEANING MATERIALS
26-OCT-2022,7019686,5.92,BUNZL UK LTD T/A BUNZL CLEANING & HYGIENE SUPPLIES,027747,Commissioning & Asset Management,Children's & Education Services,103,Supplies and Services,504,Equipment,5023,Revenue,CLEANING & JANITORIAL.CLEANING MATERIALS
26-OCT-2022,7019686,9.3,BUNZL UK LTD T/A BUNZL CLEANING & HYGIENE SUPPLIES,027747,Commissioning & Asset Management,Children's & Education Services,103,Supplies and Services,504,Equipment,5023,Revenue,CLEANING & JANITORIAL.CLEANING MATERIALS
26-OCT-2022,7019686,10.36,BUNZL UK LTD T/A BUNZL CLEANING & HYGIENE SUPPLIES,027747,Commissioning & Asset Management,Children's & Education Services,103,Supplies and Services,504,Equipment,5023,Revenue,CLEANING & JANITORIAL.CLEANING MATERIALS
26-OCT-2022,7019686,108.86,BUNZL UK LTD T/A BUNZL CLEANING & HYGIENE SUPPLIES,027747,Commissioning & Asset Management,Children's & Education Services,103,Supplies and Services,504,Equipment,5023,Revenue,CLEANING & JANITORIAL.CLEANING MATERIALS
26-OCT-2022,7019686,17.08,BUNZL UK LTD T/A BUNZL CLEANING & HYGIENE SUPPLIES,027747,Commissioning & Asset Management,Children's & Education Services,103,Supplies and Services,504,Equipment,5023,Revenue,CLEANING & JANITORIAL.CLEANING MATERIALS
26-OCT-2022,7019686,31.08,BUNZL UK LTD T/A BUNZL CLEANING & HYGIENE SUPPLIES,027747,Commissioning & Asset Management,Children's & Education Services,103,Supplies and Services,504,Equipment,5023,Revenue,CLEANING & JANITORIAL.CLEANING MATERIALS
26-OCT-2022,7019686,55.48,BUNZL UK LTD T/A BUNZL CLEANING & HYGIENE SUPPLIES,027747,Commissioning & Asset Management,Children's & Education Services,103,Supplies and Services,504,Equipment,5023,Revenue,CLEANING & JANITORIAL.CLEANING MATERIALS
26-OCT-2022,7019687,37.5,KENILWORTH HOTEL,396858,General Fund Housing,Housing Services,108,Third Party Payments,505,Private Contractors,5042,Revenue,HUMAN RESOURCES.ACCOMMODATION
26-OCT-2022,7019687,200,KENILWORTH HOTEL,396858,General Fund Housing,Housing Services,108,Third Party Payments,505,Private Contractors,5042,Revenue,HUMAN RESOURCES.ACCOMMODATION
26-OCT-2022,7019687,362.5,KENILWORTH HOTEL,396858,General Fund Housing,Housing Services,108,Third Party Payments,505,Private Contractors,5042,Revenue,HUMAN RESOURCES.ACCOMMODATION
26-OCT-2022,7019687,437.5,KENILWORTH HOTEL,396858,General Fund Housing,Housing Services,108,Third Party Payments,505,Private Contractors,5042,Revenue,HUMAN RESOURCES.ACCOMMODATION
26-OCT-2022,7019687,437.5,KENILWORTH HOTEL,396858,General Fund Housing,Housing Services,108,Third Party Payments,505,Private Contractors,5042,Revenue,HUMAN RESOURCES.ACCOMMODATION
26-OCT-2022,7019687,437.5,KENILWORTH HOTEL,396858,General Fund Housing,Housing Services,108,Third Party Payments,505,Private Contractors,5042,Revenue,HUMAN RESOURCES.ACCOMMODATION
26-OCT-2022,7019687,437.5,KENILWORTH HOTEL,396858,General Fund Housing,Housing Services,108,Third Party Payments,505,Private Contractors,5042,Revenue,HUMAN RESOURCES.ACCOMMODATION
26-OCT-2022,7019687,437.5,KENILWORTH HOTEL,396858,General Fund Housing,Housing Services,108,Third Party Payments,505,Private Contractors,5042,Revenue,HUMAN RESOURCES.ACCOMMODATION
26-OCT-2022,7019687,437.5,KENILWORTH HOTEL,396858,General Fund Housing,Housing Services,108,Third Party Payments,505,Private Contractors,5042,Revenue,HUMAN RESOURCES.ACCOMMODATION
26-OCT-2022,7019687,437.5,KENILWORTH HOTEL,396858,General Fund Housing,Housing Services,108,Third Party Payments,505,Private Contractors,5042,Revenue,HUMAN RESOURCES.ACCOMMODATION
26-OCT-2022,7019687,437.5,KENILWORTH HOTEL,396858,General Fund Housing,Housing Services,108,Third Party Payments,505,Private Contractors,5042,Revenue,HUMAN RESOURCES.ACCOMMODATION
26-OCT-2022,7019687,437.5,KENILWORTH HOTEL,396858,General Fund Housing,Housing Services,108,Third Party Payments,505,Private Contractors,5042,Revenue,HUMAN RESOURCES.ACCOMMODATION
26-OCT-2022,7019687,437.5,KENILWORTH HOTEL,396858,General Fund Housing,Housing Services,108,Third Party Payments,505,Private Contractors,5042,Revenue,HUMAN RESOURCES.ACCOMMODATION
26-OCT-2022,7019687,437.5,KENILWORTH HOTEL,396858,General Fund Housing,Housing Services,108,Third Party Payments,505,Private Contractors,5042,Revenue,HUMAN RESOURCES.ACCOMMODATION
26-OCT-2022,7019687,520.83,KENILWORTH HOTEL,396858,General Fund Housing,Housing Services,108,Third Party Payments,505,Private Contractors,5042,Revenue,HUMAN RESOURCES.ACCOMMODATION
26-OCT-2022,7019687,520.83,KENILWORTH HOTEL,396858,General Fund Housing,Housing Services,108,Third Party Payments,505,Private Contractors,5042,Revenue,HUMAN RESOURCES.ACCOMMODATION
26-OCT-2022,7019687,520.83,KENILWORTH HOTEL,396858,General Fund Housing,Housing Services,108,Third Party Payments,505,Private Contractors,5042,Revenue,HUMAN RESOURCES.ACCOMMODATION
26-OCT-2022,7019688,38.33,JUMP 360 BENTON,396514,"Health, Education, Care and Safeguarding",Children's & Education Services,103,Supplies and Services,504,Miscellaneous Expenses,5034,Revenue,ADVERTISING & MARKETING.EVENTS & PROMOTIONS
26-OCT-2022,7019689,41.67,BOROUGH IT LTD,396489,Housing Property and Construction,Housing Services,108,Supplies and Services,504,Miscellaneous Expenses,5034,Revenue,ICT.SOFTWARE
26-OCT-2022,7019689,41.67,BOROUGH IT LTD,396489,Housing Property and Construction,Housing Services,108,Supplies and Services,504,Miscellaneous Expenses,5034,Revenue,ICT.SOFTWARE
26-OCT-2022,7019690,0.01,ALCATRAZ GUEST HOUSE,387483,General Fund Housing,Housing Services,108,Third Party Payments,505,Private Contractors,5042,Revenue,SOCIAL CARE.CARE SERVICES
26-OCT-2022,7019690,66.67,ALCATRAZ GUEST HOUSE,387483,General Fund Housing,Housing Services,108,Third Party Payments,505,Private Contractors,5042,Revenue,SOCIAL CARE.CARE SERVICES
26-OCT-2022,7019690,66.67,ALCATRAZ GUEST HOUSE,387483,General Fund Housing,Housing Services,108,Third Party Payments,505,Private Contractors,5042,Revenue,SOCIAL CARE.CARE SERVICES
26-OCT-2022,7019690,66.67,ALCATRAZ GUEST HOUSE,387483,General Fund Housing,Housing Services,108,Third Party Payments,505,Private Contractors,5042,Revenue,SOCIAL CARE.CARE SERVICES
26-OCT-2022,7019690,66.67,ALCATRAZ GUEST HOUSE,387483,General Fund Housing,Housing Services,108,Third Party Payments,505,Private Contractors,5042,Revenue,SOCIAL CARE.CARE SERVICES
26-OCT-2022,7019690,66.67,ALCATRAZ GUEST HOUSE,387483,General Fund Housing,Housing Services,108,Third Party Payments,505,Private Contractors,5042,Revenue,SOCIAL CARE.CARE SERVICES
26-OCT-2022,7019690,66.67,ALCATRAZ GUEST HOUSE,387483,General Fund Housing,Housing Services,108,Third Party Payments,505,Private Contractors,5042,Revenue,SOCIAL CARE.CARE SERVICES
26-OCT-2022,7019690,66.67,ALCATRAZ GUEST HOUSE,387483,General Fund Housing,Housing Services,108,Third Party Payments,505,Private Contractors,5042,Revenue,SOCIAL CARE.CARE SERVICES
26-OCT-2022,7019690,66.67,ALCATRAZ GUEST HOUSE,387483,General Fund Housing,Housing Services,108,Third Party Payments,505,Private Contractors,5042,Revenue,SOCIAL CARE.CARE SERVICES
26-OCT-2022,7019690,100,ALCATRAZ GUEST HOUSE,387483,General Fund Housing,Housing Services,108,Third Party Payments,505,Private Contractors,5042,Revenue,SOCIAL CARE.CARE SERVICES
26-OCT-2022,7019690,100,ALCATRAZ GUEST HOUSE,387483,General Fund Housing,Housing Services,108,Third Party Payments,505,Private Contractors,5042,Revenue,SOCIAL CARE.CARE SERVICES
26-OCT-2022,7019690,100,ALCATRAZ GUEST HOUSE,387483,General Fund Housing,Housing Services,108,Third Party Payments,505,Private Contractors,5042,Revenue,SOCIAL CARE.CARE SERVICES
26-OCT-2022,7019690,100,ALCATRAZ GUEST HOUSE,387483,General Fund Housing,Housing Services,108,Third Party Payments,505,Private Contractors,5042,Revenue,SOCIAL CARE.CARE SERVICES
26-OCT-2022,7019690,133.33,ALCATRAZ GUEST HOUSE,387483,General Fund Housing,Housing Services,108,Third Party Payments,505,Private Contractors,5042,Revenue,SOCIAL CARE.CARE SERVICES
26-OCT-2022,7019690,166.67,ALCATRAZ GUEST HOUSE,387483,General Fund Housing,Housing Services,108,Third Party Payments,505,Private Contractors,5042,Revenue,SOCIAL CARE.CARE SERVICES
26-OCT-2022,7019690,166.67,ALCATRAZ GUEST HOUSE,387483,General Fund Housing,Housing Services,108,Third Party Payments,505,Private Contractors,5042,Revenue,SOCIAL CARE.CARE SERVICES
26-OCT-2022,7019690,0.01,ALCATRAZ GUEST HOUSE,387483,General Fund Housing,Housing Services,108,Third Party Payments,505,Private Contractors,5042,Revenue,SOCIAL CARE.CARE SERVICES
26-OCT-2022,7019690,0.01,ALCATRAZ GUEST HOUSE,387483,General Fund Housing,Housing Services,108,Third Party Payments,505,Private Contractors,5042,Revenue,SOCIAL CARE.CARE SERVICES
26-OCT-2022,7019690,133.33,ALCATRAZ GUEST HOUSE,387483,General Fund Housing,Housing Services,108,Third Party Payments,505,Private Contractors,5042,Revenue,SOCIAL CARE.CARE SERVICES
26-OCT-2022,7019690,133.33,ALCATRAZ GUEST HOUSE,387483,General Fund Housing,Housing Services,108,Third Party Payments,505,Private Contractors,5042,Revenue,SOCIAL CARE.CARE SERVICES
26-OCT-2022,7019690,200,ALCATRAZ GUEST HOUSE,387483,General Fund Housing,Housing Services,108,Third Party Payments,505,Private Contractors,5042,Revenue,SOCIAL CARE.CARE SERVICES
26-OCT-2022,7019690,200,ALCATRAZ GUEST HOUSE,387483,General Fund Housing,Housing Services,108,Third Party Payments,505,Private Contractors,5042,Revenue,SOCIAL CARE.CARE SERVICES
26-OCT-2022,7019691,6.98,COSTCO WHOLESALE UK LTD,365283,Local Environmental Services,Cultural & Related Services,104,Supplies and Services,504,Equipment,5023,Revenue,SOCIAL CARE.LEAVING CARE SERVICES
26-OCT-2022,7019692,15.99,NETFLIX.COM,395937,"Health, Education, Care and Safeguarding",Children's & Education Services,103,Supplies and Services,504,Miscellaneous Expenses,5034,Revenue,ADVERTISING & MARKETING.EVENTS & PROMOTIONS
26-OCT-2022,7019693,883.33,ENGLAND ATHLETICS LTD,380408,Regeneration & Economic Development,Cultural & Related Services,104,Third Party Payments,505,Private Contractors,5042,Revenue,HUMAN RESOURCES.TRAINING & CONFERENCES
26-OCT-2022,7019694,20.8,ADOBE  CREATIVE CLOUD,395909,"Health, Education, Care and Safeguarding",Children's & Education Services,103,Supplies and Services,504,Communications & Computing,5028,Revenue,ICT.SOFTWARE
26-OCT-2022,7019695,50,EARLY EXCELLENCE LIMITED,355794,"Health, Education, Care and Safeguarding",Children's & Education Services,103,Employees,501,Indirect Employee Expenses,5002,Revenue,HUMAN RESOURCES.TRAINING & CONFERENCES
26-OCT-2022,7019696,9.52,UTILITA ENERGY LIMITED,395514,"Health, Education, Care and Safeguarding",Children's & Education Services,103,Supplies and Services,504,Communications & Computing,5028,Revenue,GAS.GAS
26-OCT-2022,7019696,9.52,UTILITA ENERGY LIMITED,395514,"Health, Education, Care and Safeguarding",Children's & Education Services,103,Supplies and Services,504,Communications & Computing,5028,Revenue,GAS.GAS
26-OCT-2022,7019696,14.29,UTILITA ENERGY LIMITED,395514,"Health, Education, Care and Safeguarding",Children's & Education Services,103,Supplies and Services,504,Communications & Computing,5028,Revenue,GAS.GAS
26-OCT-2022,7019696,95.24,UTILITA ENERGY LIMITED,395514,"Health, Education, Care and Safeguarding",Children's & Education Services,103,Supplies and Services,504,Communications & Computing,5028,Revenue,GAS.GAS
26-OCT-2022,7019696,15,UTILITA ENERGY LIMITED,395514,"Health, Education, Care and Safeguarding",Children's & Education Services,103,Third Party Payments,505,Other Establishments,5041,Revenue,GAS.GAS
26-OCT-2022,7019696,109.85,UTILITA ENERGY LIMITED,395514,Housing Operations,Housing Revenue Account,N/A,Premises-Related Expenditure,502,Energy Costs,5006,Revenue,GAS.GAS
26-OCT-2022,7019697,701.25,HOTEL ONBOOKING.COM,395243,"Health, Education, Care and Safeguarding",Children's & Education Services,103,Third Party Payments,505,Private Contractors,5042,Revenue,HUMAN RESOURCES.ACCOMMODATION
26-OCT-2022,7019697,997.33,HOTEL ONBOOKING.COM,395243,"Health, Education, Care and Safeguarding",Children's & Education Services,103,Third Party Payments,505,Private Contractors,5042,Revenue,HUMAN RESOURCES.ACCOMMODATION
26-OCT-2022,7019697,1448.9,HOTEL ONBOOKING.COM,395243,"Health, Education, Care and Safeguarding",Children's & Education Services,103,Third Party Payments,505,Private Contractors,5042,Revenue,HUMAN RESOURCES.ACCOMMODATION
26-OCT-2022,7019697,-0.01,HOTEL ONBOOKING.COM,395243,"Health, Education, Care and Safeguarding",Children's & Education Services,103,Supplies and Services,504,Expenses,5030,Revenue,HUMAN RESOURCES.ACCOMMODATION
26-OCT-2022,7019697,328.5,HOTEL ONBOOKING.COM,395243,"Health, Education, Care and Safeguarding",Children's & Education Services,103,Supplies and Services,504,Expenses,5030,Revenue,HUMAN RESOURCES.ACCOMMODATION
26-OCT-2022,7019697,565.48,HOTEL ONBOOKING.COM,395243,"Health, Education, Care and Safeguarding",Children's & Education Services,103,Supplies and Services,504,Expenses,5030,Revenue,HUMAN RESOURCES.ACCOMMODATION
26-OCT-2022,7019698,120.55,MOJO HELPDESK,394317,"Health, Education, Care and Safeguarding",Children's & Education Services,103,Supplies and Services,504,Communications & Computing,5028,Revenue,ICT.SOFTWARE
26-OCT-2022,7019699,10,VIMEO.COM,393893,"Health, Education, Care and Safeguarding",Children's & Education Services,103,Supplies and Services,504,Communications & Computing,5028,Revenue,ICT.SOFTWARE
26-OCT-2022,7019700,0.01,TOOLSTATION LTD,393689,Regeneration & Economic Development,Cultural & Related Services,104,Third Party Payments,505,Private Contractors,5042,Revenue,HORTICULTURAL.TOOLS & EQUIPMENT
26-OCT-2022,7019700,8.57,TOOLSTATION LTD,393689,Regeneration & Economic Development,Cultural & Related Services,104,Third Party Payments,505,Private Contractors,5042,Revenue,HORTICULTURAL.TOOLS & EQUIPMENT
26-OCT-2022,7019700,24.98,TOOLSTATION LTD,393689,Regeneration & Economic Development,Cultural & Related Services,104,Third Party Payments,505,Private Contractors,5042,Revenue,HORTICULTURAL.TOOLS & EQUIPMENT
26-OCT-2022,7019701,28.57,MOORPARK CONVENIENCE,393460,Housing Operations,Housing Revenue Account,N/A,Premises-Related Expenditure,502,Energy Costs,5006,Revenue,CATERING.FOOD & BEVERAGES
26-OCT-2022,7019702,13.75,TAHDAH VERIFIED,393356,"Sport, Leisure & Community",Cultural & Related Services,104,Supplies and Services,504,Equipment,5023,Revenue,ICT.SOFTWARE
26-OCT-2022,7019702,22.5,TAHDAH VERIFIED,393356,"Sport, Leisure & Community",Cultural & Related Services,104,Supplies and Services,504,Equipment,5023,Revenue,ICT.SOFTWARE
26-OCT-2022,7019703,17.67,JUST EAT,393240,Corporate Strategy,Children's & Education Services,103,Supplies and Services,504,Catering,5024,Revenue,HUMAN RESOURCES.TRAVEL & SUBSISTENCE
26-OCT-2022,7019703,70.96,JUST EAT,393240,Corporate Strategy,Children's & Education Services,103,Supplies and Services,504,Catering,5024,Revenue,HUMAN RESOURCES.TRAVEL & SUBSISTENCE
26-OCT-2022,7019704,97.23,FACEBOOK,393228,"Health, Education, Care and Safeguarding",Children's & Education Services,103,Supplies and Services,504,Equipment,5023,Revenue,ADVERTISING & MARKETING.ADVERTISING
26-OCT-2022,7019704,20.08,FACEBOOK,393228,"Health, Education, Care and Safeguarding",Children's & Education Services,103,Supplies and Services,504,Equipment,5023,Revenue,ADVERTISING & MARKETING.ADVERTISING
26-OCT-2022,7019704,0.01,FACEBOOK,393228,"Sport, Leisure & Community",Cultural & Related Services,104,Supplies and Services,504,"Printing, Stationery and General Office Expenses",5026,Revenue,ADVERTISING & MARKETING.ADVERTISING
26-OCT-2022,7019704,40.53,FACEBOOK,393228,"Sport, Leisure & Community",Cultural & Related Services,104,Supplies and Services,504,"Printing, Stationery and General Office Expenses",5026,Revenue,ADVERTISING & MARKETING.ADVERTISING
26-OCT-2022,7019704,44.78,FACEBOOK,393228,Regeneration & Economic Development,Environmental & Regulatory Services,105,Third Party Payments,505,Private Contractors,5042,Revenue,ADVERTISING & MARKETING.ADVERTISING
26-OCT-2022,7019705,46.3,TK MAXX,392657,"Health, Education, Care and Safeguarding",Children's & Education Services,103,Supplies and Services,504,Equipment,5023,Revenue,FURNITURE.DOMESTIC
26-OCT-2022,7019705,0.01,TK MAXX,392657,"Health, Education, Care and Safeguarding",Children's & Education Services,103,Supplies and Services,504,"Clothing, Uniforms and Laundry",5025,Revenue,FURNITURE.DOMESTIC
26-OCT-2022,7019705,27.47,TK MAXX,392657,"Health, Education, Care and Safeguarding",Children's & Education Services,103,Supplies and Services,504,"Clothing, Uniforms and Laundry",5025,Revenue,FURNITURE.DOMESTIC
26-OCT-2022,7019705,113.3,TK MAXX,392657,"Health, Education, Care and Safeguarding",Children's & Education Services,103,Supplies and Services,504,Equipment,5023,Revenue,FURNITURE.DOMESTIC
26-OCT-2022,7019705,48.49,TK MAXX,392657,"Health, Education, Care and Safeguarding",Children's & Education Services,103,Supplies and Services,504,"Clothing, Uniforms and Laundry",5025,Revenue,FURNITURE.DOMESTIC
26-OCT-2022,7019705,0.01,TK MAXX,392657,"Health, Education, Care and Safeguarding",Children's & Education Services,103,Supplies and Services,504,Miscellaneous Expenses,5034,Revenue,FURNITURE.DOMESTIC
26-OCT-2022,7019705,16.22,TK MAXX,392657,"Health, Education, Care and Safeguarding",Children's & Education Services,103,Supplies and Services,504,Miscellaneous Expenses,5034,Revenue,FURNITURE.DOMESTIC
26-OCT-2022,7019706,14.29,BRITISH GAS BUSINESS,361360,"Health, Education, Care and Safeguarding",Children's & Education Services,103,Third Party Payments,505,Other Establishments,5041,Revenue,GAS.GAS
26-OCT-2022,7019706,0.01,BRITISH GAS BUSINESS,361360,Housing Operations,Housing Revenue Account,N/A,Premises-Related Expenditure,502,Energy Costs,5006,Revenue,GAS.GAS
26-OCT-2022,7019706,602.44,BRITISH GAS BUSINESS,361360,Housing Operations,Housing Revenue Account,N/A,Premises-Related Expenditure,502,Energy Costs,5006,Revenue,GAS.GAS
26-OCT-2022,7019706,716.87,BRITISH GAS BUSINESS,361360,Housing Operations,Housing Revenue Account,N/A,Premises-Related Expenditure,502,Energy Costs,5006,Revenue,GAS.GAS
26-OCT-2022,7019706,-0.01,BRITISH GAS BUSINESS,361360,Housing Operations,Housing Revenue Account,N/A,Premises-Related Expenditure,502,Energy Costs,5006,Revenue,GAS.GAS
26-OCT-2022,7019706,8.33,BRITISH GAS BUSINESS,361360,Housing Operations,Housing Revenue Account,N/A,Premises-Related Expenditure,502,Energy Costs,5006,Revenue,GAS.GAS
26-OCT-2022,7019706,58.31,BRITISH GAS BUSINESS,361360,Housing Operations,Housing Revenue Account,N/A,Premises-Related Expenditure,502,Energy Costs,5006,Revenue,GAS.GAS
26-OCT-2022,7019706,138.54,BRITISH GAS BUSINESS,361360,Housing Operations,Housing Revenue Account,N/A,Premises-Related Expenditure,502,Energy Costs,5006,Revenue,GAS.GAS
26-OCT-2022,7019706,337.81,BRITISH GAS BUSINESS,361360,Housing Operations,Housing Revenue Account,N/A,Premises-Related Expenditure,502,Energy Costs,5006,Revenue,GAS.GAS
26-OCT-2022,7019706,418.66,BRITISH GAS BUSINESS,361360,Housing Operations,Housing Revenue Account,N/A,Premises-Related Expenditure,502,Energy Costs,5006,Revenue,GAS.GAS
26-OCT-2022,7019706,762.1,BRITISH GAS BUSINESS,361360,Housing Operations,Housing Revenue Account,N/A,Premises-Related Expenditure,502,Energy Costs,5006,Revenue,GAS.GAS
26-OCT-2022,7019706,858.09,BRITISH GAS BUSINESS,361360,Housing Operations,Housing Revenue Account,N/A,Premises-Related Expenditure,502,Energy Costs,5006,Revenue,GAS.GAS
26-OCT-2022,7019706,858.09,BRITISH GAS BUSINESS,361360,Housing Operations,Housing Revenue Account,N/A,Premises-Related Expenditure,502,Energy Costs,5006,Revenue,GAS.GAS
26-OCT-2022,7019707,-0.01,AO RETAIL LIMITED,392123,"Sport, Leisure & Community",Cultural & Related Services,104,Supplies and Services,504,Equipment,5023,Revenue,CATERING.EQUIPMENT & UTENSILS
26-OCT-2022,7019707,60.83,AO RETAIL LIMITED,392123,"Sport, Leisure & Community",Cultural & Related Services,104,Supplies and Services,504,Equipment,5023,Revenue,CATERING.EQUIPMENT & UTENSILS
26-OCT-2022,7019708,50,ON A ROLL SANDWICH COMPANY,391893,Commissioning & Asset Management,Children's & Education Services,103,Supplies and Services,504,Equipment,5023,Revenue,CATERING.FOOD & BEVERAGES
26-OCT-2022,7019708,50,ON A ROLL SANDWICH COMPANY,391893,Commissioning & Asset Management,Children's & Education Services,103,Supplies and Services,504,Equipment,5023,Revenue,CATERING.FOOD & BEVERAGES
26-OCT-2022,7019708,49.1,ON A ROLL SANDWICH COMPANY,391893,Commissioning & Asset Management,Children's & Education Services,103,Supplies and Services,504,Equipment,5023,Revenue,CATERING.FOOD & BEVERAGES
26-OCT-2022,7019708,49.1,ON A ROLL SANDWICH COMPANY,391893,Commissioning & Asset Management,Children's & Education Services,103,Supplies and Services,504,Equipment,5023,Revenue,CATERING.FOOD & BEVERAGES
26-OCT-2022,7019708,143,ON A ROLL SANDWICH COMPANY,391893,Commissioning & Asset Management,Children's & Education Services,103,Supplies and Services,504,Equipment,5023,Revenue,CATERING.FOOD & BEVERAGES
26-OCT-2022,7019708,161.9,ON A ROLL SANDWICH COMPANY,391893,Commissioning & Asset Management,Children's & Education Services,103,Supplies and Services,504,Equipment,5023,Revenue,CATERING.FOOD & BEVERAGES
26-OCT-2022,7019708,191.25,ON A ROLL SANDWICH COMPANY,391893,Commissioning & Asset Management,Children's & Education Services,103,Supplies and Services,504,Equipment,5023,Revenue,CATERING.FOOD & BEVERAGES
26-OCT-2022,7019708,211.99,ON A ROLL SANDWICH COMPANY,391893,Commissioning & Asset Management,Children's & Education Services,103,Supplies and Services,504,Equipment,5023,Revenue,CATERING.FOOD & BEVERAGES
26-OCT-2022,7019708,320.5,ON A ROLL SANDWICH COMPANY,391893,Commissioning & Asset Management,Children's & Education Services,103,Supplies and Services,504,Equipment,5023,Revenue,CATERING.FOOD & BEVERAGES
26-OCT-2022,7019708,394.75,ON A ROLL SANDWICH COMPANY,391893,Commissioning & Asset Management,Children's & Education Services,103,Supplies and Services,504,Equipment,5023,Revenue,CATERING.FOOD & BEVERAGES
26-OCT-2022,7019708,157.37,ON A ROLL SANDWICH COMPANY,391893,Commissioning & Asset Management,Children's & Education Services,103,Supplies and Services,504,Equipment,5023,Revenue,CATERING.FOOD & BEVERAGES
26-OCT-2022,7019708,159.08,ON A ROLL SANDWICH COMPANY,391893,Commissioning & Asset Management,Children's & Education Services,103,Supplies and Services,504,Equipment,5023,Revenue,CATERING.FOOD & BEVERAGES
26-OCT-2022,7019708,268.16,ON A ROLL SANDWICH COMPANY,391893,Commissioning & Asset Management,Children's & Education Services,103,Supplies and Services,504,Equipment,5023,Revenue,CATERING.FOOD & BEVERAGES
26-OCT-2022,7019708,348.28,ON A ROLL SANDWICH COMPANY,391893,Commissioning & Asset Management,Children's & Education Services,103,Supplies and Services,504,Equipment,5023,Revenue,CATERING.FOOD & BEVERAGES
26-OCT-2022,7019708,1631.22,ON A ROLL SANDWICH COMPANY,391893,Commissioning & Asset Management,Children's & Education Services,103,Supplies and Services,504,Equipment,5023,Revenue,CATERING.FOOD & BEVERAGES
26-OCT-2022,7019708,2040.11,ON A ROLL SANDWICH COMPANY,391893,Commissioning & Asset Management,Children's & Education Services,103,Supplies and Services,504,Equipment,5023,Revenue,CATERING.FOOD & BEVERAGES
26-OCT-2022,7019708,2093.62,ON A ROLL SANDWICH COMPANY,391893,Commissioning & Asset Management,Children's & Education Services,103,Supplies and Services,504,Equipment,5023,Revenue,CATERING.FOOD & BEVERAGES
26-OCT-2022,7019708,108.88,ON A ROLL SANDWICH COMPANY,391893,Commissioning & Asset Management,Children's & Education Services,103,Supplies and Services,504,Equipment,5023,Revenue,CATERING.FOOD & BEVERAGES
26-OCT-2022,7019708,108.88,ON A ROLL SANDWICH COMPANY,391893,Commissioning & Asset Management,Children's & Education Services,103,Supplies and Services,504,Equipment,5023,Revenue,CATERING.FOOD & BEVERAGES
26-OCT-2022,7019708,138.03,ON A ROLL SANDWICH COMPANY,391893,Commissioning & Asset Management,Children's & Education Services,103,Supplies and Services,504,Equipment,5023,Revenue,CATERING.FOOD & BEVERAGES
26-OCT-2022,7019708,163.32,ON A ROLL SANDWICH COMPANY,391893,Commissioning & Asset Management,Children's & Education Services,103,Supplies and Services,504,Equipment,5023,Revenue,CATERING.FOOD & BEVERAGES
26-OCT-2022,7019708,896.23,ON A ROLL SANDWICH COMPANY,391893,Commissioning & Asset Management,Children's & Education Services,103,Supplies and Services,504,Equipment,5023,Revenue,CATERING.FOOD & BEVERAGES
26-OCT-2022,7019708,986.02,ON A ROLL SANDWICH COMPANY,391893,Commissioning & Asset Management,Children's & Education Services,103,Supplies and Services,504,Equipment,5023,Revenue,CATERING.FOOD & BEVERAGES
26-OCT-2022,7019708,1414.98,ON A ROLL SANDWICH COMPANY,391893,Commissioning & Asset Management,Children's & Education Services,103,Supplies and Services,504,Equipment,5023,Revenue,CATERING.FOOD & BEVERAGES
26-OCT-2022,7019708,1647.49,ON A ROLL SANDWICH COMPANY,391893,Commissioning & Asset Management,Children's & Education Services,103,Supplies and Services,504,Equipment,5023,Revenue,CATERING.FOOD & BEVERAGES
26-OCT-2022,7019708,1113.24,ON A ROLL SANDWICH COMPANY,391893,Commissioning & Asset Management,Children's & Education Services,103,Supplies and Services,504,Equipment,5023,Revenue,CATERING.FOOD & BEVERAGES
26-OCT-2022,7019708,1157.32,ON A ROLL SANDWICH COMPANY,391893,Commissioning & Asset Management,Children's & Education Services,103,Supplies and Services,504,Equipment,5023,Revenue,CATERING.FOOD & BEVERAGES
26-OCT-2022,7019708,1245.6,ON A ROLL SANDWICH COMPANY,391893,Commissioning & Asset Management,Children's & Education Services,103,Supplies and Services,504,Equipment,5023,Revenue,CATERING.FOOD & BEVERAGES
26-OCT-2022,7019708,1387.17,ON A ROLL SANDWICH COMPANY,391893,Commissioning & Asset Management,Children's & Education Services,103,Supplies and Services,504,Equipment,5023,Revenue,CATERING.FOOD & BEVERAGES
26-OCT-2022,7019708,336.31,ON A ROLL SANDWICH COMPANY,391893,Commissioning & Asset Management,Children's & Education Services,103,Supplies and Services,504,Equipment,5023,Revenue,CATERING.FOOD & BEVERAGES
26-OCT-2022,7019708,509.84,ON A ROLL SANDWICH COMPANY,391893,Commissioning & Asset Management,Children's & Education Services,103,Supplies and Services,504,Equipment,5023,Revenue,CATERING.FOOD & BEVERAGES
26-OCT-2022,7019708,609.49,ON A ROLL SANDWICH COMPANY,391893,Commissioning & Asset Management,Children's & Education Services,103,Supplies and Services,504,Equipment,5023,Revenue,CATERING.FOOD & BEVERAGES
26-OCT-2022,7019708,829.51,ON A ROLL SANDWICH COMPANY,391893,Commissioning & Asset Management,Children's & Education Services,103,Supplies and Services,504,Equipment,5023,Revenue,CATERING.FOOD & BEVERAGES
26-OCT-2022,7019708,481.42,ON A ROLL SANDWICH COMPANY,391893,Commissioning & Asset Management,Children's & Education Services,103,Supplies and Services,504,Equipment,5023,Revenue,CATERING.FOOD & BEVERAGES
26-OCT-2022,7019708,578.41,ON A ROLL SANDWICH COMPANY,391893,Commissioning & Asset Management,Children's & Education Services,103,Supplies and Services,504,Equipment,5023,Revenue,CATERING.FOOD & BEVERAGES
26-OCT-2022,7019708,588.64,ON A ROLL SANDWICH COMPANY,391893,Commissioning & Asset Management,Children's & Education Services,103,Supplies and Services,504,Equipment,5023,Revenue,CATERING.FOOD & BEVERAGES
26-OCT-2022,7019708,601.74,ON A ROLL SANDWICH COMPANY,391893,Commissioning & Asset Management,Children's & Education Services,103,Supplies and Services,504,Equipment,5023,Revenue,CATERING.FOOD & BEVERAGES
26-OCT-2022,7019708,701.38,ON A ROLL SANDWICH COMPANY,391893,Commissioning & Asset Management,Children's & Education Services,103,Supplies and Services,504,Equipment,5023,Revenue,CATERING.FOOD & BEVERAGES
26-OCT-2022,7019708,738.5,ON A ROLL SANDWICH COMPANY,391893,Commissioning & Asset Management,Children's & Education Services,103,Supplies and Services,504,Equipment,5023,Revenue,CATERING.FOOD & BEVERAGES
26-OCT-2022,7019708,742.11,ON A ROLL SANDWICH COMPANY,391893,Commissioning & Asset Management,Children's & Education Services,103,Supplies and Services,504,Equipment,5023,Revenue,CATERING.FOOD & BEVERAGES
26-OCT-2022,7019708,820.22,ON A ROLL SANDWICH COMPANY,391893,Commissioning & Asset Management,Children's & Education Services,103,Supplies and Services,504,Equipment,5023,Revenue,CATERING.FOOD & BEVERAGES
26-OCT-2022,7019708,818.73,ON A ROLL SANDWICH COMPANY,391893,Commissioning & Asset Management,Children's & Education Services,103,Supplies and Services,504,Equipment,5023,Revenue,CATERING.FOOD & BEVERAGES
26-OCT-2022,7019708,1417.26,ON A ROLL SANDWICH COMPANY,391893,Commissioning & Asset Management,Children's & Education Services,103,Supplies and Services,504,Equipment,5023,Revenue,CATERING.FOOD & BEVERAGES
26-OCT-2022,7019708,1566.52,ON A ROLL SANDWICH COMPANY,391893,Commissioning & Asset Management,Children's & Education Services,103,Supplies and Services,504,Equipment,5023,Revenue,CATERING.FOOD & BEVERAGES
26-OCT-2022,7019708,414.68,ON A ROLL SANDWICH COMPANY,391893,Commissioning & Asset Management,Children's & Education Services,103,Supplies and Services,504,Equipment,5023,Revenue,CATERING.FOOD & BEVERAGES
26-OCT-2022,7019708,737.43,ON A ROLL SANDWICH COMPANY,391893,Commissioning & Asset Management,Children's & Education Services,103,Supplies and Services,504,Equipment,5023,Revenue,CATERING.FOOD & BEVERAGES
26-OCT-2022,7019708,961.44,ON A ROLL SANDWICH COMPANY,391893,Commissioning & Asset Management,Children's & Education Services,103,Supplies and Services,504,Equipment,5023,Revenue,CATERING.FOOD & BEVERAGES
26-OCT-2022,7019708,1073.62,ON A ROLL SANDWICH COMPANY,391893,Commissioning & Asset Management,Children's & Education Services,103,Supplies and Services,504,Equipment,5023,Revenue,CATERING.FOOD & BEVERAGES
26-OCT-2022,7019708,569.66,ON A ROLL SANDWICH COMPANY,391893,Commissioning & Asset Management,Children's & Education Services,103,Supplies and Services,504,Equipment,5023,Revenue,CATERING.FOOD & BEVERAGES
26-OCT-2022,7019708,1005.74,ON A ROLL SANDWICH COMPANY,391893,Commissioning & Asset Management,Children's & Education Services,103,Supplies and Services,504,Equipment,5023,Revenue,CATERING.FOOD & BEVERAGES
26-OCT-2022,7019708,1032.64,ON A ROLL SANDWICH COMPANY,391893,Commissioning & Asset Management,Children's & Education Services,103,Supplies and Services,504,Equipment,5023,Revenue,CATERING.FOOD & BEVERAGES
26-OCT-2022,7019708,1042.38,ON A ROLL SANDWICH COMPANY,391893,Commissioning & Asset Management,Children's & Education Services,103,Supplies and Services,504,Equipment,5023,Revenue,CATERING.FOOD & BEVERAGES
26-OCT-2022,7019708,59.4,ON A ROLL SANDWICH COMPANY,391893,Commissioning & Asset Management,Children's & Education Services,103,Supplies and Services,504,Equipment,5023,Revenue,CATERING.FOOD & BEVERAGES
26-OCT-2022,7019708,59.4,ON A ROLL SANDWICH COMPANY,391893,Commissioning & Asset Management,Children's & Education Services,103,Supplies and Services,504,Equipment,5023,Revenue,CATERING.FOOD & BEVERAGES
26-OCT-2022,7019708,61.4,ON A ROLL SANDWICH COMPANY,391893,Commissioning & Asset Management,Children's & Education Services,103,Supplies and Services,504,Equipment,5023,Revenue,CATERING.FOOD & BEVERAGES
26-OCT-2022,7019708,64.51,ON A ROLL SANDWICH COMPANY,391893,Commissioning & Asset Management,Children's & Education Services,103,Supplies and Services,504,Equipment,5023,Revenue,CATERING.FOOD & BEVERAGES
26-OCT-2022,7019708,65.73,ON A ROLL SANDWICH COMPANY,391893,Commissioning & Asset Management,Children's & Education Services,103,Supplies and Services,504,Equipment,5023,Revenue,CATERING.FOOD & BEVERAGES
26-OCT-2022,7019708,69.8,ON A ROLL SANDWICH COMPANY,391893,Commissioning & Asset Management,Children's & Education Services,103,Supplies and Services,504,Equipment,5023,Revenue,CATERING.FOOD & BEVERAGES
26-OCT-2022,7019708,159.3,ON A ROLL SANDWICH COMPANY,391893,Commissioning & Asset Management,Children's & Education Services,103,Supplies and Services,504,Equipment,5023,Revenue,CATERING.FOOD & BEVERAGES
26-OCT-2022,7019708,286.42,ON A ROLL SANDWICH COMPANY,391893,Commissioning & Asset Management,Children's & Education Services,103,Supplies and Services,504,Equipment,5023,Revenue,CATERING.FOOD & BEVERAGES
26-OCT-2022,7019708,313.09,ON A ROLL SANDWICH COMPANY,391893,Commissioning & Asset Management,Children's & Education Services,103,Supplies and Services,504,Equipment,5023,Revenue,CATERING.FOOD & BEVERAGES
26-OCT-2022,7019708,383.58,ON A ROLL SANDWICH COMPANY,391893,Commissioning & Asset Management,Children's & Education Services,103,Supplies and Services,504,Equipment,5023,Revenue,CATERING.FOOD & BEVERAGES
26-OCT-2022,7019708,119.55,ON A ROLL SANDWICH COMPANY,391893,Commissioning & Asset Management,Children's & Education Services,103,Supplies and Services,504,Equipment,5023,Revenue,CATERING.FOOD & BEVERAGES
26-OCT-2022,7019708,200,ON A ROLL SANDWICH COMPANY,391893,Commissioning & Asset Management,Children's & Education Services,103,Supplies and Services,504,Equipment,5023,Revenue,CATERING.FOOD & BEVERAGES
26-OCT-2022,7019708,209.4,ON A ROLL SANDWICH COMPANY,391893,Commissioning & Asset Management,Children's & Education Services,103,Supplies and Services,504,Equipment,5023,Revenue,CATERING.FOOD & BEVERAGES
26-OCT-2022,7019708,74,ON A ROLL SANDWICH COMPANY,391893,Commissioning & Asset Management,Children's & Education Services,103,Supplies and Services,504,Equipment,5023,Revenue,CATERING.FOOD & BEVERAGES
26-OCT-2022,7019708,75.39,ON A ROLL SANDWICH COMPANY,391893,Commissioning & Asset Management,Children's & Education Services,103,Supplies and Services,504,Equipment,5023,Revenue,CATERING.FOOD & BEVERAGES
26-OCT-2022,7019708,75.39,ON A ROLL SANDWICH COMPANY,391893,Commissioning & Asset Management,Children's & Education Services,103,Supplies and Services,504,Equipment,5023,Revenue,CATERING.FOOD & BEVERAGES
26-OCT-2022,7019708,75.39,ON A ROLL SANDWICH COMPANY,391893,Commissioning & Asset Management,Children's & Education Services,103,Supplies and Services,504,Equipment,5023,Revenue,CATERING.FOOD & BEVERAGES
26-OCT-2022,7019708,75.64,ON A ROLL SANDWICH COMPANY,391893,Commissioning & Asset Management,Children's & Education Services,103,Supplies and Services,504,Equipment,5023,Revenue,CATERING.FOOD & BEVERAGES
26-OCT-2022,7019708,215.12,ON A ROLL SANDWICH COMPANY,391893,Commissioning & Asset Management,Children's & Education Services,103,Supplies and Services,504,Equipment,5023,Revenue,CATERING.FOOD & BEVERAGES
26-OCT-2022,7019708,500.81,ON A ROLL SANDWICH COMPANY,391893,Commissioning & Asset Management,Children's & Education Services,103,Supplies and Services,504,Equipment,5023,Revenue,CATERING.FOOD & BEVERAGES
26-OCT-2022,7019708,652.43,ON A ROLL SANDWICH COMPANY,391893,Commissioning & Asset Management,Children's & Education Services,103,Supplies and Services,504,Equipment,5023,Revenue,CATERING.FOOD & BEVERAGES
26-OCT-2022,7019708,1027.12,ON A ROLL SANDWICH COMPANY,391893,Commissioning & Asset Management,Children's & Education Services,103,Supplies and Services,504,Equipment,5023,Revenue,CATERING.FOOD & BEVERAGES
26-OCT-2022,7019708,1979.13,ON A ROLL SANDWICH COMPANY,391893,Commissioning & Asset Management,Children's & Education Services,103,Supplies and Services,504,Equipment,5023,Revenue,CATERING.FOOD & BEVERAGES
26-OCT-2022,7019708,50.75,ON A ROLL SANDWICH COMPANY,391893,Commissioning & Asset Management,Children's & Education Services,103,Supplies and Services,504,Equipment,5023,Revenue,CATERING.FOOD & BEVERAGES
26-OCT-2022,7019709,6.5,PRODUCT SUPPORT AG,391921,"Health, Education, Care and Safeguarding",Children's & Education Services,103,Supplies and Services,504,Miscellaneous Expenses,5034,Revenue,ICT.MAINTENANCE & SUPPORT
26-OCT-2022,7019710,33.33,BOOTS UK LTD,383616,"Health, Education, Care and Safeguarding",Children's & Education Services,103,Supplies and Services,504,Miscellaneous Expenses,5034,Revenue,NON INFLUENCIBLE.DOCTORS/MEDICAL FEES
26-OCT-2022,7019711,32.5,DUNELM LTD,391723,"Health, Education, Care and Safeguarding",Children's & Education Services,103,Supplies and Services,504,Equipment,5023,Revenue,FURNITURE.SOFT FURNISHINGS
26-OCT-2022,7019712,-0.01,ALDI STORES LTD,391717,"Health, Education, Care and Safeguarding",Children's & Education Services,103,Supplies and Services,504,Equipment,5023,Revenue,CATERING.FOOD & BEVERAGES
26-OCT-2022,7019712,0.01,ALDI STORES LTD,391717,"Health, Education, Care and Safeguarding",Children's & Education Services,103,Supplies and Services,504,Equipment,5023,Revenue,CATERING.FOOD & BEVERAGES
26-OCT-2022,7019712,64.77,ALDI STORES LTD,391717,"Health, Education, Care and Safeguarding",Children's & Education Services,103,Supplies and Services,504,Equipment,5023,Revenue,CATERING.FOOD & BEVERAGES
26-OCT-2022,7019712,65.38,ALDI STORES LTD,391717,"Health, Education, Care and Safeguarding",Children's & Education Services,103,Supplies and Services,504,Equipment,5023,Revenue,CATERING.FOOD & BEVERAGES
26-OCT-2022,7019712,78.87,ALDI STORES LTD,391717,"Health, Education, Care and Safeguarding",Children's & Education Services,103,Supplies and Services,504,Equipment,5023,Revenue,CATERING.FOOD & BEVERAGES
26-OCT-2022,7019712,86.41,ALDI STORES LTD,391717,"Health, Education, Care and Safeguarding",Children's & Education Services,103,Supplies and Services,504,Equipment,5023,Revenue,CATERING.FOOD & BEVERAGES
26-OCT-2022,7019712,59.88,ALDI STORES LTD,391717,"Health, Education, Care and Safeguarding",Children's & Education Services,103,Supplies and Services,504,Equipment,5023,Revenue,CATERING.FOOD & BEVERAGES
26-OCT-2022,7019712,22.1,ALDI STORES LTD,391717,"Health, Education, Care and Safeguarding",Children's & Education Services,103,Supplies and Services,504,Equipment,5023,Revenue,CATERING.FOOD & BEVERAGES
26-OCT-2022,7019712,-0.01,ALDI STORES LTD,391717,"Health, Education, Care and Safeguarding",Children's & Education Services,103,Third Party Payments,505,Other Establishments,5041,Revenue,CATERING.FOOD & BEVERAGES
26-OCT-2022,7019712,26.48,ALDI STORES LTD,391717,"Health, Education, Care and Safeguarding",Children's & Education Services,103,Third Party Payments,505,Other Establishments,5041,Revenue,CATERING.FOOD & BEVERAGES
26-OCT-2022,7019712,5.86,ALDI STORES LTD,391717,Corporate Strategy,Children's & Education Services,103,Supplies and Services,504,Catering,5024,Revenue,CATERING.FOOD & BEVERAGES
26-OCT-2022,7019712,0.74,ALDI STORES LTD,391717,"Health, Education, Care and Safeguarding",Children's & Education Services,103,Supplies and Services,504,Equipment,5023,Revenue,CATERING.FOOD & BEVERAGES
26-OCT-2022,7019712,3.05,ALDI STORES LTD,391717,"Health, Education, Care and Safeguarding",Children's & Education Services,103,Supplies and Services,504,Equipment,5023,Revenue,CATERING.FOOD & BEVERAGES
26-OCT-2022,7019712,80.8,ALDI STORES LTD,391717,"Sport, Leisure & Community",Cultural & Related Services,104,Supplies and Services,504,Miscellaneous Expenses,5034,Revenue,CATERING.FOOD & BEVERAGES
26-OCT-2022,7019712,12.83,ALDI STORES LTD,391717,"Health, Education, Care and Safeguarding",Children's & Education Services,103,Supplies and Services,504,Equipment,5023,Revenue,CATERING.FOOD & BEVERAGES
26-OCT-2022,7019713,4.91,SUBWAY,391486,"Health, Education, Care and Safeguarding",Children's & Education Services,103,Third Party Payments,505,Other Establishments,5041,Revenue,CATERING.FOOD & BEVERAGES
26-OCT-2022,7019714,6.59,MICROSOFT IRELAND OPERATIONS LTD,390631,Resources,Central Services,102,Supplies and Services,504,"Printing, Stationery and General Office Expenses",5026,Revenue,ICT.SOFTWARE
26-OCT-2022,7019715,350,HMCTS,360503,"Health, Education, Care and Safeguarding",Children's & Education Services,103,Supplies and Services,504,Miscellaneous Expenses,5034,Revenue,NON INFLUENCIBLE.PUBLIC SECTOR
26-OCT-2022,7019716,1500,FLEX LABS LTD T/A DIGITAL LEARNING INSTITUTE,403619,Resources,Children's & Education Services,103,Employees,501,Indirect Employee Expenses,5002,Revenue,HUMAN RESOURCES.TRAINING & CONFERENCES
26-OCT-2022,7019717,147.48,NICHOLSONS BUTCHERS,403706,"Health, Education, Care and Safeguarding",Children's & Education Services,103,Supplies and Services,504,Equipment,5023,Revenue,NON INFLUENCIBLE.NON INFLUENCIBLE
26-OCT-2022,7019718,22.6,DOXDIRECT.COM,403705,"Health, Education, Care and Safeguarding",Children's & Education Services,103,Supplies and Services,504,"Printing, Stationery and General Office Expenses",5026,Revenue,NON INFLUENCIBLE.NON INFLUENCIBLE
26-OCT-2022,7019719,22.49,CROCSEU,403704,"Health, Education, Care and Safeguarding",Children's & Education Services,103,Third Party Payments,505,Other Establishments,5041,Revenue,NON INFLUENCIBLE.NON INFLUENCIBLE
26-OCT-2022,7019720,56.63,WORKWEAR.CO.UK,403703,"Sport, Leisure & Community",Cultural & Related Services,104,Supplies and Services,504,Equipment,5023,Revenue,NON INFLUENCIBLE.NON INFLUENCIBLE
26-OCT-2022,7019721,131.67,DISCOUNT GARDEN,403702,Local Environmental Services,Environmental & Regulatory Services,105,Supplies and Services,504,Equipment,5023,Revenue,NON INFLUENCIBLE.NON INFLUENCIBLE
26-OCT-2022,7019722,12.3,BISON PARTS LTD,403701,"Health, Education, Care and Safeguarding",Children's & Education Services,103,Transport,503,Direct Transport Costs,5016,Revenue,NON INFLUENCIBLE.NON INFLUENCIBLE
26-OCT-2022,7019723,197.46,LASER CUTOUTS GROUP LIMITED,403700,Regeneration & Economic Development,Environmental & Regulatory Services,105,Third Party Payments,505,Private Contractors,5042,Revenue,NON INFLUENCIBLE.NON INFLUENCIBLE
26-OCT-2022,7019724,252,SAME DAY DISPATCH SERV,403699,"Health, Education, Care and Safeguarding",Children's & Education Services,103,Supplies and Services,504,Communications & Computing,5028,Revenue,NON INFLUENCIBLE.NON INFLUENCIBLE
26-OCT-2022,7019725,23.25,WINTRA LIMITED,403698,Local Environmental Services,Environmental & Regulatory Services,105,Supplies and Services,504,Equipment,5023,Revenue,NON INFLUENCIBLE.NON INFLUENCIBLE
26-OCT-2022,7019726,255.29,SPIRAL FOUNDATION,403697,"Health, Education, Care and Safeguarding",Children's & Education Services,103,Employees,501,Indirect Employee Expenses,5002,Revenue,NON INFLUENCIBLE.NON INFLUENCIBLE
26-OCT-2022,7019727,627.5,YPS SOUTH SHIELDS,403696,Capital,Capital,Capital,Supplies and Services,504,Expenses,5030,Capital,NON INFLUENCIBLE.NON INFLUENCIBLE
26-OCT-2022,7019728,54.93,PAYPAL  DISCOUNT FI,403623,"Health, Education, Care and Safeguarding",Children's & Education Services,103,Supplies and Services,504,Miscellaneous Expenses,5034,Revenue,NON INFLUENCIBLE.INDIVIDUAL
26-OCT-2022,7019728,79.96,PAYPAL  DISCOUNT FI,403623,"Health, Education, Care and Safeguarding",Children's & Education Services,103,Supplies and Services,504,Miscellaneous Expenses,5034,Revenue,NON INFLUENCIBLE.INDIVIDUAL
26-OCT-2022,7019729,1.5,FIND A WILL,403503,"Health, Education, Care and Safeguarding",Adult Social Care,101,Third Party Payments,505,Government Departments,5039,Revenue,NON INFLUENCIBLE.INDIVIDUAL
26-OCT-2022,7019729,1.5,FIND A WILL,403503,"Health, Education, Care and Safeguarding",Adult Social Care,101,Third Party Payments,505,Government Departments,5039,Revenue,NON INFLUENCIBLE.INDIVIDUAL
26-OCT-2022,7019729,1.5,FIND A WILL,403503,"Health, Education, Care and Safeguarding",Adult Social Care,101,Third Party Payments,505,Government Departments,5039,Revenue,NON INFLUENCIBLE.INDIVIDUAL
26-OCT-2022,7019730,338.87,CLOUD,403500,Central Items,Central Services,102,Supplies and Services,504,"Printing, Stationery and General Office Expenses",5026,Revenue,NON INFLUENCIBLE.INDIVIDUAL
26-OCT-2022,7019731,50,O BRIEN ARCHITECTURAL,403499,Housing Property and Construction,Housing Services,108,Supplies and Services,504,Miscellaneous Expenses,5034,Revenue,NON INFLUENCIBLE.INDIVIDUAL
26-OCT-2022,7019732,119.54,GLEBE COTTAGE LTD,342627,Regeneration & Economic Development,Cultural & Related Services,104,Supplies and Services,504,Equipment,5023,Revenue,ADVERTISING & MARKETING.EVENTS & PROMOTIONS
26-OCT-2022,7019733,426.67,GRAND HOTEL GOSFORTH PARK,399046,"Health, Education, Care and Safeguarding",Adult Social Care,101,Supplies and Services,504,Expenses,5030,Revenue,HUMAN RESOURCES.TRAVEL & SUBSISTENCE
26-OCT-2022,7019733,517.5,GRAND HOTEL GOSFORTH PARK,399046,"Health, Education, Care and Safeguarding",Adult Social Care,101,Supplies and Services,504,Expenses,5030,Revenue,HUMAN RESOURCES.TRAVEL & SUBSISTENCE
26-OCT-2022,7019734,22.67,TAKEAWAY,403381,Corporate Strategy,Children's & Education Services,103,Supplies and Services,504,Catering,5024,Revenue,NON INFLUENCIBLE.NON INFLUENCIBLE
26-OCT-2022,7019735,176.97,QUAY TRADERS LTD,387224,Regeneration & Economic Development,Cultural & Related Services,104,Supplies and Services,504,Equipment,5023,Revenue,ADVERTISING & MARKETING.EVENTS & PROMOTIONS
26-OCT-2022,7019736,0.01,SP (PURCHASE CARD),403374,"Health, Education, Care and Safeguarding",Children's & Education Services,103,Supplies and Services,504,"Clothing, Uniforms and Laundry",5025,Revenue,NON INFLUENCIBLE.NON INFLUENCIBLE
26-OCT-2022,7019736,37.07,SP (PURCHASE CARD),403374,"Health, Education, Care and Safeguarding",Children's & Education Services,103,Supplies and Services,504,"Clothing, Uniforms and Laundry",5025,Revenue,NON INFLUENCIBLE.NON INFLUENCIBLE
26-OCT-2022,7019736,0.01,SP (PURCHASE CARD),403374,Local Environmental Services,Cultural & Related Services,104,Supplies and Services,504,Equipment,5023,Revenue,NON INFLUENCIBLE.NON INFLUENCIBLE
26-OCT-2022,7019736,133.32,SP (PURCHASE CARD),403374,Local Environmental Services,Cultural & Related Services,104,Supplies and Services,504,Equipment,5023,Revenue,NON INFLUENCIBLE.NON INFLUENCIBLE
26-OCT-2022,7019737,124.17,NEW KENT HOTEL,312970,General Fund Housing,Housing Services,108,Third Party Payments,505,Private Contractors,5042,Revenue,
26-OCT-2022,7019737,133.33,NEW KENT HOTEL,312970,General Fund Housing,Housing Services,108,Third Party Payments,505,Private Contractors,5042,Revenue,
26-OCT-2022,7019737,462.08,NEW KENT HOTEL,312970,General Fund Housing,Housing Services,108,Third Party Payments,505,Private Contractors,5042,Revenue,
26-OCT-2022,7019737,486.25,NEW KENT HOTEL,312970,General Fund Housing,Housing Services,108,Third Party Payments,505,Private Contractors,5042,Revenue,
26-OCT-2022,7019737,543.33,NEW KENT HOTEL,312970,General Fund Housing,Housing Services,108,Third Party Payments,505,Private Contractors,5042,Revenue,
26-OCT-2022,7019737,554.58,NEW KENT HOTEL,312970,General Fund Housing,Housing Services,108,Third Party Payments,505,Private Contractors,5042,Revenue,
26-OCT-2022,7019738,18,FIVE GUYS,402836,"Health, Education, Care and Safeguarding",Children's & Education Services,103,Supplies and Services,504,Equipment,5023,Revenue,NON INFLUENCIBLE.NON INFLUENCIBLE
26-OCT-2022,7019739,19,UK PLANNING MAPS,402830,Corporate Strategy,Central Services,102,Supplies and Services,504,"Printing, Stationery and General Office Expenses",5026,Revenue,NON INFLUENCIBLE.NON INFLUENCIBLE
26-OCT-2022,7019740,725.5,KEEP COOKING,402829,Commissioning & Asset Management,Children's & Education Services,103,Supplies and Services,504,Miscellaneous Expenses,5034,Revenue,NON INFLUENCIBLE.NON INFLUENCIBLE
26-OCT-2022,7019741,4.79,GEORGE HOTEL,300155,"Health, Education, Care and Safeguarding",Children's & Education Services,103,Third Party Payments,505,Other Establishments,5041,Revenue,HUMAN RESOURCES.TRAINING & CONFERENCES
26-OCT-2022,7019742,30,PRO CATERING EQUIPMENT,402231,Commissioning & Asset Management,Children's & Education Services,103,Supplies and Services,504,Equipment,5023,Revenue,CATERING.BANQUET & CATERING
26-OCT-2022,7019742,61.5,PRO CATERING EQUIPMENT,402231,Commissioning & Asset Management,Children's & Education Services,103,Supplies and Services,504,Equipment,5023,Revenue,CATERING.BANQUET & CATERING
26-OCT-2022,7019742,71.82,PRO CATERING EQUIPMENT,402231,Commissioning & Asset Management,Children's & Education Services,103,Supplies and Services,504,Equipment,5023,Revenue,CATERING.BANQUET & CATERING
26-OCT-2022,7019742,213.48,PRO CATERING EQUIPMENT,402231,Commissioning & Asset Management,Children's & Education Services,103,Supplies and Services,504,Equipment,5023,Revenue,CATERING.BANQUET & CATERING
26-OCT-2022,7019742,227.74,PRO CATERING EQUIPMENT,402231,Commissioning & Asset Management,Children's & Education Services,103,Supplies and Services,504,Equipment,5023,Revenue,CATERING.BANQUET & CATERING
26-OCT-2022,7019742,519.87,PRO CATERING EQUIPMENT,402231,Commissioning & Asset Management,Children's & Education Services,103,Supplies and Services,504,Equipment,5023,Revenue,CATERING.BANQUET & CATERING
26-OCT-2022,7019743,950,REID & SONS,229112,Law & Governance,Central Services,102,Supplies and Services,504,Expenses,5030,Revenue,DEFAULT
26-OCT-2022,7019744,316.46,HOTEL 52,401710,General Fund Housing,Housing Services,108,Third Party Payments,505,Private Contractors,5042,Revenue,NON INFLUENCIBLE.NON INFLUENCIBLE
26-OCT-2022,7019745,188.74,MAILCHIMP,401698,Corporate Strategy,Central Services,102,Supplies and Services,504,"Printing, Stationery and General Office Expenses",5026,Revenue,NON INFLUENCIBLE.NON INFLUENCIBLE
26-OCT-2022,7019745,236.21,MAILCHIMP,401698,Corporate Strategy,Central Services,102,Supplies and Services,504,"Printing, Stationery and General Office Expenses",5026,Revenue,NON INFLUENCIBLE.NON INFLUENCIBLE
26-OCT-2022,7019746,7.99,UNLIMITED,401692,"Health, Education, Care and Safeguarding",Children's & Education Services,103,Supplies and Services,504,Miscellaneous Expenses,5034,Revenue,NON INFLUENCIBLE.NON INFLUENCIBLE
26-OCT-2022,7019747,2,LINSKILL TRADING LTD,393264,"Health, Education, Care and Safeguarding",Children's & Education Services,103,Third Party Payments,505,Other Establishments,5041,Revenue,HUMAN RESOURCES.TRAINING & CONFERENCES
26-OCT-2022,7019747,2.92,LINSKILL TRADING LTD,393264,"Health, Education, Care and Safeguarding",Children's & Education Services,103,Third Party Payments,505,Other Establishments,5041,Revenue,HUMAN RESOURCES.TRAINING & CONFERENCES
26-OCT-2022,7019748,7.5,SAINSBURYS,391677,"Health, Education, Care and Safeguarding",Children's & Education Services,103,Third Party Payments,505,Other Establishments,5041,Revenue,CATERING.FOOD & BEVERAGES
26-OCT-2022,7019749,77,B2C ECOMMERCE,401295,Local Environmental Services,Environmental & Regulatory Services,105,Supplies and Services,504,Equipment,5023,Revenue,ICT.ONLINE SERVICES
26-OCT-2022,7019750,-0.01,EON CONTROL SOLUTIONS LIMITED,400441,Housing Operations,Housing Revenue Account,N/A,Premises-Related Expenditure,502,Energy Costs,5006,Revenue,REPAIRS & MAINTENANCE.REPAIRS & MAINTENANCE
26-OCT-2022,7019750,75.83,EON CONTROL SOLUTIONS LIMITED,400441,Housing Operations,Housing Revenue Account,N/A,Premises-Related Expenditure,502,Energy Costs,5006,Revenue,REPAIRS & MAINTENANCE.REPAIRS & MAINTENANCE
26-OCT-2022,7019751,2,NORTH TYNESIDE GENERAL HOSPITAL,274589,"Health, Education, Care and Safeguarding",Children's & Education Services,103,Supplies and Services,504,Expenses,5030,Revenue,NON INFLUENCIBLE.DOCTORS/MEDICAL FEES
26-OCT-2022,7019752,49,THE DIGITAL HUB,401037,Public Health,Environmental & Regulatory Services,105,Supplies and Services,504,Miscellaneous Expenses,5034,Revenue,HUMAN RESOURCES.TRAINING & CONFERENCES
26-OCT-2022,7019753,130.6,HYDROEXCEL,375902,"Sport, Leisure & Community",Cultural & Related Services,104,Supplies and Services,504,Equipment,5023,Revenue,DEFAULT
26-OCT-2022,7019754,150,THEMEL ROSEGUES,400318,General Fund Housing,Housing Services,108,Third Party Payments,505,Private Contractors,5042,Revenue,HUMAN RESOURCES.ACCOMMODATION
26-OCT-2022,7019754,187.5,THEMEL ROSEGUES,400318,General Fund Housing,Housing Services,108,Third Party Payments,505,Private Contractors,5042,Revenue,HUMAN RESOURCES.ACCOMMODATION
26-OCT-2022,7019754,187.5,THEMEL ROSEGUES,400318,General Fund Housing,Housing Services,108,Third Party Payments,505,Private Contractors,5042,Revenue,HUMAN RESOURCES.ACCOMMODATION
26-OCT-2022,7019754,450,THEMEL ROSEGUES,400318,General Fund Housing,Housing Services,108,Third Party Payments,505,Private Contractors,5042,Revenue,HUMAN RESOURCES.ACCOMMODATION
26-OCT-2022,7019754,525,THEMEL ROSEGUES,400318,General Fund Housing,Housing Services,108,Third Party Payments,505,Private Contractors,5042,Revenue,HUMAN RESOURCES.ACCOMMODATION
26-OCT-2022,7019755,77.5,EBAY,400312,"Health, Education, Care and Safeguarding",Children's & Education Services,103,Premises-Related Expenditure,502,"Repairs, alterations and maintenance of buildings",5005,Revenue,ICT.ONLINE SERVICES
26-OCT-2022,7019756,40,SUM UP,400305,Regeneration & Economic Development,Cultural & Related Services,104,Supplies and Services,504,Equipment,5023,Revenue,ICT.HARDWARE
26-OCT-2022,7019757,416.67,GRAINGER HOTEL,399985,General Fund Housing,Housing Services,108,Third Party Payments,505,Private Contractors,5042,Revenue,HUMAN RESOURCES.ACCOMMODATION
26-OCT-2022,7019757,466.67,GRAINGER HOTEL,399985,General Fund Housing,Housing Services,108,Third Party Payments,505,Private Contractors,5042,Revenue,HUMAN RESOURCES.ACCOMMODATION
26-OCT-2022,7019757,466.67,GRAINGER HOTEL,399985,General Fund Housing,Housing Services,108,Third Party Payments,505,Private Contractors,5042,Revenue,HUMAN RESOURCES.ACCOMMODATION
26-OCT-2022,7019757,466.67,GRAINGER HOTEL,399985,General Fund Housing,Housing Services,108,Third Party Payments,505,Private Contractors,5042,Revenue,HUMAN RESOURCES.ACCOMMODATION
26-OCT-2022,7019757,466.67,GRAINGER HOTEL,399985,General Fund Housing,Housing Services,108,Third Party Payments,505,Private Contractors,5042,Revenue,HUMAN RESOURCES.ACCOMMODATION
26-OCT-2022,7019757,583.33,GRAINGER HOTEL,399985,General Fund Housing,Housing Services,108,Third Party Payments,505,Private Contractors,5042,Revenue,HUMAN RESOURCES.ACCOMMODATION
26-OCT-2022,7019758,92,TEXTANYWHERE LIMITED,390997,Housing Strategy & Support,Housing Services,108,Supplies and Services,504,Miscellaneous Expenses,5034,Revenue,TELECOMMUNICATIONS.MOBILE
26-OCT-2022,7019759,494.58,CENTRAL RESERVATIONS,399370,General Fund Housing,Housing Services,108,Third Party Payments,505,Private Contractors,5042,Revenue,HUMAN RESOURCES.ACCOMMODATION
26-OCT-2022,7019759,544.17,CENTRAL RESERVATIONS,399370,General Fund Housing,Housing Services,108,Third Party Payments,505,Private Contractors,5042,Revenue,HUMAN RESOURCES.ACCOMMODATION
26-OCT-2022,7019760,-18.93,TOTAL PRODUCE GATESHEAD,399244,Local Environmental Services,Adult Social Care,101,Supplies and Services,504,Equipment,5023,Revenue,CATERING.FOOD & BEVERAGES
26-OCT-2022,7019760,-8.73,TOTAL PRODUCE GATESHEAD,399244,Local Environmental Services,Adult Social Care,101,Supplies and Services,504,Equipment,5023,Revenue,CATERING.FOOD & BEVERAGES
26-OCT-2022,7019760,-7.99,TOTAL PRODUCE GATESHEAD,399244,Local Environmental Services,Adult Social Care,101,Supplies and Services,504,Equipment,5023,Revenue,CATERING.FOOD & BEVERAGES
26-OCT-2022,7019760,-7.98,TOTAL PRODUCE GATESHEAD,399244,Local Environmental Services,Adult Social Care,101,Supplies and Services,504,Equipment,5023,Revenue,CATERING.FOOD & BEVERAGES
26-OCT-2022,7019760,-3.18,TOTAL PRODUCE GATESHEAD,399244,Local Environmental Services,Adult Social Care,101,Supplies and Services,504,Equipment,5023,Revenue,CATERING.FOOD & BEVERAGES
26-OCT-2022,7019760,-3.14,TOTAL PRODUCE GATESHEAD,399244,Local Environmental Services,Adult Social Care,101,Supplies and Services,504,Equipment,5023,Revenue,CATERING.FOOD & BEVERAGES
26-OCT-2022,7019760,-1.88,TOTAL PRODUCE GATESHEAD,399244,Local Environmental Services,Adult Social Care,101,Supplies and Services,504,Equipment,5023,Revenue,CATERING.FOOD & BEVERAGES
26-OCT-2022,7019760,0.73,TOTAL PRODUCE GATESHEAD,399244,Local Environmental Services,Adult Social Care,101,Supplies and Services,504,Equipment,5023,Revenue,CATERING.FOOD & BEVERAGES
26-OCT-2022,7019760,0.73,TOTAL PRODUCE GATESHEAD,399244,Local Environmental Services,Adult Social Care,101,Supplies and Services,504,Equipment,5023,Revenue,CATERING.FOOD & BEVERAGES
26-OCT-2022,7019760,0.99,TOTAL PRODUCE GATESHEAD,399244,Local Environmental Services,Adult Social Care,101,Supplies and Services,504,Equipment,5023,Revenue,CATERING.FOOD & BEVERAGES
26-OCT-2022,7019760,0.99,TOTAL PRODUCE GATESHEAD,399244,Local Environmental Services,Adult Social Care,101,Supplies and Services,504,Equipment,5023,Revenue,CATERING.FOOD & BEVERAGES
26-OCT-2022,7019760,0.99,TOTAL PRODUCE GATESHEAD,399244,Local Environmental Services,Adult Social Care,101,Supplies and Services,504,Equipment,5023,Revenue,CATERING.FOOD & BEVERAGES
26-OCT-2022,7019760,1.04,TOTAL PRODUCE GATESHEAD,399244,Local Environmental Services,Adult Social Care,101,Supplies and Services,504,Equipment,5023,Revenue,CATERING.FOOD & BEVERAGES
26-OCT-2022,7019760,1.04,TOTAL PRODUCE GATESHEAD,399244,Local Environmental Services,Adult Social Care,101,Supplies and Services,504,Equipment,5023,Revenue,CATERING.FOOD & BEVERAGES
26-OCT-2022,7019760,1.04,TOTAL PRODUCE GATESHEAD,399244,Local Environmental Services,Adult Social Care,101,Supplies and Services,504,Equipment,5023,Revenue,CATERING.FOOD & BEVERAGES
26-OCT-2022,7019760,1.04,TOTAL PRODUCE GATESHEAD,399244,Local Environmental Services,Adult Social Care,101,Supplies and Services,504,Equipment,5023,Revenue,CATERING.FOOD & BEVERAGES
26-OCT-2022,7019760,1.04,TOTAL PRODUCE GATESHEAD,399244,Local Environmental Services,Adult Social Care,101,Supplies and Services,504,Equipment,5023,Revenue,CATERING.FOOD & BEVERAGES
26-OCT-2022,7019760,1.04,TOTAL PRODUCE GATESHEAD,399244,Local Environmental Services,Adult Social Care,101,Supplies and Services,504,Equipment,5023,Revenue,CATERING.FOOD & BEVERAGES
26-OCT-2022,7019760,1.04,TOTAL PRODUCE GATESHEAD,399244,Local Environmental Services,Adult Social Care,101,Supplies and Services,504,Equipment,5023,Revenue,CATERING.FOOD & BEVERAGES
26-OCT-2022,7019760,1.04,TOTAL PRODUCE GATESHEAD,399244,Local Environmental Services,Adult Social Care,101,Supplies and Services,504,Equipment,5023,Revenue,CATERING.FOOD & BEVERAGES
26-OCT-2022,7019760,1.04,TOTAL PRODUCE GATESHEAD,399244,Local Environmental Services,Adult Social Care,101,Supplies and Services,504,Equipment,5023,Revenue,CATERING.FOOD & BEVERAGES
26-OCT-2022,7019760,1.04,TOTAL PRODUCE GATESHEAD,399244,Local Environmental Services,Adult Social Care,101,Supplies and Services,504,Equipment,5023,Revenue,CATERING.FOOD & BEVERAGES
26-OCT-2022,7019760,1.04,TOTAL PRODUCE GATESHEAD,399244,Local Environmental Services,Adult Social Care,101,Supplies and Services,504,Equipment,5023,Revenue,CATERING.FOOD & BEVERAGES
26-OCT-2022,7019760,1.19,TOTAL PRODUCE GATESHEAD,399244,Local Environmental Services,Adult Social Care,101,Supplies and Services,504,Equipment,5023,Revenue,CATERING.FOOD & BEVERAGES
26-OCT-2022,7019760,1.25,TOTAL PRODUCE GATESHEAD,399244,Local Environmental Services,Adult Social Care,101,Supplies and Services,504,Equipment,5023,Revenue,CATERING.FOOD & BEVERAGES
26-OCT-2022,7019760,1.25,TOTAL PRODUCE GATESHEAD,399244,Local Environmental Services,Adult Social Care,101,Supplies and Services,504,Equipment,5023,Revenue,CATERING.FOOD & BEVERAGES
26-OCT-2022,7019760,1.25,TOTAL PRODUCE GATESHEAD,399244,Local Environmental Services,Adult Social Care,101,Supplies and Services,504,Equipment,5023,Revenue,CATERING.FOOD & BEVERAGES
26-OCT-2022,7019760,1.25,TOTAL PRODUCE GATESHEAD,399244,Local Environmental Services,Adult Social Care,101,Supplies and Services,504,Equipment,5023,Revenue,CATERING.FOOD & BEVERAGES
26-OCT-2022,7019760,1.25,TOTAL PRODUCE GATESHEAD,399244,Local Environmental Services,Adult Social Care,101,Supplies and Services,504,Equipment,5023,Revenue,CATERING.FOOD & BEVERAGES
26-OCT-2022,7019760,1.25,TOTAL PRODUCE GATESHEAD,399244,Local Environmental Services,Adult Social Care,101,Supplies and Services,504,Equipment,5023,Revenue,CATERING.FOOD & BEVERAGES
26-OCT-2022,7019760,1.25,TOTAL PRODUCE GATESHEAD,399244,Local Environmental Services,Adult Social Care,101,Supplies and Services,504,Equipment,5023,Revenue,CATERING.FOOD & BEVERAGES
26-OCT-2022,7019760,1.29,TOTAL PRODUCE GATESHEAD,399244,Local Environmental Services,Adult Social Care,101,Supplies and Services,504,Equipment,5023,Revenue,CATERING.FOOD & BEVERAGES
26-OCT-2022,7019760,1.43,TOTAL PRODUCE GATESHEAD,399244,Local Environmental Services,Adult Social Care,101,Supplies and Services,504,Equipment,5023,Revenue,CATERING.FOOD & BEVERAGES
26-OCT-2022,7019760,1.43,TOTAL PRODUCE GATESHEAD,399244,Local Environmental Services,Adult Social Care,101,Supplies and Services,504,Equipment,5023,Revenue,CATERING.FOOD & BEVERAGES
26-OCT-2022,7019760,1.43,TOTAL PRODUCE GATESHEAD,399244,Local Environmental Services,Adult Social Care,101,Supplies and Services,504,Equipment,5023,Revenue,CATERING.FOOD & BEVERAGES
26-OCT-2022,7019760,1.43,TOTAL PRODUCE GATESHEAD,399244,Local Environmental Services,Adult Social Care,101,Supplies and Services,504,Equipment,5023,Revenue,CATERING.FOOD & BEVERAGES
26-OCT-2022,7019760,1.43,TOTAL PRODUCE GATESHEAD,399244,Local Environmental Services,Adult Social Care,101,Supplies and Services,504,Equipment,5023,Revenue,CATERING.FOOD & BEVERAGES
26-OCT-2022,7019760,1.43,TOTAL PRODUCE GATESHEAD,399244,Local Environmental Services,Adult Social Care,101,Supplies and Services,504,Equipment,5023,Revenue,CATERING.FOOD & BEVERAGES
26-OCT-2022,7019760,1.43,TOTAL PRODUCE GATESHEAD,399244,Local Environmental Services,Adult Social Care,101,Supplies and Services,504,Equipment,5023,Revenue,CATERING.FOOD & BEVERAGES
26-OCT-2022,7019760,1.43,TOTAL PRODUCE GATESHEAD,399244,Local Environmental Services,Adult Social Care,101,Supplies and Services,504,Equipment,5023,Revenue,CATERING.FOOD & BEVERAGES
26-OCT-2022,7019760,1.43,TOTAL PRODUCE GATESHEAD,399244,Local Environmental Services,Adult Social Care,101,Supplies and Services,504,Equipment,5023,Revenue,CATERING.FOOD & BEVERAGES
26-OCT-2022,7019760,1.43,TOTAL PRODUCE GATESHEAD,399244,Local Environmental Services,Adult Social Care,101,Supplies and Services,504,Equipment,5023,Revenue,CATERING.FOOD & BEVERAGES
26-OCT-2022,7019760,1.45,TOTAL PRODUCE GATESHEAD,399244,Local Environmental Services,Adult Social Care,101,Supplies and Services,504,Equipment,5023,Revenue,CATERING.FOOD & BEVERAGES
26-OCT-2022,7019760,1.55,TOTAL PRODUCE GATESHEAD,399244,Local Environmental Services,Adult Social Care,101,Supplies and Services,504,Equipment,5023,Revenue,CATERING.FOOD & BEVERAGES
26-OCT-2022,7019760,1.55,TOTAL PRODUCE GATESHEAD,399244,Local Environmental Services,Adult Social Care,101,Supplies and Services,504,Equipment,5023,Revenue,CATERING.FOOD & BEVERAGES
26-OCT-2022,7019760,1.55,TOTAL PRODUCE GATESHEAD,399244,Local Environmental Services,Adult Social Care,101,Supplies and Services,504,Equipment,5023,Revenue,CATERING.FOOD & BEVERAGES
26-OCT-2022,7019760,1.55,TOTAL PRODUCE GATESHEAD,399244,Local Environmental Services,Adult Social Care,101,Supplies and Services,504,Equipment,5023,Revenue,CATERING.FOOD & BEVERAGES
26-OCT-2022,7019760,1.63,TOTAL PRODUCE GATESHEAD,399244,Local Environmental Services,Adult Social Care,101,Supplies and Services,504,Equipment,5023,Revenue,CATERING.FOOD & BEVERAGES
26-OCT-2022,7019760,1.66,TOTAL PRODUCE GATESHEAD,399244,Local Environmental Services,Adult Social Care,101,Supplies and Services,504,Equipment,5023,Revenue,CATERING.FOOD & BEVERAGES
26-OCT-2022,7019760,1.66,TOTAL PRODUCE GATESHEAD,399244,Local Environmental Services,Adult Social Care,101,Supplies and Services,504,Equipment,5023,Revenue,CATERING.FOOD & BEVERAGES
26-OCT-2022,7019760,1.66,TOTAL PRODUCE GATESHEAD,399244,Local Environmental Services,Adult Social Care,101,Supplies and Services,504,Equipment,5023,Revenue,CATERING.FOOD & BEVERAGES
26-OCT-2022,7019760,1.66,TOTAL PRODUCE GATESHEAD,399244,Local Environmental Services,Adult Social Care,101,Supplies and Services,504,Equipment,5023,Revenue,CATERING.FOOD & BEVERAGES
26-OCT-2022,7019760,1.66,TOTAL PRODUCE GATESHEAD,399244,Local Environmental Services,Adult Social Care,101,Supplies and Services,504,Equipment,5023,Revenue,CATERING.FOOD & BEVERAGES
26-OCT-2022,7019760,1.67,TOTAL PRODUCE GATESHEAD,399244,Local Environmental Services,Adult Social Care,101,Supplies and Services,504,Equipment,5023,Revenue,CATERING.FOOD & BEVERAGES
26-OCT-2022,7019760,1.69,TOTAL PRODUCE GATESHEAD,399244,Local Environmental Services,Adult Social Care,101,Supplies and Services,504,Equipment,5023,Revenue,CATERING.FOOD & BEVERAGES
26-OCT-2022,7019760,1.69,TOTAL PRODUCE GATESHEAD,399244,Local Environmental Services,Adult Social Care,101,Supplies and Services,504,Equipment,5023,Revenue,CATERING.FOOD & BEVERAGES
26-OCT-2022,7019760,1.79,TOTAL PRODUCE GATESHEAD,399244,Local Environmental Services,Adult Social Care,101,Supplies and Services,504,Equipment,5023,Revenue,CATERING.FOOD & BEVERAGES
26-OCT-2022,7019760,1.79,TOTAL PRODUCE GATESHEAD,399244,Local Environmental Services,Adult Social Care,101,Supplies and Services,504,Equipment,5023,Revenue,CATERING.FOOD & BEVERAGES
26-OCT-2022,7019760,1.82,TOTAL PRODUCE GATESHEAD,399244,Local Environmental Services,Adult Social Care,101,Supplies and Services,504,Equipment,5023,Revenue,CATERING.FOOD & BEVERAGES
26-OCT-2022,7019760,1.82,TOTAL PRODUCE GATESHEAD,399244,Local Environmental Services,Adult Social Care,101,Supplies and Services,504,Equipment,5023,Revenue,CATERING.FOOD & BEVERAGES
26-OCT-2022,7019760,1.82,TOTAL PRODUCE GATESHEAD,399244,Local Environmental Services,Adult Social Care,101,Supplies and Services,504,Equipment,5023,Revenue,CATERING.FOOD & BEVERAGES
26-OCT-2022,7019760,1.82,TOTAL PRODUCE GATESHEAD,399244,Local Environmental Services,Adult Social Care,101,Supplies and Services,504,Equipment,5023,Revenue,CATERING.FOOD & BEVERAGES
26-OCT-2022,7019760,1.82,TOTAL PRODUCE GATESHEAD,399244,Local Environmental Services,Adult Social Care,101,Supplies and Services,504,Equipment,5023,Revenue,CATERING.FOOD & BEVERAGES
26-OCT-2022,7019760,1.82,TOTAL PRODUCE GATESHEAD,399244,Local Environmental Services,Adult Social Care,101,Supplies and Services,504,Equipment,5023,Revenue,CATERING.FOOD & BEVERAGES
26-OCT-2022,7019760,1.86,TOTAL PRODUCE GATESHEAD,399244,Local Environmental Services,Adult Social Care,101,Supplies and Services,504,Equipment,5023,Revenue,CATERING.FOOD & BEVERAGES
26-OCT-2022,7019760,1.86,TOTAL PRODUCE GATESHEAD,399244,Local Environmental Services,Adult Social Care,101,Supplies and Services,504,Equipment,5023,Revenue,CATERING.FOOD & BEVERAGES
26-OCT-2022,7019760,1.88,TOTAL PRODUCE GATESHEAD,399244,Local Environmental Services,Adult Social Care,101,Supplies and Services,504,Equipment,5023,Revenue,CATERING.FOOD & BEVERAGES
26-OCT-2022,7019760,1.88,TOTAL PRODUCE GATESHEAD,399244,Local Environmental Services,Adult Social Care,101,Supplies and Services,504,Equipment,5023,Revenue,CATERING.FOOD & BEVERAGES
26-OCT-2022,7019760,1.88,TOTAL PRODUCE GATESHEAD,399244,Local Environmental Services,Adult Social Care,101,Supplies and Services,504,Equipment,5023,Revenue,CATERING.FOOD & BEVERAGES
26-OCT-2022,7019760,1.88,TOTAL PRODUCE GATESHEAD,399244,Local Environmental Services,Adult Social Care,101,Supplies and Services,504,Equipment,5023,Revenue,CATERING.FOOD & BEVERAGES
26-OCT-2022,7019760,1.88,TOTAL PRODUCE GATESHEAD,399244,Local Environmental Services,Adult Social Care,101,Supplies and Services,504,Equipment,5023,Revenue,CATERING.FOOD & BEVERAGES
26-OCT-2022,7019760,1.88,TOTAL PRODUCE GATESHEAD,399244,Local Environmental Services,Adult Social Care,101,Supplies and Services,504,Equipment,5023,Revenue,CATERING.FOOD & BEVERAGES
26-OCT-2022,7019760,1.88,TOTAL PRODUCE GATESHEAD,399244,Local Environmental Services,Adult Social Care,101,Supplies and Services,504,Equipment,5023,Revenue,CATERING.FOOD & BEVERAGES
26-OCT-2022,7019760,1.88,TOTAL PRODUCE GATESHEAD,399244,Local Environmental Services,Adult Social Care,101,Supplies and Services,504,Equipment,5023,Revenue,CATERING.FOOD & BEVERAGES
26-OCT-2022,7019760,1.88,TOTAL PRODUCE GATESHEAD,399244,Local Environmental Services,Adult Social Care,101,Supplies and Services,504,Equipment,5023,Revenue,CATERING.FOOD & BEVERAGES
26-OCT-2022,7019760,1.88,TOTAL PRODUCE GATESHEAD,399244,Local Environmental Services,Adult Social Care,101,Supplies and Services,504,Equipment,5023,Revenue,CATERING.FOOD & BEVERAGES
26-OCT-2022,7019760,2.08,TOTAL PRODUCE GATESHEAD,399244,Local Environmental Services,Adult Social Care,101,Supplies and Services,504,Equipment,5023,Revenue,CATERING.FOOD & BEVERAGES
26-OCT-2022,7019760,2.08,TOTAL PRODUCE GATESHEAD,399244,Local Environmental Services,Adult Social Care,101,Supplies and Services,504,Equipment,5023,Revenue,CATERING.FOOD & BEVERAGES
26-OCT-2022,7019760,2.2,TOTAL PRODUCE GATESHEAD,399244,Local Environmental Services,Adult Social Care,101,Supplies and Services,504,Equipment,5023,Revenue,CATERING.FOOD & BEVERAGES
26-OCT-2022,7019760,2.2,TOTAL PRODUCE GATESHEAD,399244,Local Environmental Services,Adult Social Care,101,Supplies and Services,504,Equipment,5023,Revenue,CATERING.FOOD & BEVERAGES
26-OCT-2022,7019760,2.38,TOTAL PRODUCE GATESHEAD,399244,Local Environmental Services,Adult Social Care,101,Supplies and Services,504,Equipment,5023,Revenue,CATERING.FOOD & BEVERAGES
26-OCT-2022,7019760,2.38,TOTAL PRODUCE GATESHEAD,399244,Local Environmental Services,Adult Social Care,101,Supplies and Services,504,Equipment,5023,Revenue,CATERING.FOOD & BEVERAGES
26-OCT-2022,7019760,2.39,TOTAL PRODUCE GATESHEAD,399244,Local Environmental Services,Adult Social Care,101,Supplies and Services,504,Equipment,5023,Revenue,CATERING.FOOD & BEVERAGES
26-OCT-2022,7019760,2.39,TOTAL PRODUCE GATESHEAD,399244,Local Environmental Services,Adult Social Care,101,Supplies and Services,504,Equipment,5023,Revenue,CATERING.FOOD & BEVERAGES
26-OCT-2022,7019760,2.39,TOTAL PRODUCE GATESHEAD,399244,Local Environmental Services,Adult Social Care,101,Supplies and Services,504,Equipment,5023,Revenue,CATERING.FOOD & BEVERAGES
26-OCT-2022,7019760,2.41,TOTAL PRODUCE GATESHEAD,399244,Local Environmental Services,Adult Social Care,101,Supplies and Services,504,Equipment,5023,Revenue,CATERING.FOOD & BEVERAGES
26-OCT-2022,7019760,2.41,TOTAL PRODUCE GATESHEAD,399244,Local Environmental Services,Adult Social Care,101,Supplies and Services,504,Equipment,5023,Revenue,CATERING.FOOD & BEVERAGES
26-OCT-2022,7019760,2.49,TOTAL PRODUCE GATESHEAD,399244,Local Environmental Services,Adult Social Care,101,Supplies and Services,504,Equipment,5023,Revenue,CATERING.FOOD & BEVERAGES
26-OCT-2022,7019760,2.49,TOTAL PRODUCE GATESHEAD,399244,Local Environmental Services,Adult Social Care,101,Supplies and Services,504,Equipment,5023,Revenue,CATERING.FOOD & BEVERAGES
26-OCT-2022,7019760,2.49,TOTAL PRODUCE GATESHEAD,399244,Local Environmental Services,Adult Social Care,101,Supplies and Services,504,Equipment,5023,Revenue,CATERING.FOOD & BEVERAGES
26-OCT-2022,7019760,2.49,TOTAL PRODUCE GATESHEAD,399244,Local Environmental Services,Adult Social Care,101,Supplies and Services,504,Equipment,5023,Revenue,CATERING.FOOD & BEVERAGES
26-OCT-2022,7019760,2.49,TOTAL PRODUCE GATESHEAD,399244,Local Environmental Services,Adult Social Care,101,Supplies and Services,504,Equipment,5023,Revenue,CATERING.FOOD & BEVERAGES
26-OCT-2022,7019760,2.49,TOTAL PRODUCE GATESHEAD,399244,Local Environmental Services,Adult Social Care,101,Supplies and Services,504,Equipment,5023,Revenue,CATERING.FOOD & BEVERAGES
26-OCT-2022,7019760,2.5,TOTAL PRODUCE GATESHEAD,399244,Local Environmental Services,Adult Social Care,101,Supplies and Services,504,Equipment,5023,Revenue,CATERING.FOOD & BEVERAGES
26-OCT-2022,7019760,2.52,TOTAL PRODUCE GATESHEAD,399244,Local Environmental Services,Adult Social Care,101,Supplies and Services,504,Equipment,5023,Revenue,CATERING.FOOD & BEVERAGES
26-OCT-2022,7019760,2.52,TOTAL PRODUCE GATESHEAD,399244,Local Environmental Services,Adult Social Care,101,Supplies and Services,504,Equipment,5023,Revenue,CATERING.FOOD & BEVERAGES
26-OCT-2022,7019760,2.52,TOTAL PRODUCE GATESHEAD,399244,Local Environmental Services,Adult Social Care,101,Supplies and Services,504,Equipment,5023,Revenue,CATERING.FOOD & BEVERAGES
26-OCT-2022,7019760,2.52,TOTAL PRODUCE GATESHEAD,399244,Local Environmental Services,Adult Social Care,101,Supplies and Services,504,Equipment,5023,Revenue,CATERING.FOOD & BEVERAGES
26-OCT-2022,7019760,2.52,TOTAL PRODUCE GATESHEAD,399244,Local Environmental Services,Adult Social Care,101,Supplies and Services,504,Equipment,5023,Revenue,CATERING.FOOD & BEVERAGES
26-OCT-2022,7019760,2.52,TOTAL PRODUCE GATESHEAD,399244,Local Environmental Services,Adult Social Care,101,Supplies and Services,504,Equipment,5023,Revenue,CATERING.FOOD & BEVERAGES
26-OCT-2022,7019760,2.52,TOTAL PRODUCE GATESHEAD,399244,Local Environmental Services,Adult Social Care,101,Supplies and Services,504,Equipment,5023,Revenue,CATERING.FOOD & BEVERAGES
26-OCT-2022,7019760,2.59,TOTAL PRODUCE GATESHEAD,399244,Local Environmental Services,Adult Social Care,101,Supplies and Services,504,Equipment,5023,Revenue,CATERING.FOOD & BEVERAGES
26-OCT-2022,7019760,2.62,TOTAL PRODUCE GATESHEAD,399244,Local Environmental Services,Adult Social Care,101,Supplies and Services,504,Equipment,5023,Revenue,CATERING.FOOD & BEVERAGES
26-OCT-2022,7019760,2.62,TOTAL PRODUCE GATESHEAD,399244,Local Environmental Services,Adult Social Care,101,Supplies and Services,504,Equipment,5023,Revenue,CATERING.FOOD & BEVERAGES
26-OCT-2022,7019760,2.62,TOTAL PRODUCE GATESHEAD,399244,Local Environmental Services,Adult Social Care,101,Supplies and Services,504,Equipment,5023,Revenue,CATERING.FOOD & BEVERAGES
26-OCT-2022,7019760,2.62,TOTAL PRODUCE GATESHEAD,399244,Local Environmental Services,Adult Social Care,101,Supplies and Services,504,Equipment,5023,Revenue,CATERING.FOOD & BEVERAGES
26-OCT-2022,7019760,2.62,TOTAL PRODUCE GATESHEAD,399244,Local Environmental Services,Adult Social Care,101,Supplies and Services,504,Equipment,5023,Revenue,CATERING.FOOD & BEVERAGES
26-OCT-2022,7019760,2.62,TOTAL PRODUCE GATESHEAD,399244,Local Environmental Services,Adult Social Care,101,Supplies and Services,504,Equipment,5023,Revenue,CATERING.FOOD & BEVERAGES
26-OCT-2022,7019760,2.62,TOTAL PRODUCE GATESHEAD,399244,Local Environmental Services,Adult Social Care,101,Supplies and Services,504,Equipment,5023,Revenue,CATERING.FOOD & BEVERAGES
26-OCT-2022,7019760,2.62,TOTAL PRODUCE GATESHEAD,399244,Local Environmental Services,Adult Social Care,101,Supplies and Services,504,Equipment,5023,Revenue,CATERING.FOOD & BEVERAGES
26-OCT-2022,7019760,2.62,TOTAL PRODUCE GATESHEAD,399244,Local Environmental Services,Adult Social Care,101,Supplies and Services,504,Equipment,5023,Revenue,CATERING.FOOD & BEVERAGES
26-OCT-2022,7019760,2.62,TOTAL PRODUCE GATESHEAD,399244,Local Environmental Services,Adult Social Care,101,Supplies and Services,504,Equipment,5023,Revenue,CATERING.FOOD & BEVERAGES
26-OCT-2022,7019760,2.62,TOTAL PRODUCE GATESHEAD,399244,Local Environmental Services,Adult Social Care,101,Supplies and Services,504,Equipment,5023,Revenue,CATERING.FOOD & BEVERAGES
26-OCT-2022,7019760,2.73,TOTAL PRODUCE GATESHEAD,399244,Local Environmental Services,Adult Social Care,101,Supplies and Services,504,Equipment,5023,Revenue,CATERING.FOOD & BEVERAGES
26-OCT-2022,7019760,2.73,TOTAL PRODUCE GATESHEAD,399244,Local Environmental Services,Adult Social Care,101,Supplies and Services,504,Equipment,5023,Revenue,CATERING.FOOD & BEVERAGES
26-OCT-2022,7019760,2.73,TOTAL PRODUCE GATESHEAD,399244,Local Environmental Services,Adult Social Care,101,Supplies and Services,504,Equipment,5023,Revenue,CATERING.FOOD & BEVERAGES
26-OCT-2022,7019760,2.73,TOTAL PRODUCE GATESHEAD,399244,Local Environmental Services,Adult Social Care,101,Supplies and Services,504,Equipment,5023,Revenue,CATERING.FOOD & BEVERAGES
26-OCT-2022,7019760,2.73,TOTAL PRODUCE GATESHEAD,399244,Local Environmental Services,Adult Social Care,101,Supplies and Services,504,Equipment,5023,Revenue,CATERING.FOOD & BEVERAGES
26-OCT-2022,7019760,2.83,TOTAL PRODUCE GATESHEAD,399244,Local Environmental Services,Adult Social Care,101,Supplies and Services,504,Equipment,5023,Revenue,CATERING.FOOD & BEVERAGES
26-OCT-2022,7019760,2.83,TOTAL PRODUCE GATESHEAD,399244,Local Environmental Services,Adult Social Care,101,Supplies and Services,504,Equipment,5023,Revenue,CATERING.FOOD & BEVERAGES
26-OCT-2022,7019760,2.83,TOTAL PRODUCE GATESHEAD,399244,Local Environmental Services,Adult Social Care,101,Supplies and Services,504,Equipment,5023,Revenue,CATERING.FOOD & BEVERAGES
26-OCT-2022,7019760,2.83,TOTAL PRODUCE GATESHEAD,399244,Local Environmental Services,Adult Social Care,101,Supplies and Services,504,Equipment,5023,Revenue,CATERING.FOOD & BEVERAGES
26-OCT-2022,7019760,2.83,TOTAL PRODUCE GATESHEAD,399244,Local Environmental Services,Adult Social Care,101,Supplies and Services,504,Equipment,5023,Revenue,CATERING.FOOD & BEVERAGES
26-OCT-2022,7019760,2.97,TOTAL PRODUCE GATESHEAD,399244,Local Environmental Services,Adult Social Care,101,Supplies and Services,504,Equipment,5023,Revenue,CATERING.FOOD & BEVERAGES
26-OCT-2022,7019760,3.14,TOTAL PRODUCE GATESHEAD,399244,Local Environmental Services,Adult Social Care,101,Supplies and Services,504,Equipment,5023,Revenue,CATERING.FOOD & BEVERAGES
26-OCT-2022,7019760,3.14,TOTAL PRODUCE GATESHEAD,399244,Local Environmental Services,Adult Social Care,101,Supplies and Services,504,Equipment,5023,Revenue,CATERING.FOOD & BEVERAGES
26-OCT-2022,7019760,3.14,TOTAL PRODUCE GATESHEAD,399244,Local Environmental Services,Adult Social Care,101,Supplies and Services,504,Equipment,5023,Revenue,CATERING.FOOD & BEVERAGES
26-OCT-2022,7019760,3.14,TOTAL PRODUCE GATESHEAD,399244,Local Environmental Services,Adult Social Care,101,Supplies and Services,504,Equipment,5023,Revenue,CATERING.FOOD & BEVERAGES
26-OCT-2022,7019760,3.14,TOTAL PRODUCE GATESHEAD,399244,Local Environmental Services,Adult Social Care,101,Supplies and Services,504,Equipment,5023,Revenue,CATERING.FOOD & BEVERAGES
26-OCT-2022,7019760,3.15,TOTAL PRODUCE GATESHEAD,399244,Local Environmental Services,Adult Social Care,101,Supplies and Services,504,Equipment,5023,Revenue,CATERING.FOOD & BEVERAGES
26-OCT-2022,7019760,3.15,TOTAL PRODUCE GATESHEAD,399244,Local Environmental Services,Adult Social Care,101,Supplies and Services,504,Equipment,5023,Revenue,CATERING.FOOD & BEVERAGES
26-OCT-2022,7019760,3.18,TOTAL PRODUCE GATESHEAD,399244,Local Environmental Services,Adult Social Care,101,Supplies and Services,504,Equipment,5023,Revenue,CATERING.FOOD & BEVERAGES
26-OCT-2022,7019760,3.18,TOTAL PRODUCE GATESHEAD,399244,Local Environmental Services,Adult Social Care,101,Supplies and Services,504,Equipment,5023,Revenue,CATERING.FOOD & BEVERAGES
26-OCT-2022,7019760,3.32,TOTAL PRODUCE GATESHEAD,399244,Local Environmental Services,Adult Social Care,101,Supplies and Services,504,Equipment,5023,Revenue,CATERING.FOOD & BEVERAGES
26-OCT-2022,7019760,3.32,TOTAL PRODUCE GATESHEAD,399244,Local Environmental Services,Adult Social Care,101,Supplies and Services,504,Equipment,5023,Revenue,CATERING.FOOD & BEVERAGES
26-OCT-2022,7019760,3.34,TOTAL PRODUCE GATESHEAD,399244,Local Environmental Services,Adult Social Care,101,Supplies and Services,504,Equipment,5023,Revenue,CATERING.FOOD & BEVERAGES
26-OCT-2022,7019760,3.34,TOTAL PRODUCE GATESHEAD,399244,Local Environmental Services,Adult Social Care,101,Supplies and Services,504,Equipment,5023,Revenue,CATERING.FOOD & BEVERAGES
26-OCT-2022,7019760,3.34,TOTAL PRODUCE GATESHEAD,399244,Local Environmental Services,Adult Social Care,101,Supplies and Services,504,Equipment,5023,Revenue,CATERING.FOOD & BEVERAGES
